date,department/service,beneficiary,amount,summary of purpose,category,transaction number,SAP vendor number
01.04.2019,"BOROUGH, BANKSIDE AND WALWORTH COMMUNITY COUNCIL",TABARD GROWERS,600,TABARD GROWERS HARVEST DAY,GRANT,CHEQUE PAYMENT,CHEQUE PAYMENT
01.04.2019,CHIEF EXECUTIVE,TRANSPORT FOR LONDON,"12,162.64",CAPITAL PS (REGEN),CONSTR'N SUB CONTRACT - NON CERTIFICATED,5902351758,1000023986
01.04.2019,CHIEF EXECUTIVE,TRANSPORT FOR LONDON,"40,758.98",CAPITAL PS (REGEN),CONSTRUCTION MAIN CONTRACT,2102939292,3000001395
01.04.2019,ENVIRONMENT AND LEISURE,COMPLETE PRINT SOLUTIONS,"1,304.00",CAPITAL PS (LEISURE),CONSTRUCTION MAIN CONTRACT -CERTIFICATED,5902351231,1000082234
01.04.2019,ENVIRONMENT AND LEISURE,BREEZE LANDSCAPE ARCHITECTS LTD,"1,625.00",CAPITAL PS (LEISURE),CONSTRUCTION FEES  - EXTERNAL,5902351238,1000078053
01.04.2019,ENVIRONMENT AND LEISURE,STREET VISION,"4,226.00",CAPITAL PS (LEISURE),CONSTRUCTION MAIN CONTRACT -CERTIFICATED,5902351261,1000066222
01.04.2019,ENVIRONMENT DIRECTORATE,CHARTERED INST. OF ENVIRONMENTAL HEALTH,505,LICENSING,STATIONERY,5902351996,1605413
01.04.2019,ENVIRONMENT DIRECTORATE,F R JONES & SON LTD,485.56,NON HOUSING GROUNDS,EQUIPMENT PURCHASE & REPAIR,5902351031,1000037178
01.04.2019,ENVIRONMENT DIRECTORATE,ELLIOT ENVIRONMENTAL LTD,400,STREET CLEANING-GENERAL,OTHER CONTRACTORS,5902351504,1000047392
01.04.2019,LEISURE DIRECTORATE,P D CONSTRUCTION LTD,-318,CREMATORIUM,OTHER R&M,5902352339,1000000390
01.04.2019,LEISURE DIRECTORATE,P D CONSTRUCTION LTD,318,CREMATORIUM,OTHER R&M,5902352288,1000000390
01.04.2019,LEISURE DIRECTORATE,COMPLETE TREE CARE LTD,702,TREES O'HEADS,CONSULTANTS SERVICES,5902352157,1000041410
01.04.2019,LEISURE DIRECTORATE,COMPLETE TREE CARE LTD,726,TREES O'HEADS,CONSULTANTS SERVICES,5902352154,1000041410
01.04.2019,LEISURE DIRECTORATE,COMPLETE TREE CARE LTD,731.25,TREES O'HEADS,CONSULTANTS SERVICES,5902352156,1000041410
01.04.2019,LEISURE DIRECTORATE,COMPLETE ECOLOGY LIMITED,"4,000.00",TREES O'HEADS,PROFESSIONAL FEES,5902351834,1000062303
01.04.2019,MODERNISATION HGF,INTERSERVE (FACILITIES MANAGEMENT),"67,371.65",FM SERVICES BY INTERSERVE,SECURITY SERVICES,5902351733,1000070792
01.04.2019,MODERNISATION HGF,INTERSERVE (FACILITIES MANAGEMENT),"83,548.49",FM SERVICES BY INTERSERVE,SECURITY SERVICES,5902351734,1000070792
01.04.2019,SOUTHWARK BUILDING SERVICES,CASTLETON TECHNOLOGY PLC,"64,000.00",REORGANISATION COSTS,SOFTWARE,5902352219,1000059550
02.04.2019,ADULT SOCIAL CARE,CARE DIRECT UK LTD,347.51,LD LTS 18-64,SUPPORTED LIVING,2102939398,1000066322
02.04.2019,ADULT SOCIAL CARE,LONDON CARE LTD,"6,260.68",LD LTS 65+,HOMECARE - C&V,2102939407,1000003398
02.04.2019,ADULT SOCIAL CARE,LONDON CARE LTD,266.56,MEM LTS 65+,HOMECARE - C&V,2102939413,1000003398
02.04.2019,ADULT SOCIAL CARE,LONDON CARE LTD,649.35,MEM LTS 65+,HOMECARE - C&V,2102939406,1000003398
02.04.2019,ADULT SOCIAL CARE,LONDON CARE LTD,766.32,MEM LTS 65+,HOMECARE - C&V,2102939468,1000003398
02.04.2019,ADULT SOCIAL CARE,SAGECARE LTD,899.44,MEM LTS 65+,HOMECARE - C&V,2102939539,1000080924
02.04.2019,ADULT SOCIAL CARE,LONDON CARE LTD,"1,123.95",MEM LTS 65+,HOMECARE - C&V,2102939477,1000003398
02.04.2019,ADULT SOCIAL CARE,SAGECARE LTD,"1,132.74",MEM LTS 65+,HOMECARE - C&V,2102939566,1000080924
02.04.2019,ADULT SOCIAL CARE,LONDON CARE LTD,"3,317.79",MEM LTS 65+,HOMECARE - C&V,2102939502,1000003398
02.04.2019,ADULT SOCIAL CARE,CARE DIRECT UK LTD,328.38,MEM STS 18-64,HOMECARE - IC,2102939390,1000066322
02.04.2019,ADULT SOCIAL CARE,LONDON CARE LTD,266.4,MH LTS 18-64,HOMECARE - C&V,2102939461,1000003398
02.04.2019,ADULT SOCIAL CARE,LONDON CARE LTD,474.54,MH LTS 18-64,HOMECARE - C&V,2102939488,1000003398
02.04.2019,ADULT SOCIAL CARE,LONDON CARE LTD,482.89,MH LTS 18-64,HOMECARE - C&V,2102939429,1000003398
02.04.2019,ADULT SOCIAL CARE,LONDON CARE LTD,316.35,MH LTS 65+,HOMECARE - C&V,2102939409,1000003398
02.04.2019,ADULT SOCIAL CARE,LONDON CARE LTD,570.86,MH LTS 65+,HOMECARE - C&V,2102939497,1000003398
02.04.2019,ADULT SOCIAL CARE,LONDON CARE LTD,264.02,PHY LTS 18-64,HOMECARE - SPOT,2102939503,1000003398
02.04.2019,ADULT SOCIAL CARE,CARE DIRECT UK LTD,266.25,PHY LTS 18-64,HOMECARE - SPOT,2102939401,1000066322
02.04.2019,ADULT SOCIAL CARE,LONDON CARE LTD,266.52,PHY LTS 18-64,HOMECARE - C&V,2102939460,1000003398
02.04.2019,ADULT SOCIAL CARE,LONDON CARE LTD,283.08,PHY LTS 18-64,HOMECARE - C&V,2102939523,1000003398
02.04.2019,ADULT SOCIAL CARE,LONDON CARE LTD,324.87,PHY LTS 18-64,HOMECARE - C&V,2102939511,1000003398
02.04.2019,ADULT SOCIAL CARE,LONDON CARE LTD,349.72,PHY LTS 18-64,HOMECARE - C&V,2102939525,1000003398
02.04.2019,ADULT SOCIAL CARE,LONDON CARE LTD,349.72,PHY LTS 18-64,HOMECARE - C&V,2102939534,1000003398
02.04.2019,ADULT SOCIAL CARE,LONDON CARE LTD,382.99,PHY LTS 18-64,HOMECARE - C&V,2102939498,1000003398
02.04.2019,ADULT SOCIAL CARE,LONDON CARE LTD,387.18,PHY LTS 18-64,HOMECARE - C&V,2102939482,1000003398
02.04.2019,ADULT SOCIAL CARE,LONDON CARE LTD,416.32,PHY LTS 18-64,HOMECARE - C&V,2102939490,1000003398
02.04.2019,ADULT SOCIAL CARE,LONDON CARE LTD,508.11,PHY LTS 18-64,HOMECARE - C&V,2102939465,1000003398
02.04.2019,ADULT SOCIAL CARE,LONDON CARE LTD,516.16,PHY LTS 18-64,HOMECARE - C&V,2102939449,1000003398
02.04.2019,ADULT SOCIAL CARE,LONDON CARE LTD,516.22,PHY LTS 18-64,HOMECARE - C&V,2102939509,1000003398
02.04.2019,ADULT SOCIAL CARE,LONDON CARE LTD,532.8,PHY LTS 18-64,HOMECARE - C&V,2102939510,1000003398
02.04.2019,ADULT SOCIAL CARE,SAGECARE LTD,682.88,PHY LTS 18-64,HOMECARE - C&V,2102939545,1000080924
02.04.2019,ADULT SOCIAL CARE,LONDON CARE LTD,699.44,PHY LTS 18-64,HOMECARE - C&V,2102939517,1000003398
02.04.2019,ADULT SOCIAL CARE,LONDON CARE LTD,774.33,PHY LTS 18-64,HOMECARE - C&V,2102939495,1000003398
02.04.2019,ADULT SOCIAL CARE,SAGECARE LTD,816.2,PHY LTS 18-64,HOMECARE - C&V,2102939553,1000080924
02.04.2019,ADULT SOCIAL CARE,LONDON CARE LTD,932.68,PHY LTS 18-64,HOMECARE - C&V,2102939436,1000003398
02.04.2019,ADULT SOCIAL CARE,LONDON CARE LTD,949.07,PHY LTS 18-64,HOMECARE - C&V,2102939481,1000003398
02.04.2019,ADULT SOCIAL CARE,SAGECARE LTD,"1,003.47",PHY LTS 18-64,HOMECARE - C&V,2102939546,1000080924
02.04.2019,ADULT SOCIAL CARE,LONDON CARE LTD,"1,043.23",PHY LTS 18-64,HOMECARE - C&V,2102939504,1000003398
02.04.2019,ADULT SOCIAL CARE,LONDON CARE LTD,"1,065.88",PHY LTS 18-64,HOMECARE - C&V,2102939516,1000003398
02.04.2019,ADULT SOCIAL CARE,LONDON CARE LTD,"1,141.03",PHY LTS 18-64,HOMECARE - C&V,2102939520,1000003398
02.04.2019,ADULT SOCIAL CARE,LONDON CARE LTD,"1,141.05",PHY LTS 18-64,HOMECARE - C&V,2102939417,1000003398
02.04.2019,ADULT SOCIAL CARE,SAGECARE LTD,"1,178.35",PHY LTS 18-64,HOMECARE - C&V,2102939564,1000080924
02.04.2019,ADULT SOCIAL CARE,LONDON CARE LTD,"1,857.03",PHY LTS 18-64,HOMECARE - C&V,2102939432,1000003398
02.04.2019,ADULT SOCIAL CARE,LONDON CARE LTD,"1,998.90",PHY LTS 18-64,HOMECARE - C&V,2102939431,1000003398
02.04.2019,ADULT SOCIAL CARE,LONDON CARE LTD,"2,189.90",PHY LTS 18-64,HOMECARE - C&V,2102939457,1000003398
02.04.2019,ADULT SOCIAL CARE,LONDON CARE LTD,"2,743.72",PHY LTS 18-64,HOMECARE - SPOT,2102939467,1000003398
02.04.2019,ADULT SOCIAL CARE,SAGECARE LTD,299.84,PHY LTS 65+,HOMECARE - C&V,2102939548,1000080924
02.04.2019,ADULT SOCIAL CARE,LONDON CARE LTD,303.91,PHY LTS 65+,HOMECARE - C&V,2102939484,1000003398
02.04.2019,ADULT SOCIAL CARE,LONDON CARE LTD,316.54,PHY LTS 65+,HOMECARE - C&V,2102939489,1000003398
02.04.2019,ADULT SOCIAL CARE,LONDON CARE LTD,333,PHY LTS 65+,HOMECARE - C&V,2102939535,1000003398
02.04.2019,ADULT SOCIAL CARE,LONDON CARE LTD,337.23,PHY LTS 65+,HOMECARE - C&V,2102939479,1000003398
02.04.2019,ADULT SOCIAL CARE,LONDON CARE LTD,349.72,PHY LTS 65+,HOMECARE - C&V,2102939414,1000003398
02.04.2019,ADULT SOCIAL CARE,LONDON CARE LTD,358.19,PHY LTS 65+,HOMECARE - C&V,2102939493,1000003398
02.04.2019,ADULT SOCIAL CARE,LONDON CARE LTD,366.44,PHY LTS 65+,HOMECARE - C&V,2102939507,1000003398
02.04.2019,ADULT SOCIAL CARE,LONDON CARE LTD,382.95,PHY LTS 65+,HOMECARE - C&V,2102939418,1000003398
02.04.2019,ADULT SOCIAL CARE,LONDON CARE LTD,399.71,PHY LTS 65+,HOMECARE - C&V,2102939439,1000003398
02.04.2019,ADULT SOCIAL CARE,LONDON CARE LTD,399.84,PHY LTS 65+,HOMECARE - C&V,2102939536,1000003398
02.04.2019,ADULT SOCIAL CARE,LONDON CARE LTD,416.4,PHY LTS 65+,HOMECARE - C&V,2102939466,1000003398
02.04.2019,ADULT SOCIAL CARE,SAGECARE LTD,424.78,PHY LTS 65+,HOMECARE - C&V,2102939550,1000080924
02.04.2019,ADULT SOCIAL CARE,LONDON CARE LTD,432.96,PHY LTS 65+,HOMECARE - C&V,2102939508,1000003398
02.04.2019,ADULT SOCIAL CARE,LONDON CARE LTD,445.51,PHY LTS 65+,HOMECARE - C&V,2102939452,1000003398
02.04.2019,ADULT SOCIAL CARE,LONDON CARE LTD,449.64,PHY LTS 65+,HOMECARE - C&V,2102939416,1000003398
02.04.2019,ADULT SOCIAL CARE,LONDON CARE LTD,458.15,PHY LTS 65+,HOMECARE - C&V,2102939528,1000003398
02.04.2019,ADULT SOCIAL CARE,LONDON CARE LTD,474.69,PHY LTS 65+,HOMECARE - C&V,2102939440,1000003398
02.04.2019,ADULT SOCIAL CARE,CARE DIRECT UK LTD,497,PHY LTS 65+,HOMECARE - SPOT,2102939394,1000066322
02.04.2019,ADULT SOCIAL CARE,LONDON CARE LTD,516.42,PHY LTS 65+,HOMECARE - C&V,2102939422,1000003398
02.04.2019,ADULT SOCIAL CARE,LONDON CARE LTD,533,PHY LTS 65+,HOMECARE - SPOT,2102939448,1000003398
02.04.2019,ADULT SOCIAL CARE,SAGECARE LTD,549.64,PHY LTS 65+,HOMECARE - C&V,2102939540,1000080924
02.04.2019,ADULT SOCIAL CARE,LONDON CARE LTD,558.07,PHY LTS 65+,HOMECARE - C&V,2102939475,1000003398
02.04.2019,ADULT SOCIAL CARE,CARE DIRECT UK LTD,559.13,PHY LTS 65+,HOMECARE - SPOT,2102939392,1000066322
02.04.2019,ADULT SOCIAL CARE,CARE DIRECT UK LTD,559.13,PHY LTS 65+,HOMECARE - SPOT,2102939396,1000066322
02.04.2019,ADULT SOCIAL CARE,CARE DIRECT UK LTD,559.13,PHY LTS 65+,HOMECARE - SPOT,2102939399,1000066322
02.04.2019,ADULT SOCIAL CARE,CARE DIRECT UK LTD,559.13,PHY LTS 65+,HOMECARE - SPOT,2102939404,1000066322
02.04.2019,ADULT SOCIAL CARE,SAGECARE LTD,562.05,PHY LTS 65+,HOMECARE - C&V,2102939549,1000080924
02.04.2019,ADULT SOCIAL CARE,LONDON CARE LTD,562.18,PHY LTS 65+,HOMECARE - C&V,2102939445,1000003398
02.04.2019,ADULT SOCIAL CARE,LONDON CARE LTD,582.96,PHY LTS 65+,HOMECARE - C&V,2102939447,1000003398
02.04.2019,ADULT SOCIAL CARE,LONDON CARE LTD,582.96,PHY LTS 65+,HOMECARE - C&V,2102939476,1000003398
02.04.2019,ADULT SOCIAL CARE,LONDON CARE LTD,599.6,PHY LTS 65+,HOMECARE - C&V,2102939442,1000003398
02.04.2019,ADULT SOCIAL CARE,CARE DIRECT UK LTD,612.38,PHY LTS 65+,HOMECARE - SPOT,2102939397,1000066322
02.04.2019,ADULT SOCIAL CARE,LONDON CARE LTD,632.89,PHY LTS 65+,HOMECARE - C&V,2102939454,1000003398
02.04.2019,ADULT SOCIAL CARE,LONDON CARE LTD,649.48,PHY LTS 65+,HOMECARE - C&V,2102939455,1000003398
02.04.2019,ADULT SOCIAL CARE,LONDON CARE LTD,649.56,PHY LTS 65+,HOMECARE - C&V,2102939443,1000003398
02.04.2019,ADULT SOCIAL CARE,SAGECARE LTD,649.56,PHY LTS 65+,HOMECARE - C&V,2102939559,1000080924
02.04.2019,ADULT SOCIAL CARE,SAGECARE LTD,649.56,PHY LTS 65+,HOMECARE - C&V,2102939565,1000080924
02.04.2019,ADULT SOCIAL CARE,LONDON CARE LTD,657.81,PHY LTS 65+,HOMECARE - C&V,2102939472,1000003398
02.04.2019,ADULT SOCIAL CARE,LONDON CARE LTD,666.4,PHY LTS 65+,HOMECARE - C&V,2102939464,1000003398
02.04.2019,ADULT SOCIAL CARE,LONDON CARE LTD,670.45,PHY LTS 65+,HOMECARE - C&V,2102939492,1000003398
02.04.2019,ADULT SOCIAL CARE,LONDON CARE LTD,699.72,PHY LTS 65+,HOMECARE - C&V,2102939512,1000003398
02.04.2019,ADULT SOCIAL CARE,SAGECARE LTD,699.72,PHY LTS 65+,HOMECARE - C&V,2102939561,1000080924
02.04.2019,ADULT SOCIAL CARE,LONDON CARE LTD,703.67,PHY LTS 65+,HOMECARE - C&V,2102939430,1000003398
02.04.2019,ADULT SOCIAL CARE,SAGECARE LTD,741.32,PHY LTS 65+,HOMECARE - C&V,2102939552,1000080924
02.04.2019,ADULT SOCIAL CARE,LONDON CARE LTD,766.04,PHY LTS 65+,HOMECARE - C&V,2102939437,1000003398
02.04.2019,ADULT SOCIAL CARE,SAGECARE LTD,767.32,PHY LTS 65+,HOMECARE - C&V,2102939541,1000080924
02.04.2019,ADULT SOCIAL CARE,LONDON CARE LTD,787.04,PHY LTS 65+,HOMECARE - C&V,2102939428,1000003398
02.04.2019,ADULT SOCIAL CARE,LONDON CARE LTD,799.35,PHY LTS 65+,HOMECARE - C&V,2102939487,1000003398
02.04.2019,ADULT SOCIAL CARE,LONDON CARE LTD,799.58,PHY LTS 65+,HOMECARE - C&V,2102939501,1000003398
02.04.2019,ADULT SOCIAL CARE,LONDON CARE LTD,803.71,PHY LTS 65+,HOMECARE - C&V,2102939435,1000003398
02.04.2019,ADULT SOCIAL CARE,LONDON CARE LTD,816.2,PHY LTS 65+,HOMECARE - C&V,2102939483,1000003398
02.04.2019,ADULT SOCIAL CARE,LONDON CARE LTD,832.92,PHY LTS 65+,HOMECARE - C&V,2102939531,1000003398
02.04.2019,ADULT SOCIAL CARE,LONDON CARE LTD,874.47,PHY LTS 65+,HOMECARE - C&V,2102939408,1000003398
02.04.2019,ADULT SOCIAL CARE,LONDON CARE LTD,882.52,PHY LTS 65+,HOMECARE - C&V,2102939420,1000003398
02.04.2019,ADULT SOCIAL CARE,LONDON CARE LTD,901.44,PHY LTS 65+,HOMECARE - C&V,2102939480,1000003398
02.04.2019,ADULT SOCIAL CARE,LONDON CARE LTD,928.58,PHY LTS 65+,HOMECARE - C&V,2102939527,1000003398
02.04.2019,ADULT SOCIAL CARE,LONDON CARE LTD,932.4,PHY LTS 65+,HOMECARE - C&V,2102939470,1000003398
02.04.2019,ADULT SOCIAL CARE,SAGECARE LTD,932.68,PHY LTS 65+,HOMECARE - C&V,2102939555,1000080924
02.04.2019,ADULT SOCIAL CARE,LONDON CARE LTD,949.39,PHY LTS 65+,HOMECARE - C&V,2102939411,1000003398
02.04.2019,ADULT SOCIAL CARE,SAGECARE LTD,949.4,PHY LTS 65+,HOMECARE - C&V,2102939542,1000080924
02.04.2019,ADULT SOCIAL CARE,SAGECARE LTD,957.69,PHY LTS 65+,HOMECARE - C&V,2102939554,1000080924
02.04.2019,ADULT SOCIAL CARE,LONDON CARE LTD,"1,003.62",PHY LTS 65+,HOMECARE - C&V,2102939515,1000003398
02.04.2019,ADULT SOCIAL CARE,LONDON CARE LTD,"1,049.44",PHY LTS 65+,HOMECARE - C&V,2102939424,1000003398
02.04.2019,ADULT SOCIAL CARE,LONDON CARE LTD,"1,057.75",PHY LTS 65+,HOMECARE - C&V,2102939462,1000003398
02.04.2019,ADULT SOCIAL CARE,LONDON CARE LTD,"1,057.77",PHY LTS 65+,HOMECARE - C&V,2102939444,1000003398
02.04.2019,ADULT SOCIAL CARE,LONDON CARE LTD,"1,120.15",PHY LTS 65+,HOMECARE - C&V,2102939518,1000003398
02.04.2019,ADULT SOCIAL CARE,LONDON CARE LTD,"1,124.10",PHY LTS 65+,HOMECARE - C&V,2102939463,1000003398
02.04.2019,ADULT SOCIAL CARE,LONDON CARE LTD,"1,157.65",PHY LTS 65+,HOMECARE - C&V,2102939537,1000003398
02.04.2019,ADULT SOCIAL CARE,SAGECARE LTD,"1,165.92",PHY LTS 65+,HOMECARE - C&V,2102939543,1000080924
02.04.2019,ADULT SOCIAL CARE,SAGECARE LTD,"1,165.92",PHY LTS 65+,HOMECARE - C&V,2102939544,1000080924
02.04.2019,ADULT SOCIAL CARE,LONDON CARE LTD,"1,182.64",PHY LTS 65+,HOMECARE - C&V,2102939446,1000003398
02.04.2019,ADULT SOCIAL CARE,SAGECARE LTD,"1,182.64",PHY LTS 65+,HOMECARE - C&V,2102939557,1000080924
02.04.2019,ADULT SOCIAL CARE,SAGECARE LTD,"1,182.64",PHY LTS 65+,HOMECARE - C&V,2102939567,1000080924
02.04.2019,ADULT SOCIAL CARE,SAGECARE LTD,"1,465.64",PHY LTS 65+,HOMECARE - C&V,2102939556,1000080924
02.04.2019,ADULT SOCIAL CARE,SAGECARE LTD,"1,548.96",PHY LTS 65+,HOMECARE - C&V,2102939563,1000080924
02.04.2019,ADULT SOCIAL CARE,LONDON CARE LTD,"1,603.25",PHY LTS 65+,HOMECARE - C&V,2102939526,1000003398
02.04.2019,ADULT SOCIAL CARE,SAGECARE LTD,"1,632.32",PHY LTS 65+,HOMECARE - C&V,2102939560,1000080924
02.04.2019,ADULT SOCIAL CARE,LONDON CARE LTD,"1,765.40",PHY LTS 65+,HOMECARE - C&V,2102939438,1000003398
02.04.2019,ADULT SOCIAL CARE,SNOWBALL CARE UK LTD,"1,864.00",PHY LTS 65+,HOMECARE - SPOT,2102939405,1000081483
02.04.2019,ADULT SOCIAL CARE,LONDON CARE LTD,"2,006.61",PHY LTS 65+,HOMECARE - C&V,2102939433,1000003398
02.04.2019,ADULT SOCIAL CARE,LONDON CARE LTD,"2,098.87",PHY LTS 65+,HOMECARE - C&V,2102939505,1000003398
02.04.2019,ADULT SOCIAL CARE,SAGECARE LTD,"2,157.15",PHY LTS 65+,HOMECARE - C&V,2102939551,1000080924
02.04.2019,ADULT SOCIAL CARE,LONDON CARE LTD,"2,169.65",PHY LTS 65+,HOMECARE - C&V,2102939514,1000003398
02.04.2019,ADULT SOCIAL CARE,SAGECARE LTD,"2,232.08",PHY LTS 65+,HOMECARE - C&V,2102939558,1000080924
02.04.2019,ADULT SOCIAL CARE,SAGECARE LTD,"2,248.64",PHY LTS 65+,HOMECARE - C&V,2102939547,1000080924
02.04.2019,ADULT SOCIAL CARE,LONDON CARE LTD,"2,340.16",PHY LTS 65+,HOMECARE - C&V,2102939441,1000003398
02.04.2019,ADULT SOCIAL CARE,LONDON CARE LTD,"2,527.32",PHY LTS 65+,HOMECARE - C&V,2102939486,1000003398
02.04.2019,ADULT SOCIAL CARE,LONDON CARE LTD,"2,573.13",PHY LTS 65+,HOMECARE - C&V,2102939530,1000003398
02.04.2019,ADULT SOCIAL CARE,LONDON CARE LTD,"2,656.49",PHY LTS 65+,HOMECARE - C&V,2102939524,1000003398
02.04.2019,ADULT SOCIAL CARE,LONDON CARE LTD,"2,681.28",PHY LTS 65+,HOMECARE - C&V,2102939474,1000003398
02.04.2019,ADULT SOCIAL CARE,LONDON CARE LTD,"2,698.05",PHY LTS 65+,HOMECARE - C&V,2102939473,1000003398
02.04.2019,ADULT SOCIAL CARE,LONDON CARE LTD,324.82,PHY STS 65+,HOMECARE - IC,2102939450,1000003398
02.04.2019,ADULT SOCIAL CARE,BLISSETT CARE LTD,"11,875.80",REABLEMENT SERVICE,HOMECARE - IC,5902352327,1000042627
02.04.2019,ADULT SOCIAL CARE,LONDON CARE LTD,399.8,SOCIAL ISOLATION,HOMECARE - C&V,2102939529,1000003398
02.04.2019,ADULT SOCIAL CARE,LONDON CARE LTD,432.92,SOCIAL ISOLATION,HOMECARE - C&V,2102939425,1000003398
02.04.2019,ADULT SOCIAL CARE,LONDON CARE LTD,865.88,SOCIAL ISOLATION,HOMECARE - C&V,2102939499,1000003398
02.04.2019,ADULT SOCIAL CARE,LONDON CARE LTD,"1,028.49",SOCIAL ISOLATION,HOMECARE - C&V,2102939458,1000003398
02.04.2019,ADULT SOCIAL CARE,LONDON CARE LTD,"1,365.56",SOCIAL ISOLATION,HOMECARE - C&V,2102939423,1000003398
02.04.2019,ADULT SOCIAL CARE,LONDON CARE LTD,395.06,SUB LTS 65+,HOMECARE - C&V,2102939496,1000003398
02.04.2019,ASSET MANAGEMENT,ANTHONY GOLD SOLICITORS,"-6,500.00",DISREPAIR,PAYMENTS FOR LEGAL SERVICES,2102939967,1000050198
02.04.2019,ASSET MANAGEMENT,FRANKHAM CONSULTANCY GROUP LTD,930,DISREPAIR,PAYMENTS FOR LEGAL SERVICES,2102939378,1000043952
02.04.2019,ASSET MANAGEMENT,FRANKHAM CONSULTANCY GROUP LTD,930,DISREPAIR,PAYMENTS FOR LEGAL SERVICES,2102939379,1000043952
02.04.2019,ASSET MANAGEMENT,FRANKHAM CONSULTANCY GROUP LTD,930,DISREPAIR,PAYMENTS FOR LEGAL SERVICES,2102939380,1000043952
02.04.2019,ASSET MANAGEMENT,MLA SOLICITORS,"1,500.00",DISREPAIR,PAYMENTS FOR LEGAL SERVICES,2102939377,1000079716
02.04.2019,ASSET MANAGEMENT,ANTHONY GOLD SOLICITORS,"6,500.00",DISREPAIR,PAYMENTS FOR LEGAL SERVICES,2102938874,1000050198
02.04.2019,ASSET MANAGEMENT,CLARKE BARNES SOLICITORS LLP,"13,000.00",DISREPAIR,PAYMENTS FOR LEGAL SERVICES,2102939382,1000078090
02.04.2019,ASSET MANAGEMENT,LONDON TOOLS LIMITED,284.93,REPAIRS OPERATIONS,MATERIALS,5902352315,1000003017
02.04.2019,ASSET MANAGEMENT,LONDON TOOLS LIMITED,"1,108.50",REPAIRS OPERATIONS,MATERIALS,5902352312,1000003017
02.04.2019,CENTRAL FUNCTIONS,WILDY & SONS LTD,424.5,HOME OWNERSHIP,BOOKS & PUBLICATIONS,5902352259,1000075278
02.04.2019,CENTRAL FUNCTIONS,WILDY & SONS LTD,424.5,HOME OWNERSHIP,BOOKS & PUBLICATIONS,5902352259,1000075278
02.04.2019,CENTRAL FUNCTIONS HGF,CITYGLEN LTD,980,SWEP/SPOT,EXTERNAL AGENCIES AND BODIES,5902352345,1000026239
02.04.2019,CENTRAL FUNCTIONS HGF,CITYGLEN LTD,980,SWEP/SPOT,EXTERNAL AGENCIES AND BODIES,5902352346,1000026239
02.04.2019,CENTRAL FUNCTIONS HGF,PPROPERTYPLACEBOOK LTD,980,SWEP/SPOT,EXTERNAL AGENCIES AND BODIES,5902352386,1000077817
02.04.2019,CHILDREN AND ADULT,CBS MAINTENANCE SERVICES LTD,"-2,600.00",CAPITAL PS (EDUCATION),CONSTRUCTION FEES,5902352527,3000001518
02.04.2019,CHILDREN AND ADULT,CBS MAINTENANCE SERVICES LTD,"2,600.00",CAPITAL PS (EDUCATION),CONSTRUCTION FEES,5902352521,3000001518
02.04.2019,CHILDREN'S SERVICES,GLS EDUCATIONAL SUPPLIES LTD,324.46,CAMBERWELL & DULWICH,MATERIALS,5902352413,1318282
02.04.2019,CHILDREN'S SERVICES,TFL TELESALES / OYSTER FULFILMENT,"1,605.00",CENTRAL COSTS - SEN,PUBLIC TRANSPORT,5902352422,1000059727
02.04.2019,CHILDREN'S SERVICES,OPTIMUM FOCUS COMPANY LTD,255.67,FAMILY GROUP CONFERENCES,EXTERNAL AGENCIES AND BODIES,5902352374,1000081322
02.04.2019,CHILDREN'S SERVICES,RHYS JONES,-550,LEGAL,LEGAL FEES & COURT COSTS,2102939966,1000078664
02.04.2019,CHILDREN'S SERVICES,RHYS JONES,550,LEGAL,LEGAL FEES & COURT COSTS,2102939355,1000078664
02.04.2019,COMMISSIONING & CENTRAL,OXFORD BROOKES ENTERPRISES LTD,"3,503.25",ASW - PROFESSIONAL DEVELOPMENT,TRAINING,5902352427,1000076102
02.04.2019,COMMISSIONING & CENTRAL,LUKE CLEMENTS TRAINING,"6,200.00",ASW - PROFESSIONAL DEVELOPMENT,TRAINING,5902352026,1000082524
02.04.2019,COMMISSIONING & CENTRAL,OXFORD BROOKES ENTERPRISES LTD,"7,715.80",ASW - PROFESSIONAL DEVELOPMENT,TRAINING,5902352434,1000076102
02.04.2019,COMMUNITIES,BRENCHLEY GARDENS MANAGEMENT ASSOCIATION,"30,629.75",BRENCHLEY GARDENS,M&M ALLOWANCE CO-OPS,5902352378,11324247
02.04.2019,CUSTOMER EXPERIENCE HGF,TUNSTALL HEALTHCARE (UK) LTD,"3,264.00",SMART MOBILE RESPONSE TEAM,EQUIPMENT PURCHASE & REPAIR,5902352261,1012297
02.04.2019,ENVIRONMENT AND LEISURE,LONDON TOOLS LIMITED,"5,490.00",CAPITAL PS (LEISURE),CONSTRUCTION FEES  - EXTERNAL,5902352443,1000003017
02.04.2019,ENVIRONMENT AND LEISURE,CONWAY AECOM LTD,"87,721.03",CAPITAL PS (LEISURE),CONSTRUCTION,2102939568,3000001595
02.04.2019,ENVIRONMENT DIRECTORATE,LONDON TOOLS LIMITED,272,BUSINESS CORE,MATERIALS,5902352303,1000003017
02.04.2019,ENVIRONMENT DIRECTORATE,LONDON TOOLS LIMITED,278,BUSINESS CORE,EQUIPMENT PURCHASE & REPAIR,5902352302,1000003017
02.04.2019,ENVIRONMENT DIRECTORATE,LONDON TOOLS LIMITED,280.5,ENGINEERING CRAFTS,MATERIALS,5902352308,1000003017
02.04.2019,ENVIRONMENT DIRECTORATE,LONDON TOOLS LIMITED,330,ENGINEERING CRAFTS,MATERIALS,5902352296,1000003017
02.04.2019,ENVIRONMENT DIRECTORATE,LONDON TOOLS LIMITED,331.5,ENGINEERING CRAFTS,MATERIALS,5902352432,1000003017
02.04.2019,ENVIRONMENT DIRECTORATE,LONDON TOOLS LIMITED,350,ENGINEERING CRAFTS,MATERIALS,5902352400,1000003017
02.04.2019,ENVIRONMENT DIRECTORATE,LONDON TOOLS LIMITED,350,ENGINEERING CRAFTS,MATERIALS,5902352400,1000003017
02.04.2019,ENVIRONMENT DIRECTORATE,LONDON TOOLS LIMITED,350,ENGINEERING CRAFTS,MATERIALS,5902352400,1000003017
02.04.2019,ENVIRONMENT DIRECTORATE,LONDON TOOLS LIMITED,350,ENGINEERING CRAFTS,MATERIALS,5902352400,1000003017
02.04.2019,ENVIRONMENT DIRECTORATE,LONDON TOOLS LIMITED,540,ENGINEERING CRAFTS,EQUIPMENT PURCHASE & REPAIR,5902352304,1000003017
02.04.2019,ENVIRONMENT DIRECTORATE,CONWAY AECOM LTD,"585,470.53",HIGHWAY MAINTENANCE OVERHEADS,HIGHWAYS TERM CONTRACT,2102939569,3000001595
02.04.2019,ENVIRONMENT DIRECTORATE,LONDON TOOLS LIMITED,310,LIGHTING RECOVERABLE WORKS,MATERIALS,5902352310,1000003017
02.04.2019,ENVIRONMENT DIRECTORATE,PROJECT CENTRE LTD,"2,360.00",PARKING OVERHEADS,OTHER CONTRACTORS,5902352390,1000072621
02.04.2019,ENVIRONMENT DIRECTORATE,LONDON TOOLS LIMITED,284,PARKS TECH UNIT (PREMISES),BUILDING R&M,5902352321,1000003017
02.04.2019,ENVIRONMENT DIRECTORATE,LONDON TOOLS LIMITED,295,PARKS TECH UNIT (PREMISES),BUILDING R&M,5902352331,1000003017
02.04.2019,ENVIRONMENT DIRECTORATE,LONDON TOOLS LIMITED,455,PARKS TECH UNIT (PREMISES),BUILDING R&M,5902352373,1000003017
02.04.2019,ENVIRONMENT DIRECTORATE,TFL TELESALES / OYSTER FULFILMENT,440,PROJECT SUPPORT,PUBLIC TRANSPORT,5902352414,1000059727
02.04.2019,ENVIRONMENT DIRECTORATE,LONDON TOOLS LIMITED,298,PUBLIC LIGHTING,EQUIPMENT PURCHASE & REPAIR,5902352402,1000003017
02.04.2019,ENVIRONMENT DIRECTORATE,LONDON TOOLS LIMITED,693,PUBLIC LIGHTING,MATERIALS,5902352295,1000003017
02.04.2019,ENVIRONMENT DIRECTORATE,LONDON TOOLS LIMITED,"1,098.75",PUBLIC LIGHTING,EQUIPMENT PURCHASE & REPAIR,5902352307,1000003017
02.04.2019,F & C S EXCLUDING CORPORATE BUDGETS,NORTHGATE PUBLIC SERVICES (UK) LTD,"1,000.00",ADMINISTRATIVE SUPPORT,SOFTWARE,5902352262,1000037405
02.04.2019,FINANCE & GOVERNANCE,LAND REGISTRY,286,REGENERATION,LEGAL & COURT FEES,6101879230,DIRECT DEBIT PAYMENT
02.04.2019,HOUSING AND MODERNISATION,LITTLE VILLAGE SOUTHWARK,"1,250.00",VCS GRANTS,GRANTS,5902352279,1000082344
02.04.2019,HOUSING AND MODERNISATION,MENTAL FIGHT CLUB,"2,250.00",VCS GRANTS,GRANTS,5902352269,1000051170
02.04.2019,HOUSING AND MODERNISATION,CRYSTAL PALACE COMM DEV TRUST,"3,000.00",VCS GRANTS,GRANTS,5902352270,1000054200
02.04.2019,HOUSING AND MODERNISATION,BERMONDSEY COMMUNITY KITCHEN,"3,750.00",VCS GRANTS,GRANTS,5902352277,1000075477
02.04.2019,HOUSING AND MODERNISATION,THE BIKE PROJECT,"3,750.00",VCS GRANTS,GRANTS,5902352278,1000077217
02.04.2019,HOUSING AND MODERNISATION,PAXTON GREEN TIME BANK,"3,937.50",VCS GRANTS,GRANTS,5902352274,1000070648
02.04.2019,HOUSING AND MODERNISATION,WORKING WITH MEN,"4,000.00",VCS GRANTS,GRANTS,5902352268,1000046010
02.04.2019,HOUSING AND MODERNISATION,AGE UK LEWISHAM & SOUTHWARK,"4,500.00",VCS GRANTS,GRANTS,5902352264,1507154
02.04.2019,HOUSING AND MODERNISATION,TIME & TALENTS ASSOCIATION,"4,500.00",VCS GRANTS,GRANTS,5902352265,1757632
02.04.2019,HOUSING AND MODERNISATION,BEDE HSE,"4,500.00",VCS GRANTS,GRANTS,5902352266,11248731
02.04.2019,HOUSING AND MODERNISATION,CAMBRIDGE HOUSE & TALBOT,"4,500.00",VCS GRANTS,GRANTS,5902352267,11248874
02.04.2019,HOUSING AND MODERNISATION,LATIN AMERICAN DISABLED PEOPLE PROJECT,"4,500.00",VCS GRANTS,GRANTS,5902352271,1000058588
02.04.2019,HOUSING AND MODERNISATION,LATIN AMERICAN WOMEN'S RIGHTS SERVICES,"4,500.00",VCS GRANTS,GRANTS,5902352272,1000068356
02.04.2019,HOUSING AND MODERNISATION,BLACKFRIARS SETTLEMENT,"4,500.00",VCS GRANTS,GRANTS,5902352275,1000071456
02.04.2019,HOUSING AND MODERNISATION,PEMBROKE COLLEGE CAMBRIDGE MISSION,"4,500.00",VCS GRANTS,GRANTS,5902352276,1000073444
02.04.2019,HOUSING AND MODERNISATION,ST FAITHS COMMUNITY CENTRE,"5,000.00",VCS GRANTS,GRANTS,5902352263,1039446
02.04.2019,HOUSING HRA,POTTER RAPER AND PARTNERS,"11,786.50",CAPITAL PS (HRA),CONSTRUCTION SITE COSTS,5902352253,1009369
02.04.2019,HOUSING HRA,CALFORD SEADEN LLP,"15,102.65",CAPITAL PS (HRA),CONSTRUCTION FEES  - EXTERNAL,5902352399,1061592
02.04.2019,HOUSING STRATEGY AND OPTIONS,REACH-OUT HOUSING LTD,"1,437.36",HOMELESS PROJECTS,GRANTS,5902352380,1000071129
02.04.2019,LEISURE DIRECTORATE,NPOWER LTD,488.19,CEMETERIES,ELECTRICITY,5902352314,1000078994
02.04.2019,LEISURE DIRECTORATE,NPOWER LTD,547.37,CEMETERIES,ELECTRICITY,5902352367,1000078994
02.04.2019,LEISURE DIRECTORATE,P D CONSTRUCTION LTD,594,CEMETERIES,BUILDING R&M,5902352294,1000000390
02.04.2019,LEISURE DIRECTORATE,P D CONSTRUCTION LTD,"1,780.00",CEMETERIES,BUILDING R&M,5902352298,1000000390
02.04.2019,LEISURE DIRECTORATE,P D CONSTRUCTION LTD,318,CREMATORIUM,OTHER R&M,5902352342,1000000390
02.04.2019,LEISURE DIRECTORATE,P D CONSTRUCTION LTD,"1,480.00",CREMATORIUM,OTHER R&M,5902352289,1000000390
02.04.2019,LEISURE DIRECTORATE,FACULTATIEVE TECHNOLOGIES LTD,"10,438.86",CREMATORIUM,PLANNED MAINTENANCE,5902352365,1000077525
02.04.2019,LEISURE DIRECTORATE,CONWAY AECOM LTD,"32,000.00",SOUTHWARK AREA TEAM,OTHER R&M,2102939570,3000001595
02.04.2019,MODERNISATION HGF,THE KNOWLEDGE ACADEMY LTD,"4,640.00",CORPORATE TRAINING BUDGETS,TRAINING,5902352357,1000064533
02.04.2019,PLANNING AND TRANSPORT,EXACOM SYSTEMS LTD,"8,487.13",S106 & CIL ADMINISTRATION,INFORMATION MANAGEMENT,5902352426,1000077961
02.04.2019,RESIDENT SERVICES,POSTURITE (UK) LTD,331,OPERATIONS/OFFICES ACCOMMODATION,EQUIPMENT PURCHASE & REPAIR,5902352256,11015468
02.04.2019,SOUTHWARK BUILDING SERVICES,LONDON TOOLS LIMITED,360,R & M OVERHEADS,MATERIALS,5902352439,1000003017
02.04.2019,SOUTHWARK BUILDING SERVICES,LONDON TOOLS LIMITED,575,R & M OVERHEADS,MATERIALS,5902352438,1000003017
02.04.2019,SOUTHWARK BUILDING SERVICES,LONDON TOOLS LIMITED,"1,897.50",R & M OVERHEADS,MATERIALS,5902352429,1000003017
02.04.2019,SOUTHWARK BUILDING SERVICES,LONDON TOOLS LIMITED,525,STORES/LOGISTICS,CREDITORS -GR/IR CLEARING ACCOUNT,5902352442,1000003017
02.04.2019,SOUTHWARK BUILDING SERVICES,LONDON TOOLS LIMITED,720,STORES/LOGISTICS,CREDITORS -GR/IR CLEARING ACCOUNT,5902352424,1000003017
02.04.2019,SOUTHWARK BUILDING SERVICES,LONDON TOOLS LIMITED,748.8,STORES/LOGISTICS,CREDITORS -GR/IR CLEARING ACCOUNT,5902352424,1000003017
02.04.2019,SOUTHWARK BUILDING SERVICES,LONDON TOOLS LIMITED,"1,068.00",STORES/LOGISTICS,CREDITORS -GR/IR CLEARING ACCOUNT,5902352421,1000003017
02.04.2019,SOUTHWARK BUILDING SERVICES,LONDON TOOLS LIMITED,"1,180.00",STORES/LOGISTICS,CREDITORS -GR/IR CLEARING ACCOUNT,5902352424,1000003017
02.04.2019,SOUTHWARK BUILDING SERVICES,LONDON TOOLS LIMITED,"1,602.00",STORES/LOGISTICS,CREDITORS -GR/IR CLEARING ACCOUNT,5902352421,1000003017
02.04.2019,SOUTHWARK BUILDING SERVICES,LONDON TOOLS LIMITED,"2,225.00",STORES/LOGISTICS,CREDITORS -GR/IR CLEARING ACCOUNT,5902352418,1000003017
02.04.2019,SOUTHWARK BUILDING SERVICES,LONDON TOOLS LIMITED,"2,800.00",STORES/LOGISTICS,CREDITORS -GR/IR CLEARING ACCOUNT,5902352420,1000003017
02.04.2019,SOUTHWARK BUILDING SERVICES,LONDON TOOLS LIMITED,"3,700.00",STORES/LOGISTICS,CREDITORS -GR/IR CLEARING ACCOUNT,5902352425,1000003017
02.04.2019,SOUTHWARK BUILDING SERVICES,RTS WASTE MANAGEMENT LTD,"1,738.60",VOIDS OVERHEADS,WASTE DISPOSAL CONTRACT,5902352333,1000061248
02.04.2019,SOUTHWARK SCHOOL FOR FUTURE,TROWERS & HAMLINS LLP,446,CAPITAL PS (REGEN),CONSTRUCTION FEES - LEGAL,5902352326,1000016239
02.04.2019,SOUTHWARK SCHOOL FOR FUTURE,TROWERS & HAMLINS LLP,"1,441.00",CAPITAL PS (REGEN),CONSTRUCTION FEES - LEGAL,5902352329,1000016239
02.04.2019,SOUTHWARK SCHOOL FOR FUTURE,TROWERS & HAMLINS LLP,"2,400.90",CAPITAL PS (REGEN),CONSTRUCTION FEES - LEGAL,5902352324,1000016239
03.04.2019,ADULT SOCIAL CARE,TFL TELESALES / OYSTER FULFILMENT,300, LD MGMT & SUPPORT,PUBLIC TRANSPORT,5902352451,1000059727
03.04.2019,ADULT SOCIAL CARE,REDACTED PERSONAL DATA,600,APPOINTEESHIPS,OTHER PAYMENTS FOR CLIENTS,REDACTED,REDACTED
03.04.2019,ADULT SOCIAL CARE,MARCUS AND MARCUS LTD,"4,000.00",LD LTS 18-64,SUPPORTED LIVING,2102939862,1000065913
03.04.2019,ADULT SOCIAL CARE,MARCUS AND MARCUS LTD,"4,800.00",LD LTS 18-64,SUPPORTED LIVING,2102939859,1000065913
03.04.2019,ADULT SOCIAL CARE,MARCUS AND MARCUS LTD,"15,360.00",LD LTS 18-64,SUPPORTED LIVING,2102939860,1000065913
03.04.2019,ADULT SOCIAL CARE,MARCUS AND MARCUS LTD,"17,920.00",LD LTS 18-64,SUPPORTED LIVING,2102939861,1000065913
03.04.2019,ADULT SOCIAL CARE,GUYS & ST THOMAS NHS FOUNDATION TRUST,"1,994.26",REABLEMENT SERVICE,EXTERNAL AGENCIES AND BODIES,5902352452,1765536
03.04.2019,ADULT SOCIAL CARE,GUYS & ST THOMAS NHS FOUNDATION TRUST,"6,440.28",REABLEMENT SERVICE,EXTERNAL AGENCIES AND BODIES,5902352454,1765536
03.04.2019,ADULT SOCIAL CARE,REDACTED PERSONAL DATA,"-4,153.60",SPEC NEEDS CHILDREN,PAYMENTS TO CLIENTS (DIRECT PAYMENTS),REDACTED,REDACTED
03.04.2019,ADULT SOCIAL CARE,REDACTED PERSONAL DATA,"1,171.17",SPEC NEEDS CHILDREN,PAYMENTS TO CLIENTS (DIRECT PAYMENTS),REDACTED,REDACTED
03.04.2019,ADULT SOCIAL CARE,REDACTED PERSONAL DATA,"1,691.67",SPEC NEEDS CHILDREN,PAYMENTS TO CLIENTS (DIRECT PAYMENTS),REDACTED,REDACTED
03.04.2019,ASSET MANAGEMENT,IVAN COFFEY ASSOCIATES LTD,540,DISREPAIR,PAYMENTS FOR LEGAL SERVICES,2102939954,1000071021
03.04.2019,ASSET MANAGEMENT,CHESHIRE ESTATE AND LEGAL LTD,"1,500.00",DISREPAIR,PAYMENTS FOR LEGAL SERVICES,2102939952,1000081908
03.04.2019,ASSET MANAGEMENT,BELSHAW & CURTIN SOLICITORS,"4,500.00",DISREPAIR,PAYMENTS FOR LEGAL SERVICES,2102939953,1767379
03.04.2019,ASSET MANAGEMENT,BELSHAW & CURTIN SOLICITORS,"4,850.00",DISREPAIR,PAYMENTS FOR LEGAL SERVICES,2102939381,1767379
03.04.2019,ASSET MANAGEMENT,CAMBRIDGE HOUSE & TALBOT,"5,005.42",DISREPAIR,PAYMENTS FOR LEGAL SERVICES,2102939955,1139414
03.04.2019,ASSET MANAGEMENT,UNIVERSA LAW LTD,"6,350.00",DISREPAIR,PAYMENTS FOR LEGAL SERVICES,2102939956,1000081466
03.04.2019,ASSET MANAGEMENT,ANTHONY GOLD SOLICITORS,"23,300.00",DISREPAIR,PAYMENTS FOR LEGAL SERVICES,2102939957,1000050198
03.04.2019,CENTRAL FUNCTIONS,ROWANWOOD PROFESSIONAL SERVICES LTD,"43,203.72",ASSET MANAGEMENT SYSTEM,CONSULTANTS SERVICES,5902352494,1000080531
03.04.2019,CENTRAL FUNCTIONS,ZYZA LTD,"1,000.00",COMMERCIAL PROPERTIES,LEGAL FEES & COURT COSTS,2102939363,1000076464
03.04.2019,CHIEF EXECUTIVE,SPORTS AND LEISURE MANAGEMENT LTD,350,CAPITAL PS (LEISURE),CONSTRUCTION,5902352505,1000077862
03.04.2019,CHIEF EXECUTIVE,CUTTLE CONSTRUCTION LTD,"50,729.00",CAPITAL PS (REGEN),CONSTRUCTION,2102939573,3000001695
03.04.2019,CHILDREN'S SERVICES,ZENITH CARS LTD,405,AIS - IHT,HIRED VEHICLES,5902352558,1000070570
03.04.2019,CHILDREN'S SERVICES,LONDON WILDLIFE TRUST,"2,750.00",COMMUNITY LEARNING,GRANTS,5902352525,1832374
03.04.2019,CHILDREN'S SERVICES,HEALTH CONTEXT LTD,275,DISABILITY & HIV,MARKETING & PUBLICITY SERVICES,5902352506,1000081329
03.04.2019,CHILDREN'S SERVICES,NAZMA JALIL,964.55,FAMILY GROUP CONFERENCES,PROFESSIONAL FEES,5902352548,1000081341
03.04.2019,CHILDREN'S SERVICES,WM MORRISON SUPERMARKETS PLC,"1,960.00",FINANCE,EXTERNAL AGENCIES AND BODIES,5902352547,1000040322
03.04.2019,CHILDREN'S SERVICES,REDACTED PERSONAL DATA,263.96,RESIDENCE ORDERS,PAYMENTS TO CARERS,REDACTED,REDACTED
03.04.2019,CHILDREN'S SERVICES,REDACTED PERSONAL DATA,269.08,RESIDENCE ORDERS,PAYMENTS TO CARERS,REDACTED,REDACTED
03.04.2019,CHILDREN'S SERVICES,REDACTED PERSONAL DATA,269.08,RESIDENCE ORDERS,PAYMENTS TO CARERS,REDACTED,REDACTED
03.04.2019,CHILDREN'S SERVICES,REDACTED PERSONAL DATA,276.1,RESIDENCE ORDERS,PAYMENTS TO CARERS,REDACTED,REDACTED
03.04.2019,CHILDREN'S SERVICES,MEDWAY COUNCIL,"23,100.80",SCH TRANS - CONTRACT COST,RECOUPMENT,5902352469,1000021704
03.04.2019,CHILDREN'S SERVICES,REDACTED PERSONAL DATA,269.08,SPECIAL GUARDIANSHIP,PAYMENTS TO CARERS,REDACTED,REDACTED
03.04.2019,CHILDREN'S SERVICES,REDACTED PERSONAL DATA,269.08,SPECIAL GUARDIANSHIP,PAYMENTS TO CARERS,REDACTED,REDACTED
03.04.2019,CHILDREN'S SERVICES,REDACTED PERSONAL DATA,269.08,SPECIAL GUARDIANSHIP,PAYMENTS TO CARERS,REDACTED,REDACTED
03.04.2019,CHILDREN'S SERVICES,REDACTED PERSONAL DATA,269.08,SPECIAL GUARDIANSHIP,PAYMENTS TO CARERS,REDACTED,REDACTED
03.04.2019,CHILDREN'S SERVICES,REDACTED PERSONAL DATA,342.45,SPECIAL GUARDIANSHIP,PAYMENTS TO CARERS,REDACTED,REDACTED
03.04.2019,CHILDREN'S SERVICES,REDACTED PERSONAL DATA,343.05,SPECIAL GUARDIANSHIP,PAYMENTS TO CARERS,REDACTED,REDACTED
03.04.2019,CHILDREN'S SERVICES,REDACTED PERSONAL DATA,356.15,SPECIAL GUARDIANSHIP,PAYMENTS TO CARERS,REDACTED,REDACTED
03.04.2019,CHILDREN'S SERVICES,REDACTED PERSONAL DATA,388.04,SPECIAL GUARDIANSHIP,PAYMENTS TO CARERS,REDACTED,REDACTED
03.04.2019,CHILDREN'S SERVICES,REDACTED PERSONAL DATA,389.34,SPECIAL GUARDIANSHIP,PAYMENTS TO CARERS,REDACTED,REDACTED
03.04.2019,CHILDREN'S SERVICES,REDACTED PERSONAL DATA,403.04,SPECIAL GUARDIANSHIP,PAYMENTS TO CARERS,REDACTED,REDACTED
03.04.2019,CHILDREN'S SERVICES,REDACTED PERSONAL DATA,525,SPECIAL GUARDIANSHIP,PAYMENTS TO CARERS,REDACTED,REDACTED
03.04.2019,CHILDREN'S SERVICES,REDACTED PERSONAL DATA,525,SPECIAL GUARDIANSHIP,PAYMENTS TO CARERS,REDACTED,REDACTED
03.04.2019,CHILDREN'S SERVICES,REDACTED PERSONAL DATA,525,SPECIAL GUARDIANSHIP,PAYMENTS TO CARERS,REDACTED,REDACTED
03.04.2019,CHILDREN'S SERVICES,SOCIETE GENERALE EQUIPMENT FINANCE LTD,295.02,THOMAS CALTON CENTRE,TELEPHONES (LAND LINES),5902352529,1000058395
03.04.2019,COMMUNITIES,REHAN JAMIL PHOTOGRAPHY,300,MAYORAL SUPPORT,BOOKS & PUBLICATIONS,5902352514,1000057529
03.04.2019,COMMUNITIES,FLAMINGO CREATIVE,630,MAYORAL SUPPORT,PRINTING,5902352511,1000044711
03.04.2019,COMMUNITIES,S7 CHAUFFEURS LTD,"1,485.00",MAYORAL SUPPORT,MISCELLANEOUS EXPENSES,5902352503,1000075707
03.04.2019,COMMUNITIES,LEATHERMARKET JMB HOUSING,"3,400.00",TRSIG,GRANTS,5902352466,11182872
03.04.2019,ENVIRONMENT AND LEISURE,MARK BAILEY ASSOCIATES LTD,297.5,CAPITAL PS (LEISURE),"PLANT, MACHINERY & EQUIPMENT ACQUISITION",5902352446,1000061353
03.04.2019,ENVIRONMENT AND LEISURE,STANBURY BUILDING SERVICES LTD,900,CAPITAL PS (LEISURE),CONSTRUCTION MAIN CONTRACT -CERTIFICATED,2102939951,3000001967
03.04.2019,ENVIRONMENT AND LEISURE,MARK BAILEY ASSOCIATES LTD,"15,097.50",CAPITAL PS (LEISURE),"PLANT, MACHINERY & EQUIPMENT ACQUISITION",5902352446,1000061353
03.04.2019,ENVIRONMENT AND LEISURE,CABLE TEST LTD,"21,945.42",CAPITAL PS (LEISURE),CONSTR'N SUB CONTRACT - NON CERTIFICATED,5902352447,1000079183
03.04.2019,ENVIRONMENT AND LEISURE,BORRAS CONSTRUCTION LIMITED,"47,530.00",CAPITAL PS (LEISURE),CONSTRUCTION FEES  - EXTERNAL,2102939938,3000001492
03.04.2019,ENVIRONMENT DIRECTORATE,R G WEBBER LTD,"37,292.00",ENGINEERING CRAFTS,OTHER CONTRACTORS,2102939940,4013944
03.04.2019,ENVIRONMENT DIRECTORATE,CABLE TEST LTD,"1,184.00",LIGHTING RECOVERABLE WORKS,SOUTHWARK DIRECT CHARGES,5902352448,1000079183
03.04.2019,ENVIRONMENT DIRECTORATE,TENNANT UK CLEANING SOLUTIONS LTD,-349,MANAGEMENT TEAM,EQUIPMENT PURCHASE & REPAIR,5902352828,1065589
03.04.2019,ENVIRONMENT DIRECTORATE,TENNANT UK CLEANING SOLUTIONS LTD,349,MANAGEMENT TEAM,EQUIPMENT PURCHASE & REPAIR,5902352827,1065589
03.04.2019,ENVIRONMENT DIRECTORATE,CONWAY AECOM LTD,"6,588.48",TRANSPORT PROJECTS,OTHER CONTRACTORS,5902352532,1000071205
03.04.2019,F & C S EXCLUDING CORPORATE BUDGETS,BDO LLP,"2,083.33",RISK ADMIN,PROFESSIONAL FEES,5902352515,1000057898
03.04.2019,FINANCE & GOVERNANCE,LAND REGISTRY,318,REGENERATION,LEGAL & COURT FEES,6101879402,DIRECT DEBIT PAYMENT
03.04.2019,HOUSING AND MODERNISATION,COMMUNITY SOUTHWARK,"30,000.00",HEALTHWATCH,GRANTS,5902352464,1000018147
03.04.2019,HOUSING AND MODERNISATION,ADVISING COMMUNITIES,"78,345.00",LEGAL GRANTS,EXTERNAL AGENCIES AND BODIES,5902352492,11292649
03.04.2019,HOUSING AND MODERNISATION,AYLESBURY EVERY WOMAN'S CENTRE,"5,250.00",VCS GRANTS,GRANTS,5902352485,1000042216
03.04.2019,HOUSING AND MODERNISATION,SOUTHWARK CITIZENS ADVICE,"5,600.00",VCS GRANTS,GRANTS,5902352476,1874379
03.04.2019,HOUSING AND MODERNISATION,SOUTHWARK TRAVELLERS' ACTION,"5,750.00",VCS GRANTS,GRANTS,5902352489,1000077795
03.04.2019,HOUSING AND MODERNISATION,PECAN LTD,"6,500.00",VCS GRANTS,GRANTS,5902352480,11263114
03.04.2019,HOUSING AND MODERNISATION,PECAN LTD,"7,250.00",VCS GRANTS,GRANTS,5902352479,11263114
03.04.2019,HOUSING AND MODERNISATION,LONDON WILDLIFE TRUST,"7,500.00",VCS GRANTS,GRANTS,5902352475,1832374
03.04.2019,HOUSING AND MODERNISATION,AAINA WOMEN GROUP,"8,018.25",VCS GRANTS,GRANTS,5902352482,1000002442
03.04.2019,HOUSING AND MODERNISATION,SURREY DOCKS FARM PROVIDENT SOCIETY,"10,000.00",VCS GRANTS,GRANTS,5902352481,1000000958
03.04.2019,HOUSING AND MODERNISATION,SWK DAY CTR FOR ASYLUM SEEKERS,"11,330.25",VCS GRANTS,GRANTS,5902352484,1000040491
03.04.2019,HOUSING AND MODERNISATION,BEORMUND COMMUNITY CENTRE,"12,437.25",VCS GRANTS,GRANTS,5902352478,11048982
03.04.2019,HOUSING AND MODERNISATION,THE MANNA CENTRE,"13,750.00",VCS GRANTS,GRANTS,5902352486,1000048508
03.04.2019,HOUSING AND MODERNISATION,SOMALI INTEGRATION & DEVELOPMENT ASSOCIATION,"14,000.00",VCS GRANTS,GRANTS,5902352477,11048946
03.04.2019,HOUSING AND MODERNISATION,SOUTHWARK PENSIONERS CENTRE,"25,855.25",VCS GRANTS,GRANTS,5902352483,1000027831
03.04.2019,HOUSING AND MODERNISATION,COMMUNITY SOUTHWARK,"95,932.50",VCS GRANTS,GRANTS,5902352453,1000018147
03.04.2019,HOUSING STRATEGY AND OPTIONS,RODNEY GOLDSON,"1,419.28",HOMELESS PROJECTS,GRANTS,5902352445,1000082522
03.04.2019,HOUSING STRATEGY AND OPTIONS,REDACTED PERSONAL DATA,"3,000.00",HOMELESS PROJECTS,GRANTS,REDACTED,REDACTED
03.04.2019,LEISURE DIRECTORATE,ERENS,347.15,CANADA WATER LIBRARY,BOOKS & PUBLICATIONS,5902352557,11209254
03.04.2019,LEISURE DIRECTORATE,ERENS,366.15,CANADA WATER LIBRARY,BOOKS & PUBLICATIONS,5902352559,11209254
03.04.2019,LEISURE DIRECTORATE,BENJAMIN OSWALD (UK) HOLDINGS LTD,"1,000.00",CANADA WATER LIBRARY,EQUIPMENT PURCHASE & REPAIR,5902352493,1000047994
03.04.2019,LEISURE DIRECTORATE,BORRAS CONSTRUCTION LIMITED,"60,140.00",CREMATORIUM,BUILDING R&M,2102939939,3000001492
03.04.2019,LEISURE DIRECTORATE,NPOWER,260,EAST STREET LIBRARY,ELECTRICITY,5902352465,1000055441
03.04.2019,LEISURE DIRECTORATE,SPORTS AND LEISURE MANAGEMENT LTD,"1,363.49",FACILITIES MAINTENANCE,BUILDING R&M,5902352510,1000077862
03.04.2019,LEISURE DIRECTORATE,SPORTS AND LEISURE MANAGEMENT LTD,"1,684.00",FACILITIES MAINTENANCE,BUILDING R&M,5902352504,1000077862
03.04.2019,LEISURE DIRECTORATE,SPORTS AND LEISURE MANAGEMENT LTD,"2,680.00",FACILITIES MAINTENANCE,BUILDING R&M,5902352501,1000077862
03.04.2019,LEISURE DIRECTORATE,SPORTS AND LEISURE MANAGEMENT LTD,"3,175.00",FACILITIES MAINTENANCE,BUILDING R&M,5902352501,1000077862
03.04.2019,LEISURE DIRECTORATE,SPORTS AND LEISURE MANAGEMENT LTD,"3,750.00",FACILITIES MAINTENANCE,BUILDING R&M,5902352507,1000077862
03.04.2019,LEISURE DIRECTORATE,SPORTS AND LEISURE MANAGEMENT LTD,"17,118.00",LEISURE INVESTMENT,MARKETING & PUBLICITY SERVICES,5902352512,1000077862
03.04.2019,LEISURE DIRECTORATE,SPORTS AND LEISURE MANAGEMENT LTD,"19,056.00",LEISURE INVESTMENT,MARKETING & PUBLICITY SERVICES,5902352512,1000077862
03.04.2019,LEISURE DIRECTORATE,NPOWER LTD,340.67,PARKS SERVICES DEVELOPMENT,ELECTRICITY,5902352539,1000078994
03.04.2019,LEISURE DIRECTORATE,NPOWER LTD,437.44,PARKS SERVICES DEVELOPMENT,ELECTRICITY,5902352539,1000078994
03.04.2019,PUBLIC HEALTH,HANNAH MAULE-FFINCH,600,STAKEHOLDER ENGAGEMENT,MARKETING & PUBLICITY SERVICES,5902352491,1000034725
03.04.2019,RESIDENT SERVICES,HARROW GREEN LTD,"11,349.27",OPERATIONS/OFFICES ACCOMMODATION,REMOVAL EXPENSES,5902352516,1000076673
03.04.2019,RESIDENT SERVICES,PETER JOLLEY,275,SPECIAL INVESTIGATIONS,LEGAL FEES & COURT COSTS,2102939352,1000082537
03.04.2019,RESIDENT SERVICES,SYNTONIC CONSTRUCTION LTD,272.11,SUPPORTED HOSTELS,BUILDING R&M,5902352530,1000023918
03.04.2019,RESIDENT SERVICES,CHARTWELLS,"4,931.00",SUPPORTED HOSTELS,CATERING MATERIALS & SUPPLIES,5902352535,1000010625
03.04.2019,RESIDENT SERVICES,HOUSEMARK ONLINE SERVICES LTD,"1,038.76",TA ESTATE VOIDS,PROFESSIONAL FEES,5902352552,1000038178
03.04.2019,RESIDENT SERVICES,HOUSEMARK ONLINE SERVICES LTD,"4,339.33",TA ESTATE VOIDS,PROFESSIONAL FEES,5902352552,1000038178
03.04.2019,RESIDENT SERVICES,NPOWER,801.61,TA HOSTELS,ELECTRICITY,5902352457,1000064203
03.04.2019,RESIDENT SERVICES,NPOWER,"1,603.45",TA HOSTELS,ELECTRICITY,5902352531,1000064203
03.04.2019,RESIDENT SERVICES,NPOWER,"1,841.32",TA HOSTELS,ELECTRICITY,5902352458,1000064203
03.04.2019,RESIDENT SERVICES,NPOWER,"2,404.63",TA HOSTELS,ELECTRICITY,5902352534,1000064203
03.04.2019,RESIDENT SERVICES,NPOWER,"2,458.01",TA HOSTELS,ELECTRICITY,5902352536,1000064203
03.04.2019,RESIDENT SERVICES,NPOWER,"2,458.23",TA HOSTELS,ELECTRICITY,5902352455,1000064203
03.04.2019,RESIDENT SERVICES,KINDLY PROPERTIES LTD,"-1,085.00",TA PLACEMENTS,EXTERNAL AGENCIES AND BODIES,5902352712,1000060734
03.04.2019,RESIDENT SERVICES,KINDLY PROPERTIES LTD,"1,085.00",TA PLACEMENTS,EXTERNAL AGENCIES AND BODIES,5902342775,1000060734
03.04.2019,SOUTHWARK BUILDING SERVICES,MULTI-INSTALLATIONS LTD,"2,971.20",BUSINESS SUPPORT,OTHER CONTRACTORS,2102939935,3000000595
03.04.2019,SOUTHWARK BUILDING SERVICES,EMPIRE BUILDERS,"6,209.39",BUSINESS SUPPORT,OTHER CONTRACTORS,2102939936,3000001466
03.04.2019,SOUTHWARK BUILDING SERVICES,GMS ELECTRICAL LTD,"20,289.51",BUSINESS SUPPORT,OTHER CONTRACTORS,2102939934,3000002085
03.04.2019,SOUTHWARK BUILDING SERVICES,NEW IMAGE WINDOWS LTD,"22,460.00",BUSINESS SUPPORT,OTHER CONTRACTORS,2102939950,3000000956
03.04.2019,SOUTHWARK BUILDING SERVICES,FRANKLYN SHAW ASSOCIATES LTD,"33,339.50",BUSINESS SUPPORT,OTHER CONTRACTORS,2102939577,3000001465
03.04.2019,SOUTHWARK BUILDING SERVICES,1st ACTIVE PROPERTY SERVICES LTD,"33,544.18",BUSINESS SUPPORT,OTHER CONTRACTORS,2102939578,3000001655
03.04.2019,SOUTHWARK BUILDING SERVICES,E & E BUILDING SERVICES LTD,"48,524.22",BUSINESS SUPPORT,OTHER CONTRACTORS,2102939937,3000001176
03.04.2019,SOUTHWARK BUILDING SERVICES,TMG TRADING LTD,"49,088.97",BUSINESS SUPPORT,OTHER CONTRACTORS,2102939575,3000002073
03.04.2019,SOUTHWARK BUILDING SERVICES,CRATUS BUILDING SERVICES LIMITED,"199,957.71",BUSINESS SUPPORT,OTHER CONTRACTORS,2102939576,3000001055
04.04.2019,ADULT SOCIAL CARE,REDACTED PERSONAL DATA,400,APPOINTEESHIPS,OTHER PAYMENTS FOR CLIENTS,REDACTED,REDACTED
04.04.2019,ADULT SOCIAL CARE,REDACTED PERSONAL DATA,600,APPOINTEESHIPS,OTHER PAYMENTS FOR CLIENTS,REDACTED,REDACTED
04.04.2019,ADULT SOCIAL CARE,REDACTED PERSONAL DATA,"2,314.02",APPOINTEESHIPS,OTHER PAYMENTS FOR CLIENTS,REDACTED,REDACTED
04.04.2019,ADULT SOCIAL CARE,F A ALBIN AND SONS,"2,822.00",APPOINTEESHIPS,OTHER PAYMENTS FOR CLIENTS,2102940094,11313949
04.04.2019,ADULT SOCIAL CARE,F A ALBIN AND SONS,"3,072.00",APPOINTEESHIPS,OTHER PAYMENTS FOR CLIENTS,2102940092,11313949
04.04.2019,ADULT SOCIAL CARE,F A ALBIN AND SONS,"3,072.00",APPOINTEESHIPS,OTHER PAYMENTS FOR CLIENTS,2102940093,11313949
04.04.2019,ADULT SOCIAL CARE,F A ALBIN AND SONS,"8,185.00",APPOINTEESHIPS,OTHER PAYMENTS FOR CLIENTS,2102940091,11313949
04.04.2019,ADULT SOCIAL CARE,THE NEW SHOOTS,300,LD LTS 18-64,DAYCARE,2102940009,1000073970
04.04.2019,ADULT SOCIAL CARE,ACT TOO LTD,400,LD LTS 18-64,DAYCARE,2102940006,1000053657
04.04.2019,ADULT SOCIAL CARE,CONTACT PROFESSIONALS,465,LD LTS 18-64,SUPPORTED LIVING,2102940010,1000057263
04.04.2019,ADULT SOCIAL CARE,INSPIRE SUPPORT WORKERS LTD,816,LD LTS 18-64,SUPPORTED LIVING,2102940000,1000080725
04.04.2019,ADULT SOCIAL CARE,CONTACT PROFESSIONALS,"1,489.00",LD LTS 18-64,SUPPORTED LIVING,2102940008,1000057263
04.04.2019,ADULT SOCIAL CARE,INSPIRE SUPPORT WORKERS LTD,"1,925.00",LD LTS 18-64,SUPPORTED LIVING,2102940002,1000080725
04.04.2019,ADULT SOCIAL CARE,INSPIRE SUPPORT WORKERS LTD,"1,925.00",LD LTS 18-64,SUPPORTED LIVING,2102940011,1000080725
04.04.2019,ADULT SOCIAL CARE,HEALTH PERSONNEL LTD,"3,676.00",LD LTS 18-64,RESIDENTIAL CARE,2102940012,1000076377
04.04.2019,ADULT SOCIAL CARE,SOUTHERN ADVOCACY SERVICES,260,LD LTS 65+,EXTERNAL AGENCIES AND BODIES,2102940004,1000082031
04.04.2019,ADULT SOCIAL CARE,INSPIRE SUPPORT WORKERS LTD,332,PHY LTS 18-64,HOMECARE - SPOT,2102940007,1000080725
04.04.2019,ADULT SOCIAL CARE,F A ALBIN AND SONS,"2,489.00",PUBLIC FUNERALS S.46,PAYMENTS TO CLIENTS (DIRECT PAYMENTS),2102940090,11313949
04.04.2019,ADULT SOCIAL CARE,MEDACS HOMECARE,"188,658.00",REABLEMENT CONTRACT,HOMECARE - C&V,5902351715,11287415
04.04.2019,ADULT SOCIAL CARE,PEOPLE PLUS,"45,500.00",SPEC NEEDS CHILDREN,EXTERNAL AGENCIES AND BODIES,5902352587,1000076642
04.04.2019,ASSET MANAGEMENT,GATENBY SANDERSON LTD,"4,500.00",DEVELOPMENT DELIVERY,RECRUITMENT ADVERTISING,5902351779,1000061171
04.04.2019,ASSET MANAGEMENT,MALCOLM G SANKEY,270,DISREPAIR,LEGAL FEES & COURT COSTS,2102940040,1000057822
04.04.2019,ASSET MANAGEMENT,STEPHEN EVANS,300,DISREPAIR,LEGAL FEES & COURT COSTS,2102940080,1000043318
04.04.2019,ASSET MANAGEMENT,MALCOLM G SANKEY,360,DISREPAIR,LEGAL FEES & COURT COSTS,2102940038,1000057822
04.04.2019,ASSET MANAGEMENT,MALCOLM G SANKEY,360,DISREPAIR,LEGAL FEES & COURT COSTS,2102940049,1000057822
04.04.2019,ASSET MANAGEMENT,STEPHEN EVANS,375,DISREPAIR,LEGAL FEES & COURT COSTS,2102940081,1000043318
04.04.2019,ASSET MANAGEMENT,MALCOLM G SANKEY,420,DISREPAIR,LEGAL FEES & COURT COSTS,2102940041,1000057822
04.04.2019,ASSET MANAGEMENT,MALCOLM G SANKEY,420,DISREPAIR,LEGAL FEES & COURT COSTS,2102940043,1000057822
04.04.2019,ASSET MANAGEMENT,MALCOLM G SANKEY,420,DISREPAIR,LEGAL FEES & COURT COSTS,2102940048,1000057822
04.04.2019,ASSET MANAGEMENT,MALCOLM G SANKEY,480,DISREPAIR,LEGAL FEES & COURT COSTS,2102940042,1000057822
04.04.2019,ASSET MANAGEMENT,MALCOLM G SANKEY,480,DISREPAIR,LEGAL FEES & COURT COSTS,2102940046,1000057822
04.04.2019,ASSET MANAGEMENT,MALCOLM G SANKEY,480,DISREPAIR,LEGAL FEES & COURT COSTS,2102940047,1000057822
04.04.2019,ASSET MANAGEMENT,STEPHEN EVANS,563,DISREPAIR,LEGAL FEES & COURT COSTS,2102940078,1000043318
04.04.2019,ASSET MANAGEMENT,STEPHEN EVANS,600,DISREPAIR,LEGAL FEES & COURT COSTS,2102940077,1000043318
04.04.2019,ASSET MANAGEMENT,NICHOLAS JOHN GRUNDY,650,DISREPAIR,LEGAL FEES & COURT COSTS,2102940065,1000033799
04.04.2019,ASSET MANAGEMENT,MALCOLM G SANKEY,840,DISREPAIR,LEGAL FEES & COURT COSTS,2102940039,1000057822
04.04.2019,ASSET MANAGEMENT,MALCOLM G SANKEY,960,DISREPAIR,LEGAL FEES & COURT COSTS,2102940037,1000057822
04.04.2019,ASSET MANAGEMENT,MALCOLM G SANKEY,"1,080.00",DISREPAIR,LEGAL FEES & COURT COSTS,2102940045,1000057822
04.04.2019,ASSET MANAGEMENT,MALCOLM G SANKEY,"1,200.00",DISREPAIR,LEGAL FEES & COURT COSTS,2102940036,1000057822
04.04.2019,ASSET MANAGEMENT,NICHOLAS JOHN GRUNDY,"1,200.00",DISREPAIR,LEGAL FEES & COURT COSTS,2102940064,1000033799
04.04.2019,ASSET MANAGEMENT,CHESHIRE ESTATE AND LEGAL LTD,"1,947.22",DISREPAIR,LEGAL FEES & COURT COSTS,2102940019,1000081908
04.04.2019,ASSET MANAGEMENT,CHESHIRE ESTATE AND LEGAL LTD,"2,500.00",DISREPAIR,LEGAL FEES & COURT COSTS,5902352673,1000081908
04.04.2019,ASSET MANAGEMENT,NICHOLAS JOHN GRUNDY,"2,690.00",DISREPAIR,LEGAL FEES & COURT COSTS,2102940066,1000033799
04.04.2019,ASSET MANAGEMENT,OVE ARUP & PARTNERS LTD,"19,811.75",ENG CONTRACTS (NORTH),PROFESSIONAL FEES,5902352598,1000066606
04.04.2019,ASSET MANAGEMENT,GAS & ENVIRONMENTAL SERVICES LTD,327.3,REPAIRS OPERATIONS,EQUIPMENT PURCHASE & REPAIR,5902352638,1000066947
04.04.2019,ASSET MANAGEMENT,GAS & ENVIRONMENTAL SERVICES LTD,"1,176.35",REPAIRS OPERATIONS,EQUIPMENT PURCHASE & REPAIR,5902352639,1000066947
04.04.2019,CENTRAL FUNCTIONS,BLAKENEY LEIGH LTD,"3,525.83",AYLESBURY,PROFESSIONAL FEES,5902352584,1438839
04.04.2019,CENTRAL FUNCTIONS,BLAKENEY LEIGH LTD,"3,767.55",AYLESBURY,PROFESSIONAL FEES,5902352581,1438839
04.04.2019,CENTRAL FUNCTIONS,BLAKENEY LEIGH LTD,"4,934.93",AYLESBURY,PROFESSIONAL FEES,5902352579,1438839
04.04.2019,CHIEF EXECUTIVE,MACE LTD,"7,305.00",CAPITAL PS (REGEN),CONSTRUCTION FEES,5902352696,1000067959
04.04.2019,CHIEF EXECUTIVE,MACE LTD,"8,785.00",CAPITAL PS (REGEN),CONSTRUCTION FEES,5902352695,1000067959
04.04.2019,CHILDREN AND ADULT,STANBURY BUILDING SERVICES LTD,621,CAPITAL PS (EDUCATION),CONSTRUCTION FEES,2102940099,3000001967
04.04.2019,CHILDREN AND ADULT,MLM CONSULTING ENGINEERS LTD,750,CAPITAL PS (EDUCATION),CONSTRUCTION SITE COSTS,5902352616,1000059806
04.04.2019,CHILDREN AND ADULT,FAITHFUL & GOULD,809.72,CAPITAL PS (EDUCATION),CONSTRUCTION FEES - QUANTITY SURVEYOR,5902352575,1000061390
04.04.2019,CHILDREN AND ADULT,CBS MAINTENANCE SERVICES LTD,"2,600.00",CAPITAL PS (EDUCATION),CONSTRUCTION FEES,2102939958,3000001518
04.04.2019,CHILDREN AND ADULT,GALLIFORD TRY CONSTRUCTION (UK) LTD,"3,227.80",CAPITAL PS (EDUCATION),CONSTRUCTION FEES  - EXTERNAL,5902352563,1000027192
04.04.2019,CHILDREN AND ADULT,STANBURY BUILDING SERVICES LTD,"5,650.00",CAPITAL PS (EDUCATION),CONSTRUCTION FEES,2102940099,3000001967
04.04.2019,CHILDREN AND ADULT,FAITHFUL & GOULD,"74,572.57",CAPITAL PS (EDUCATION),CONSTRUCTION FEES,5902352608,1000061390
04.04.2019,CHILDREN AND ADULT,FAITHFUL & GOULD,"74,572.57",CAPITAL PS (EDUCATION),CONSTRUCTION FEES,5902352615,1000061390
04.04.2019,CHILDREN'S SERVICES,NATIONAL DEVELOPMENT TEAM FOR INCLUSION,480,AST,TRAINING,5902352617,1000082358
04.04.2019,CHILDREN'S SERVICES,BESSEMER GRANGE PRIMARY SCHOOL,"20,689.43",CASEWORK SOUTHWARK 0-8,CONTRIBUTION TO PROVISIONS (TP PAYMENTS),2102939968,5001000009
04.04.2019,CHILDREN'S SERVICES,SOFTWARE TRAINING LONDON LTD,"1,500.00",CENTRAL COSTS - SEN,TRAINING,5902352613,1000051334
04.04.2019,CHILDREN'S SERVICES,PAULETTE TAJAH-BELL,"2,381.80",FAMILY GROUP CONFERENCES,PROFESSIONAL FEES,5902352561,1000081337
04.04.2019,CHILDREN'S SERVICES,EMILY RADCLIFFE,300,LEGAL,LEGAL FEES & COURT COSTS,2102940021,1000047317
04.04.2019,CHILDREN'S SERVICES,RICHARD HARRIS,325,LEGAL,LEGAL FEES & COURT COSTS,2102940074,1000075786
04.04.2019,CHILDREN'S SERVICES,RICHARD HARRIS,325,LEGAL,LEGAL FEES & COURT COSTS,2102940075,1000075786
04.04.2019,CHILDREN'S SERVICES,GAYLE BISBEY,375,LEGAL,LEGAL FEES & COURT COSTS,2102940025,1000074738
04.04.2019,CHILDREN'S SERVICES,GAYLE BISBEY,375,LEGAL,LEGAL FEES & COURT COSTS,2102940027,1000074738
04.04.2019,CHILDREN'S SERVICES,TOM RESTALL,400,LEGAL,LEGAL FEES & COURT COSTS,2102940085,1000063020
04.04.2019,CHILDREN'S SERVICES,REDACTED PERSONAL DATA,450,LEGAL,LEGAL FEES & COURT COSTS,REDACTED,REDACTED
04.04.2019,CHILDREN'S SERVICES,MELANIE NAZARETH,450,LEGAL,LEGAL FEES & COURT COSTS,2102940061,1000044248
04.04.2019,CHILDREN'S SERVICES,MELANIE NAZARETH,450,LEGAL,LEGAL FEES & COURT COSTS,2102940087,1000044248
04.04.2019,CHILDREN'S SERVICES,OLIVER MILLINGTON,475,LEGAL,LEGAL FEES & COURT COSTS,2102940069,1000051055
04.04.2019,CHILDREN'S SERVICES,OLIVER MILLINGTON,475,LEGAL,LEGAL FEES & COURT COSTS,2102940070,1000051055
04.04.2019,CHILDREN'S SERVICES,PHILIPPA PARRY-JONES,475,LEGAL,LEGAL FEES & COURT COSTS,2102940072,1000081285
04.04.2019,CHILDREN'S SERVICES,SARAH HUNWICK,475,LEGAL,LEGAL FEES & COURT COSTS,2102940076,1000073789
04.04.2019,CHILDREN'S SERVICES,THOMAS JONES,650,LEGAL,LEGAL FEES & COURT COSTS,2102940082,1000081619
04.04.2019,CHILDREN'S SERVICES,THOMAS JONES,650,LEGAL,LEGAL FEES & COURT COSTS,2102940083,1000081619
04.04.2019,CHILDREN'S SERVICES,MELANIE NAZARETH,675,LEGAL,LEGAL FEES & COURT COSTS,2102940058,1000044248
04.04.2019,CHILDREN'S SERVICES,MELANIE NAZARETH,675,LEGAL,LEGAL FEES & COURT COSTS,2102940059,1000044248
04.04.2019,CHILDREN'S SERVICES,MATTHEW STOTT,700,LEGAL,LEGAL FEES & COURT COSTS,2102940054,1000068749
04.04.2019,CHILDREN'S SERVICES,MATTHEW STOTT,700,LEGAL,LEGAL FEES & COURT COSTS,2102940055,1000068749
04.04.2019,CHILDREN'S SERVICES,MATTHEW STOTT,700,LEGAL,LEGAL FEES & COURT COSTS,2102940056,1000068749
04.04.2019,CHILDREN'S SERVICES,FRANCIS HOAR,750,LEGAL,LEGAL FEES & COURT COSTS,2102940024,1000068759
04.04.2019,CHILDREN'S SERVICES,MELANIE NAZARETH,"1,125.00",LEGAL,LEGAL FEES & COURT COSTS,2102940057,1000044248
04.04.2019,CHILDREN'S SERVICES,EMILY RADCLIFFE,"1,350.00",LEGAL,LEGAL FEES & COURT COSTS,2102940023,1000047317
04.04.2019,CHILDREN'S SERVICES,MATTHEW STOTT,"1,650.00",LEGAL,LEGAL FEES & COURT COSTS,2102940052,1000068749
04.04.2019,CHILDREN'S SERVICES,EMILY RADCLIFFE,"3,375.00",LEGAL,LEGAL FEES & COURT COSTS,2102940022,1000047317
04.04.2019,CHILDREN'S SERVICES,OLIVER MILLINGTON,"7,250.00",LEGAL,LEGAL FEES & COURT COSTS,2102940071,1000051055
04.04.2019,CHILDREN'S SERVICES,PAULETTE TAJAH-BELL,510,LIFELONG LINKS,PROFESSIONAL FEES,5902352560,1000081337
04.04.2019,CHILDREN'S SERVICES,LONDON BOROUGH OF BROMLEY,361.62,SCH TRANS - CONTRACT COST,RECOUPMENT,5902352526,1061538
04.04.2019,CHILDREN'S SERVICES,ROYAL BOROUGH OF GREENWICH,"8,005.08",SCH TRANS - CONTRACT COST,RECOUPMENT,5902352569,1000030426
04.04.2019,CHILDREN'S SERVICES,ROYAL BOROUGH OF GREENWICH,"10,252.12",SCH TRANS - CONTRACT COST,RECOUPMENT,5902352569,1000030426
04.04.2019,COMMUNITIES,TUTORCARE LTD,445,TENANTS FUND,TRAINING,5902352694,1000075007
04.04.2019,COMMUNITIES,MANOR ESTATE T&RA,"1,000.00",TENANTS FUND,GRANTS,5902351626,1000078115
04.04.2019,CUSTOMER EXPERIENCE,ROL SOLUTIONS LTD,"2,220.58",PECKHAM MSSP,HARDWARE,5902352704,1000069512
04.04.2019,CUSTOMER EXPERIENCE,PLAN LONDON LTD,"2,310.40",SALES & ACQUISITIONS,PROFESSIONAL FEES,5902352565,1000056065
04.04.2019,CUSTOMER EXPERIENCE HGF,ACCESS INDEPENDENT LTD,"2,635.75",BLUE BADGES,PROFESSIONAL FEES,5902351959,1000059141
04.04.2019,CUSTOMER EXPERIENCE HGF,RENT CONNECT HOUSING LTD,"26,056.40",NIGHTLY TA (NSC),EXTERNAL AGENCIES AND BODIES,5902352714,1000074815
04.04.2019,CUSTOMER EXPERIENCE HGF,WEQUAR AHMAD & POOJA AHMAD,"1,000.00",PSL (SOCIAL LETTINGS),EXTERNAL AGENCIES AND BODIES,2102940088,1000054171
04.04.2019,CUSTOMER EXPERIENCE HGF,PESH FLOWERS,705,REGISTRARS,OFFICE EXPENSES,5902351274,1441954
04.04.2019,ENVIRONMENT AND LEISURE,CONNICK TREE CARE REIGATE LTD,810,CAPITAL PS (LEISURE),CONSTRUCTION FEES  - EXTERNAL,5902352124,1000070069
04.04.2019,ENVIRONMENT AND LEISURE,STREET TREE CARE LTD,"2,216.00",CAPITAL PS (LEISURE),CONSTRUCTION FEES - INTERNAL,5902352580,1000055901
04.04.2019,ENVIRONMENT AND LEISURE,PUBLIC WORKS LTD,"8,375.00",CAPITAL PS (LEISURE),CONSTR'N SUB CONTRACT - NON CERTIFICATED,5902352576,1000082092
04.04.2019,ENVIRONMENT DIRECTORATE,LONDON HIRE LIMITED,274,COMMERCIAL VEH CTRL A/C,HIRED VEHICLES,5902352649,1383812
04.04.2019,ENVIRONMENT DIRECTORATE,LONDON HIRE LIMITED,495,COMMERCIAL VEH CTRL A/C,HIRED VEHICLES,5902352640,1383812
04.04.2019,ENVIRONMENT DIRECTORATE,LONDON HIRE LIMITED,580,COMMERCIAL VEH CTRL A/C,HIRED VEHICLES,5902352650,1383812
04.04.2019,ENVIRONMENT DIRECTORATE,LONDON HIRE LIMITED,645,COMMERCIAL VEH CTRL A/C,HIRED VEHICLES,5902352643,1383812
04.04.2019,ENVIRONMENT DIRECTORATE,LONDON HIRE LIMITED,675,COMMERCIAL VEH CTRL A/C,HIRED VEHICLES,5902352644,1383812
04.04.2019,ENVIRONMENT DIRECTORATE,LONDON HIRE LIMITED,679,COMMERCIAL VEH CTRL A/C,HIRED VEHICLES,5902352654,1383812
04.04.2019,ENVIRONMENT DIRECTORATE,LONDON HIRE LIMITED,712.34,COMMERCIAL VEH CTRL A/C,HIRED VEHICLES,5902352636,1383812
04.04.2019,ENVIRONMENT DIRECTORATE,LONDON HIRE LIMITED,"1,600.00",COMMERCIAL VEH CTRL A/C,HIRED VEHICLES,5902352647,1383812
04.04.2019,ENVIRONMENT DIRECTORATE,LONDON HIRE LIMITED,"1,910.00",COMMERCIAL VEH CTRL A/C,HIRED VEHICLES,5902352653,1383812
04.04.2019,ENVIRONMENT DIRECTORATE,LONDON HIRE LIMITED,"2,578.02",COMMERCIAL VEH CTRL A/C,HIRED VEHICLES,5902352634,1383812
04.04.2019,ENVIRONMENT DIRECTORATE,LONDON HIRE LIMITED,"3,520.00",COMMERCIAL VEH CTRL A/C,HIRED VEHICLES,5902352645,1383812
04.04.2019,ENVIRONMENT DIRECTORATE,LONDON HIRE LIMITED,"15,437.35",COMMERCIAL VEH CTRL A/C,HIRED VEHICLES,5902352642,1383812
04.04.2019,ENVIRONMENT DIRECTORATE,NICHOLAS HAM,800,DRAINAGE RECOVERABLE WORKS,LEGAL FEES & COURT COSTS,2102940067,1000068994
04.04.2019,ENVIRONMENT DIRECTORATE,AMETHYST HORTICULTURE LTD,"2,312.90",GROUNDS MAINTENANCE - GENERAL,MATERIALS,5902351690,1000054623
04.04.2019,ENVIRONMENT DIRECTORATE,THE ALBANY 2001 COMPANY,262.8,HEAD OF SERVICE,REFRESHMENTS FOR MEETINGS,5902352687,1000052402
04.04.2019,ENVIRONMENT DIRECTORATE,C S G (USHERS) LTD,"41,410.00",NON HOUSING GROUNDS,OTHER CONTRACTORS,5902352657,1000073203
04.04.2019,ENVIRONMENT DIRECTORATE,MOBILEWORXS LTD,"1,297.50",PEST CONTROL,SOFTWARE,5902351483,1000072034
04.04.2019,ENVIRONMENT DIRECTORATE,WSP UK LTD,"6,396.81",TRANSPORT PROJECTS,OTHER CONTRACTORS,5902352255,1000054214
04.04.2019,F & C S EXCLUDING CORPORATE BUDGETS,DSI BILLING SERVICES LTD,"1,793.94",ADMINISTRATIVE SUPPORT,POSTAGES,5902352719,1000058640
04.04.2019,F & C S EXCLUDING CORPORATE BUDGETS,LONDON BOROUGH OF LAMBETH,"10,000.00",PROJECTS,OTHER EXTERNAL BODIES GRANTS & CONTRIBUTIONS,5902352690,1000082496
04.04.2019,F & C S EXCLUDING CORPORATE BUDGETS,LONDON BOROUGH OF LAMBETH,"62,000.00",PROJECTS,OTHER EXTERNAL BODIES GRANTS & CONTRIBUTIONS,5902352690,1000082496
04.04.2019,HOUSING GENERAL FUND,AJM ADAPTIONS LTD,"1,250.00",CAPITAL PS (HOUSING GF),CAPITAL GRANTS,5902352660,1000080297
04.04.2019,HOUSING GENERAL FUND,ORANGEMAPLE LTD,"42,510.84",CAPITAL PS (STRAT SERV),ICT ACQUISITION,5902352281,1000082406
04.04.2019,HOUSING HRA,COBAL SIGN SYSTEMS LTD,"1,717.32",CAPITAL PS (HRA),CONSTRUCTION FEES,5902352572,1000078618
04.04.2019,HOUSING HRA,C&C BUILDERS LTD,"6,075.00",CAPITAL PS (HRA),CONST'N MAIN CONTRACT - NON CERTIFICATED,2102940097,3000001986
04.04.2019,HOUSING HRA,C&C BUILDERS LTD,"6,260.00",CAPITAL PS (HRA),CONST'N MAIN CONTRACT - NON CERTIFICATED,2102940096,3000001986
04.04.2019,HOUSING HRA,3MS GOLD SERVICES LTD,"6,465.00",CAPITAL PS (HRA),CONST'N MAIN CONTRACT - NON CERTIFICATED,2102940098,3000001256
04.04.2019,HOUSING HRA,C&C BUILDERS LTD,"7,815.00",CAPITAL PS (HRA),CONST'N MAIN CONTRACT - NON CERTIFICATED,2102940095,3000001986
04.04.2019,HOUSING HRA,OCO LIMITED,"675,263.99",PAYMENTS CONTROL ACCOUNT - OCO,MANUAL CREDITORS,5902352567,1006066
04.04.2019,HOUSING HRA,SPOKEMEAD MAINTENANCE LTD,"133,925.12",PAYMENTS CONTROL ACCOUNT - SPOKEMEAD,MANUAL CREDITORS,5902351656,1000059211
04.04.2019,LEISURE DIRECTORATE,YOUTH SPORT TRUST,616,COMMUNITY SPORTS DEVELOPMENT,EQUIPMENT PURCHASE & REPAIR,5902352419,1000081296
04.04.2019,LEISURE DIRECTORATE,THE ALBANY 2001 COMPANY,273.75,DIRECTOR OF LEISURE,REFRESHMENTS FOR MEETINGS,5902352685,1000052402
04.04.2019,LEISURE DIRECTORATE,NPOWER LTD,408.11,PARKS SERVICES DEVELOPMENT,ELECTRICITY,5902352730,1000078994
04.04.2019,LEISURE DIRECTORATE,NPOWER LTD,"2,588.97",PARKS SERVICES DEVELOPMENT,ELECTRICITY,5902352726,1000078994
04.04.2019,LEISURE DIRECTORATE,W F HOWES LTD,"1,498.00",STOCK SERVICES,SUBSCRIPTIONS,5902352708,1000013356
04.04.2019,LEISURE DIRECTORATE,W F HOWES LTD,"1,773.00",STOCK SERVICES,SUBSCRIPTIONS,5902352706,1000013356
04.04.2019,LEISURE DIRECTORATE,W F HOWES LTD,"2,203.00",STOCK SERVICES,SUBSCRIPTIONS,5902352708,1000013356
04.04.2019,LEISURE DIRECTORATE,INFINITY NETWORKS LTD,427,TEMPORARY NEWINGTON,COMMS & COMPUTING CONTRACT CHARGES,5902352594,1000035571
04.04.2019,LEISURE DIRECTORATE,THE CONSERVATION VOLUNTEERS,591,TREES O'HEADS,PROFESSIONAL FEES,5902351875,1872821
04.04.2019,MODERNISATION HGF,ELIESHA TRAINING LTD,"1,935.00",ILM COSTS,TRAINING,5902352034,1000079900
04.04.2019,MODERNISATION HGF,PSI TALENT MEASUREMENT (UK) LTD,272,OCCUPATIONAL ASSESSMENT,EQUIPMENT PURCHASE & REPAIR,5902352120,1000008858
04.04.2019,MODERNISATION HGF,PSI TALENT MEASUREMENT (UK) LTD,498.2,OCCUPATIONAL ASSESSMENT,EQUIPMENT PURCHASE & REPAIR,5902352118,1000008858
04.04.2019,MODERNISATION HGF,KORN FERRY HAY GROUP LTD,"10,350.00",SUPPORT COSTS,PAYMENTS FOR PERSONNEL MANAGEMENT SERVS,5902351203,1000079084
04.04.2019,MODERNISATION HGF,COMENSURA LTD,"554,665.82",WEEKLY PAYMENTS,AGENCY STAFF,5902352717,1000051261
04.04.2019,PLANNING AND TRANSPORT,SOUTHWARK NEWSPAPER LTD,384,PLANNING POLICY TEAM,MISCELLANEOUS EXPENSES,5902352577,1556957
04.04.2019,PLANNING AND TRANSPORT,DANIEL KOLINSKY,"1,750.00",S106 & CIL ADMINISTRATION,LEGAL FEES & COURT COSTS,2102940020,1000040369
04.04.2019,PROPERTY SERVICES,ALI EKBER BULUT,"1,750.00",CPHA  MANAGED PROPERTIES,RENTS,2102940100,1000080799
04.04.2019,PUBLIC HEALTH,JAMES HULME,"5,000.00",OKR MASTER PLANNING,MARKETING & PUBLICITY SERVICES,5902352604,1000081267
04.04.2019,PUBLIC HEALTH,RED R DESIGN,"1,645.00",PROFESSIONAL SERVICES (GENERAL),MARKETING & PUBLICITY SERVICES,5902352573,1000035984
04.04.2019,RESIDENT SERVICES,LISA CLARKE,275,OPERATIONS/OFFICES ACCOMMODATION,LEGAL FEES & COURT COSTS,2102940035,1000030215
04.04.2019,RESIDENT SERVICES,NICHOLAS JOHN GRUNDY,"1,925.00",OPERATIONS/OFFICES ACCOMMODATION,LEGAL FEES & COURT COSTS,2102940063,1000033799
04.04.2019,SOUTHWARK BUILDING SERVICES,SMI GROUP,507,R & M OVERHEADS,"CLOTHING, UNIFORMS & LAUNDRY",5902352659,1000076606
04.04.2019,SOUTHWARK BUILDING SERVICES,LONDON TOOLS LIMITED,253.5,STORES/LOGISTICS,CREDITORS -GR/IR CLEARING ACCOUNT,5902352733,1000003017
04.04.2019,SOUTHWARK BUILDING SERVICES,AKW MEDI-CARE LTD,374.9,STORES/LOGISTICS,CREDITORS -GR/IR CLEARING ACCOUNT,5902352676,1000047103
04.04.2019,SOUTHWARK BUILDING SERVICES,LONDON TOOLS LIMITED,375.9,STORES/LOGISTICS,CREDITORS -GR/IR CLEARING ACCOUNT,5902352734,1000003017
04.04.2019,SOUTHWARK BUILDING SERVICES,LONDON TOOLS LIMITED,486,STORES/LOGISTICS,CREDITORS -GR/IR CLEARING ACCOUNT,5902352735,1000003017
04.04.2019,SOUTHWARK BUILDING SERVICES,AKW MEDI-CARE LTD,616.14,STORES/LOGISTICS,CREDITORS -GR/IR CLEARING ACCOUNT,5902352676,1000047103
04.04.2019,SOUTHWARK BUILDING SERVICES,LONDON TOOLS LIMITED,"2,800.00",STORES/LOGISTICS,CREDITORS -GR/IR CLEARING ACCOUNT,5902352710,1000003017
04.04.2019,SOUTHWARK BUILDING SERVICES,PEARSON GLAZING LIMITED,582.44,WALWORTH TM 2 DAY TO DAY - GLAZIER,MATERIALS,5902352665,1891977
04.04.2019,SUSTAINABILITY & BUSINESS DEVELOPMENT,WAYNE BEGLAN,"1,110.00",HOUSING MANAGEMENT RECHARGE,LEGAL FEES & COURT COSTS,2102940086,1000069107
05.04.2019,ADULT SOCIAL CARE,REDACTED PERSONAL DATA,488,APPOINTEESHIPS,OTHER PAYMENTS FOR CLIENTS,REDACTED,REDACTED
05.04.2019,ADULT SOCIAL CARE,THE CAMDEN SOCIETY (SOCIAL CARE),340.08,LD LTS 18-64,DAYCARE,2102940355,1000036369
05.04.2019,ADULT SOCIAL CARE,THE CAMDEN SOCIETY (SOCIAL CARE),384,LD LTS 18-64,DAYCARE,2102940293,1000036369
05.04.2019,ADULT SOCIAL CARE,THE CAMDEN SOCIETY (SOCIAL CARE),465.6,LD LTS 18-64,DAYCARE,2102940287,1000036369
05.04.2019,ADULT SOCIAL CARE,THE CAMDEN SOCIETY (SOCIAL CARE),465.6,LD LTS 18-64,DAYCARE,2102940297,1000036369
05.04.2019,ADULT SOCIAL CARE,THE CAMDEN SOCIETY (SOCIAL CARE),465.6,LD LTS 18-64,DAYCARE,2102940381,1000036369
05.04.2019,ADULT SOCIAL CARE,THE CAMDEN SOCIETY (SOCIAL CARE),480,LD LTS 18-64,DAYCARE,2102940371,1000036369
05.04.2019,ADULT SOCIAL CARE,THE CAMDEN SOCIETY (SOCIAL CARE),599.36,LD LTS 18-64,DAYCARE,2102940289,1000036369
05.04.2019,ADULT SOCIAL CARE,THE CAMDEN SOCIETY (SOCIAL CARE),609.6,LD LTS 18-64,DAYCARE,2102940339,1000036369
05.04.2019,ADULT SOCIAL CARE,THE CAMDEN SOCIETY (SOCIAL CARE),612,LD LTS 18-64,DAYCARE,2102940389,1000036369
05.04.2019,ADULT SOCIAL CARE,THE CAMDEN SOCIETY (SOCIAL CARE),674.16,LD LTS 18-64,DAYCARE,2102940295,1000036369
05.04.2019,ADULT SOCIAL CARE,THE CAMDEN SOCIETY (SOCIAL CARE),676.8,LD LTS 18-64,DAYCARE,2102940369,1000036369
05.04.2019,ADULT SOCIAL CARE,THE CAMDEN SOCIETY (SOCIAL CARE),704,LD LTS 18-64,DAYCARE,2102940331,1000036369
05.04.2019,ADULT SOCIAL CARE,THE CAMDEN SOCIETY (SOCIAL CARE),704,LD LTS 18-64,DAYCARE,2102940383,1000036369
05.04.2019,ADULT SOCIAL CARE,THE CAMDEN SOCIETY (SOCIAL CARE),705.6,LD LTS 18-64,DAYCARE,2102940337,1000036369
05.04.2019,ADULT SOCIAL CARE,THE CAMDEN SOCIETY (SOCIAL CARE),705.6,LD LTS 18-64,DAYCARE,2102940341,1000036369
05.04.2019,ADULT SOCIAL CARE,THE CAMDEN SOCIETY (SOCIAL CARE),753.6,LD LTS 18-64,DAYCARE,2102940301,1000036369
05.04.2019,ADULT SOCIAL CARE,THE CAMDEN SOCIETY (SOCIAL CARE),753.6,LD LTS 18-64,DAYCARE,2102940323,1000036369
05.04.2019,ADULT SOCIAL CARE,THE CAMDEN SOCIETY (SOCIAL CARE),753.6,LD LTS 18-64,DAYCARE,2102940363,1000036369
05.04.2019,ADULT SOCIAL CARE,THE CAMDEN SOCIETY (SOCIAL CARE),753.6,LD LTS 18-64,DAYCARE,2102940379,1000036369
05.04.2019,ADULT SOCIAL CARE,THE CAMDEN SOCIETY (SOCIAL CARE),897.6,LD LTS 18-64,DAYCARE,2102940325,1000036369
05.04.2019,ADULT SOCIAL CARE,THE CAMDEN SOCIETY (SOCIAL CARE),903.6,LD LTS 18-64,DAYCARE,2102940291,1000036369
05.04.2019,ADULT SOCIAL CARE,THE CAMDEN SOCIETY (SOCIAL CARE),960,LD LTS 18-64,DAYCARE,2102940303,1000036369
05.04.2019,ADULT SOCIAL CARE,THE CAMDEN SOCIETY (SOCIAL CARE),960,LD LTS 18-64,DAYCARE,2102940347,1000036369
05.04.2019,ADULT SOCIAL CARE,THE CAMDEN SOCIETY (SOCIAL CARE),988,LD LTS 18-64,DAYCARE,2102940313,1000036369
05.04.2019,ADULT SOCIAL CARE,THE CAMDEN SOCIETY (SOCIAL CARE),988,LD LTS 18-64,DAYCARE,2102940375,1000036369
05.04.2019,ADULT SOCIAL CARE,THE CAMDEN SOCIETY (SOCIAL CARE),"1,056.00",LD LTS 18-64,DAYCARE,2102940385,1000036369
05.04.2019,ADULT SOCIAL CARE,THE CAMDEN SOCIETY (SOCIAL CARE),"1,128.00",LD LTS 18-64,DAYCARE,2102940317,1000036369
05.04.2019,ADULT SOCIAL CARE,THE CAMDEN SOCIETY (SOCIAL CARE),"1,128.00",LD LTS 18-64,DAYCARE,2102940343,1000036369
05.04.2019,ADULT SOCIAL CARE,THE CAMDEN SOCIETY (SOCIAL CARE),"1,160.57",LD LTS 18-64,DAYCARE,2102940321,1000036369
05.04.2019,ADULT SOCIAL CARE,THE CAMDEN SOCIETY (SOCIAL CARE),"1,160.57",LD LTS 18-64,DAYCARE,2102940351,1000036369
05.04.2019,ADULT SOCIAL CARE,THE CAMDEN SOCIETY (SOCIAL CARE),"1,348.00",LD LTS 18-64,DAYCARE,2102940319,1000036369
05.04.2019,ADULT SOCIAL CARE,THE CAMDEN SOCIETY (SOCIAL CARE),"1,348.00",LD LTS 18-64,DAYCARE,2102940353,1000036369
05.04.2019,ADULT SOCIAL CARE,THE CAMDEN SOCIETY (SOCIAL CARE),"1,348.00",LD LTS 18-64,DAYCARE,2102940373,1000036369
05.04.2019,ADULT SOCIAL CARE,THE CAMDEN SOCIETY (SOCIAL CARE),"1,408.00",LD LTS 18-64,DAYCARE,2102940329,1000036369
05.04.2019,ADULT SOCIAL CARE,THE CAMDEN SOCIETY (SOCIAL CARE),"1,451.52",LD LTS 18-64,DAYCARE,2102940315,1000036369
05.04.2019,ADULT SOCIAL CARE,THE CAMDEN SOCIETY (SOCIAL CARE),"1,473.60",LD LTS 18-64,DAYCARE,2102940367,1000036369
05.04.2019,ADULT SOCIAL CARE,THE CAMDEN SOCIETY (SOCIAL CARE),"1,500.00",LD LTS 18-64,DAYCARE,2102940345,1000036369
05.04.2019,ADULT SOCIAL CARE,THE CAMDEN SOCIETY (SOCIAL CARE),"1,564.00",LD LTS 18-64,DAYCARE,2102940307,1000036369
05.04.2019,ADULT SOCIAL CARE,THE CAMDEN SOCIETY (SOCIAL CARE),"1,634.70",LD LTS 18-64,DAYCARE,2102940305,1000036369
05.04.2019,ADULT SOCIAL CARE,THE CAMDEN SOCIETY (SOCIAL CARE),"1,668.00",LD LTS 18-64,DAYCARE,2102940361,1000036369
05.04.2019,ADULT SOCIAL CARE,THE CAMDEN SOCIETY (SOCIAL CARE),"1,760.00",LD LTS 18-64,DAYCARE,2102940309,1000036369
05.04.2019,ADULT SOCIAL CARE,THE CAMDEN SOCIETY (SOCIAL CARE),"1,760.00",LD LTS 18-64,DAYCARE,2102940377,1000036369
05.04.2019,ADULT SOCIAL CARE,THE CAMDEN SOCIETY (SOCIAL CARE),"1,824.40",LD LTS 18-64,DAYCARE,2102940311,1000036369
05.04.2019,ADULT SOCIAL CARE,THE CAMDEN SOCIETY (SOCIAL CARE),"1,848.00",LD LTS 18-64,DAYCARE,2102940327,1000036369
05.04.2019,ADULT SOCIAL CARE,THE CAMDEN SOCIETY (SOCIAL CARE),"1,848.00",LD LTS 18-64,DAYCARE,2102940357,1000036369
05.04.2019,ADULT SOCIAL CARE,THE CAMDEN SOCIETY (SOCIAL CARE),"2,000.00",LD LTS 18-64,DAYCARE,2102940299,1000036369
05.04.2019,ADULT SOCIAL CARE,THE CAMDEN SOCIETY (SOCIAL CARE),"2,160.00",LD LTS 18-64,DAYCARE,2102940359,1000036369
05.04.2019,ADULT SOCIAL CARE,THE CAMDEN SOCIETY (SOCIAL CARE),"2,374.00",LD LTS 18-64,DAYCARE,2102940335,1000036369
05.04.2019,ADULT SOCIAL CARE,THE CAMDEN SOCIETY (SOCIAL CARE),"2,448.00",LD LTS 18-64,DAYCARE,2102940349,1000036369
05.04.2019,ADULT SOCIAL CARE,THE CAMDEN SOCIETY (SOCIAL CARE),"2,489.68",LD LTS 18-64,DAYCARE,2102940285,1000036369
05.04.2019,ADULT SOCIAL CARE,PROFAD CARE AGENCY,"3,124.80",LD LTS 18-64,HOMECARE - SPOT,2102940467,1000079032
05.04.2019,ADULT SOCIAL CARE,THE CAMDEN SOCIETY (SOCIAL CARE),897.6,LD LTS 65+,DAYCARE,2102940387,1000036369
05.04.2019,ADULT SOCIAL CARE,PROFAD CARE AGENCY,"1,171.80",MEM LTS 65+,HOMECARE - SPOT,2102940531,1000079032
05.04.2019,ADULT SOCIAL CARE,PROFAD CARE AGENCY,"1,264.80",MEM LTS 65+,HOMECARE - SPOT,2102940625,1000079032
05.04.2019,ADULT SOCIAL CARE,WESTMINSTER HOMECARE LTD,"1,532.16",MEM LTS 65+,HOMECARE - SPOT,2102940427,1000075287
05.04.2019,ADULT SOCIAL CARE,WESTMINSTER HOMECARE LTD,984.96,MEM STS 65+,HOMECARE - IC,2102940415,1000075287
05.04.2019,ADULT SOCIAL CARE,PROFAD CARE AGENCY,260.4,MH LTS 18-64,SUPPORTED LIVING,2102940507,1000079032
05.04.2019,ADULT SOCIAL CARE,PROFAD CARE AGENCY,"3,124.80",MH LTS 18-64,HOMECARE - SPOT,2102940601,1000079032
05.04.2019,ADULT SOCIAL CARE,PROFAD CARE AGENCY,520.8,MH LTS 65+,HOMECARE - SPOT,2102940597,1000079032
05.04.2019,ADULT SOCIAL CARE,PROFAD CARE AGENCY,"2,422.65",MH LTS 65+,HOMECARE - SPOT,2102940501,1000079032
05.04.2019,ADULT SOCIAL CARE,PROFAD CARE AGENCY,316.2,PHY LTS 18-64,HOMECARE - SPOT,2102940483,1000079032
05.04.2019,ADULT SOCIAL CARE,PROFAD CARE AGENCY,353.4,PHY LTS 18-64,HOMECARE - SPOT,2102940511,1000079032
05.04.2019,ADULT SOCIAL CARE,PROFAD CARE AGENCY,390.6,PHY LTS 18-64,HOMECARE - SPOT,2102940595,1000079032
05.04.2019,ADULT SOCIAL CARE,PROFAD CARE AGENCY,520.8,PHY LTS 18-64,HOMECARE - SPOT,2102940471,1000079032
05.04.2019,ADULT SOCIAL CARE,PROFAD CARE AGENCY,534.75,PHY LTS 18-64,HOMECARE - SPOT,2102940481,1000079032
05.04.2019,ADULT SOCIAL CARE,PROFAD CARE AGENCY,539.4,PHY LTS 18-64,HOMECARE - SPOT,2102940569,1000079032
05.04.2019,ADULT SOCIAL CARE,PROFAD CARE AGENCY,632.4,PHY LTS 18-64,HOMECARE - SPOT,2102940539,1000079032
05.04.2019,ADULT SOCIAL CARE,THE CAMDEN SOCIETY (SOCIAL CARE),705.6,PHY LTS 18-64,DAYCARE,2102940365,1000036369
05.04.2019,ADULT SOCIAL CARE,PROFAD CARE AGENCY,706.8,PHY LTS 18-64,HOMECARE - SPOT,2102940477,1000079032
05.04.2019,ADULT SOCIAL CARE,PROFAD CARE AGENCY,725.4,PHY LTS 18-64,HOMECARE - SPOT,2102940631,1000079032
05.04.2019,ADULT SOCIAL CARE,WESTMINSTER HOMECARE LTD,889.2,PHY LTS 18-64,HOMECARE - SPOT,2102940401,1000075287
05.04.2019,ADULT SOCIAL CARE,WESTMINSTER HOMECARE LTD,"1,988.16",PHY LTS 18-64,HOMECARE - SPOT,2102940419,1000075287
05.04.2019,ADULT SOCIAL CARE,WESTMINSTER HOMECARE LTD,"2,343.84",PHY LTS 18-64,HOMECARE - SPOT,2102940445,1000075287
05.04.2019,ADULT SOCIAL CARE,WESTMINSTER HOMECARE LTD,"2,628.55",PHY LTS 18-64,HOMECARE - SPOT,2102940413,1000075287
05.04.2019,ADULT SOCIAL CARE,PROFAD CARE AGENCY,"2,678.40",PHY LTS 18-64,HOMECARE - SPOT,2102940635,1000079032
05.04.2019,ADULT SOCIAL CARE,PROFAD CARE AGENCY,"2,752.80",PHY LTS 18-64,HOMECARE - SPOT,2102940561,1000079032
05.04.2019,ADULT SOCIAL CARE,PROFAD CARE AGENCY,"2,808.60",PHY LTS 18-64,HOMECARE - SPOT,2102940545,1000079032
05.04.2019,ADULT SOCIAL CARE,PROFAD CARE AGENCY,"2,994.60",PHY LTS 18-64,HOMECARE - C&V,2102940575,1000079032
05.04.2019,ADULT SOCIAL CARE,WESTMINSTER HOMECARE LTD,"2,995.92",PHY LTS 18-64,HOMECARE - SPOT,2102940409,1000075287
05.04.2019,ADULT SOCIAL CARE,WESTMINSTER HOMECARE LTD,255.36,PHY LTS 65+,HOMECARE - SPOT,2102940397,1000075287
05.04.2019,ADULT SOCIAL CARE,PROFAD CARE AGENCY,260.4,PHY LTS 65+,HOMECARE - SPOT,2102940493,1000079032
05.04.2019,ADULT SOCIAL CARE,PROFAD CARE AGENCY,274.35,PHY LTS 65+,HOMECARE - SPOT,2102940637,1000079032
05.04.2019,ADULT SOCIAL CARE,PROFAD CARE AGENCY,288.3,PHY LTS 65+,HOMECARE - SPOT,2102940567,1000079032
05.04.2019,ADULT SOCIAL CARE,PROFAD CARE AGENCY,297.6,PHY LTS 65+,HOMECARE - SPOT,2102940497,1000079032
05.04.2019,ADULT SOCIAL CARE,WESTMINSTER HOMECARE LTD,300.63,PHY LTS 65+,HOMECARE - SPOT,2102940431,1000075287
05.04.2019,ADULT SOCIAL CARE,WESTMINSTER HOMECARE LTD,305.52,PHY LTS 65+,HOMECARE - SPOT,2102940417,1000075287
05.04.2019,ADULT SOCIAL CARE,PROFAD CARE AGENCY,390.6,PHY LTS 65+,HOMECARE - SPOT,2102940473,1000079032
05.04.2019,ADULT SOCIAL CARE,PROFAD CARE AGENCY,390.6,PHY LTS 65+,HOMECARE - SPOT,2102940551,1000079032
05.04.2019,ADULT SOCIAL CARE,PROFAD CARE AGENCY,390.6,PHY LTS 65+,HOMECARE - SPOT,2102940587,1000079032
05.04.2019,ADULT SOCIAL CARE,PROFAD CARE AGENCY,390.6,PHY LTS 65+,HOMECARE - SPOT,2102940589,1000079032
05.04.2019,ADULT SOCIAL CARE,WESTMINSTER HOMECARE LTD,392.16,PHY LTS 65+,HOMECARE - SPOT,2102940435,1000075287
05.04.2019,ADULT SOCIAL CARE,WESTMINSTER HOMECARE LTD,401.28,PHY LTS 65+,HOMECARE - SPOT,2102940423,1000075287
05.04.2019,ADULT SOCIAL CARE,PROFAD CARE AGENCY,404.55,PHY LTS 65+,HOMECARE - SPOT,2102940485,1000079032
05.04.2019,ADULT SOCIAL CARE,PROFAD CARE AGENCY,409.2,PHY LTS 65+,HOMECARE - SPOT,2102940593,1000079032
05.04.2019,ADULT SOCIAL CARE,WESTMINSTER HOMECARE LTD,510.72,PHY LTS 65+,HOMECARE - SPOT,2102940433,1000075287
05.04.2019,ADULT SOCIAL CARE,PROFAD CARE AGENCY,520.8,PHY LTS 65+,HOMECARE - SPOT,2102940571,1000079032
05.04.2019,ADULT SOCIAL CARE,PROFAD CARE AGENCY,590.55,PHY LTS 65+,HOMECARE - SPOT,2102940555,1000079032
05.04.2019,ADULT SOCIAL CARE,WESTMINSTER HOMECARE LTD,638.4,PHY LTS 65+,HOMECARE - C&V,2102940429,1000075287
05.04.2019,ADULT SOCIAL CARE,WESTMINSTER HOMECARE LTD,638.4,PHY LTS 65+,HOMECARE - SPOT,2102940395,1000075287
05.04.2019,ADULT SOCIAL CARE,WESTMINSTER HOMECARE LTD,638.4,PHY LTS 65+,HOMECARE - SPOT,2102940405,1000075287
05.04.2019,ADULT SOCIAL CARE,WESTMINSTER HOMECARE LTD,638.4,PHY LTS 65+,HOMECARE - SPOT,2102940425,1000075287
05.04.2019,ADULT SOCIAL CARE,PROFAD CARE AGENCY,651,PHY LTS 65+,HOMECARE - SPOT,2102940475,1000079032
05.04.2019,ADULT SOCIAL CARE,PROFAD CARE AGENCY,651,PHY LTS 65+,HOMECARE - SPOT,2102940573,1000079032
05.04.2019,ADULT SOCIAL CARE,PROFAD CARE AGENCY,651,PHY LTS 65+,HOMECARE - SPOT,2102940599,1000079032
05.04.2019,ADULT SOCIAL CARE,PROFAD CARE AGENCY,651,PHY LTS 65+,HOMECARE - SPOT,2102940629,1000079032
05.04.2019,ADULT SOCIAL CARE,PROFAD CARE AGENCY,651,PHY LTS 65+,HOMECARE - SPOT,2102940639,1000079032
05.04.2019,ADULT SOCIAL CARE,WESTMINSTER HOMECARE LTD,674.88,PHY LTS 65+,HOMECARE - SPOT,2102940411,1000075287
05.04.2019,ADULT SOCIAL CARE,PROFAD CARE AGENCY,688.2,PHY LTS 65+,HOMECARE - SPOT,2102940633,1000079032
05.04.2019,ADULT SOCIAL CARE,PROFAD CARE AGENCY,725.4,PHY LTS 65+,HOMECARE - SPOT,2102940515,1000079032
05.04.2019,ADULT SOCIAL CARE,PROFAD CARE AGENCY,725.4,PHY LTS 65+,HOMECARE - SPOT,2102940523,1000079032
05.04.2019,ADULT SOCIAL CARE,PROFAD CARE AGENCY,725.4,PHY LTS 65+,HOMECARE - SPOT,2102940609,1000079032
05.04.2019,ADULT SOCIAL CARE,WESTMINSTER HOMECARE LTD,747.84,PHY LTS 65+,HOMECARE - SPOT,2102940403,1000075287
05.04.2019,ADULT SOCIAL CARE,PROFAD CARE AGENCY,762.6,PHY LTS 65+,HOMECARE - SPOT,2102940611,1000079032
05.04.2019,ADULT SOCIAL CARE,PROFAD CARE AGENCY,781.2,PHY LTS 65+,HOMECARE - SPOT,2102940465,1000079032
05.04.2019,ADULT SOCIAL CARE,PROFAD CARE AGENCY,781.2,PHY LTS 65+,HOMECARE - SPOT,2102940537,1000079032
05.04.2019,ADULT SOCIAL CARE,PROFAD CARE AGENCY,855.6,PHY LTS 65+,HOMECARE - SPOT,2102940457,1000079032
05.04.2019,ADULT SOCIAL CARE,PROFAD CARE AGENCY,855.6,PHY LTS 65+,HOMECARE - SPOT,2102940491,1000079032
05.04.2019,ADULT SOCIAL CARE,PROFAD CARE AGENCY,892.8,PHY LTS 65+,HOMECARE - SPOT,2102940527,1000079032
05.04.2019,ADULT SOCIAL CARE,PROFAD CARE AGENCY,911.4,PHY LTS 65+,HOMECARE - SPOT,2102940451,1000079032
05.04.2019,ADULT SOCIAL CARE,PROFAD CARE AGENCY,911.4,PHY LTS 65+,HOMECARE - SPOT,2102940533,1000079032
05.04.2019,ADULT SOCIAL CARE,PROFAD CARE AGENCY,911.4,PHY LTS 65+,HOMECARE - SPOT,2102940591,1000079032
05.04.2019,ADULT SOCIAL CARE,PROFAD CARE AGENCY,934.65,PHY LTS 65+,HOMECARE - SPOT,2102940615,1000079032
05.04.2019,ADULT SOCIAL CARE,PROFAD CARE AGENCY,939.3,PHY LTS 65+,HOMECARE - SPOT,2102940503,1000079032
05.04.2019,ADULT SOCIAL CARE,PROFAD CARE AGENCY,985.8,PHY LTS 65+,HOMECARE - SPOT,2102940607,1000079032
05.04.2019,ADULT SOCIAL CARE,PROFAD CARE AGENCY,"1,041.60",PHY LTS 65+,HOMECARE - SPOT,2102940459,1000079032
05.04.2019,ADULT SOCIAL CARE,WESTMINSTER HOMECARE LTD,"1,176.48",PHY LTS 65+,HOMECARE - SPOT,2102940443,1000075287
05.04.2019,ADULT SOCIAL CARE,PROFAD CARE AGENCY,"1,283.40",PHY LTS 65+,HOMECARE - SPOT,2102940603,1000079032
05.04.2019,ADULT SOCIAL CARE,PROFAD CARE AGENCY,"1,302.00",PHY LTS 65+,HOMECARE - SPOT,2102940479,1000079032
05.04.2019,ADULT SOCIAL CARE,PROFAD CARE AGENCY,"1,302.00",PHY LTS 65+,HOMECARE - SPOT,2102940627,1000079032
05.04.2019,ADULT SOCIAL CARE,WESTMINSTER HOMECARE LTD,"1,605.12",PHY LTS 65+,HOMECARE - SPOT,2102940393,1000075287
05.04.2019,ADULT SOCIAL CARE,PROFAD CARE AGENCY,"1,822.80",PHY LTS 65+,HOMECARE - SPOT,2102940581,1000079032
05.04.2019,ADULT SOCIAL CARE,PROFAD CARE AGENCY,"1,822.80",PHY LTS 65+,HOMECARE - SPOT,2102940605,1000079032
05.04.2019,ADULT SOCIAL CARE,PROFAD CARE AGENCY,"1,841.40",PHY LTS 65+,HOMECARE - C&V,2102940525,1000079032
05.04.2019,ADULT SOCIAL CARE,PROFAD CARE AGENCY,"2,027.40",PHY LTS 65+,HOMECARE - SPOT,2102940613,1000079032
05.04.2019,ADULT SOCIAL CARE,PROFAD CARE AGENCY,"2,083.20",PHY LTS 65+,HOMECARE - SPOT,2102940461,1000079032
05.04.2019,ADULT SOCIAL CARE,PROFAD CARE AGENCY,"2,249.64",PHY LTS 65+,HOMECARE - SPOT,2102940583,1000079032
05.04.2019,ADULT SOCIAL CARE,WESTMINSTER HOMECARE LTD,"2,439.60",PHY LTS 65+,HOMECARE - SPOT,2102940399,1000075287
05.04.2019,ADULT SOCIAL CARE,PROFAD CARE AGENCY,"2,604.00",PHY LTS 65+,HOMECARE - C&V,2102940513,1000079032
05.04.2019,ADULT SOCIAL CARE,PROFAD CARE AGENCY,"2,649.54",PHY LTS 65+,HOMECARE - SPOT,2102940499,1000079032
05.04.2019,ADULT SOCIAL CARE,PROFAD CARE AGENCY,"2,659.80",PHY LTS 65+,HOMECARE - SPOT,2102940541,1000079032
05.04.2019,ADULT SOCIAL CARE,PROFAD CARE AGENCY,"2,864.40",PHY LTS 65+,HOMECARE - C&V,2102940621,1000079032
05.04.2019,ADULT SOCIAL CARE,PROFAD CARE AGENCY,"3,794.40",PHY LTS 65+,HOMECARE - SPOT,2102940547,1000079032
05.04.2019,ADULT SOCIAL CARE,PROFAD CARE AGENCY,311.55,PHY STS 18-64,HOMECARE - IC,2102940553,1000079032
05.04.2019,ADULT SOCIAL CARE,PROFAD CARE AGENCY,399.9,PHY STS 18-64,HOMECARE - IC,2102940563,1000079032
05.04.2019,ADULT SOCIAL CARE,PROFAD CARE AGENCY,553.35,PHY STS 18-64,HOMECARE - IC,2102940489,1000079032
05.04.2019,ADULT SOCIAL CARE,WESTMINSTER HOMECARE LTD,401.28,PHY STS 65+,HOMECARE - IC,2102940437,1000075287
05.04.2019,ADULT SOCIAL CARE,PROFAD CARE AGENCY,432.45,PHY STS 65+,HOMECARE - IC,2102940585,1000079032
05.04.2019,ADULT SOCIAL CARE,WESTMINSTER HOMECARE LTD,611.04,PHY STS 65+,HOMECARE - IC,2102940391,1000075287
05.04.2019,ADULT SOCIAL CARE,PROFAD CARE AGENCY,"1,108.25",PHY STS 65+,HOMECARE - IC,2102940519,1000079032
05.04.2019,ADULT SOCIAL CARE,WESTMINSTER HOMECARE LTD,369.36,SOCIAL ISOLATION,HOMECARE - SPOT,2102940421,1000075287
05.04.2019,ADULT SOCIAL CARE,PROFAD CARE AGENCY,669.6,SOCIAL ISOLATION,HOMECARE - SPOT,2102940543,1000079032
05.04.2019,ASSET MANAGEMENT,AJM ADAPTIONS LTD,"1,500.00",ADAPTATIONS,BUILDING R&M,2102940104,1000080297
05.04.2019,ASSET MANAGEMENT,BAILY  GARNER LLP,"14,063.55",DEVELOPMENT DELIVERY,PROFESSIONAL FEES,5902352900,1000663
05.04.2019,ASSET MANAGEMENT,METRO DIGITAL TELEVISION LTD,808.46,ENG CONTRACTS (NORTH),TV AERIALS R&M,5902352793,1000070713
05.04.2019,ASSET MANAGEMENT,T BROWN & SONS (HEATING) LTD,"9,158.37",ENG CONTRACTS (NORTH),PLANNED MAINTENANCE,5902352800,1000040191
05.04.2019,ASSET MANAGEMENT,SGN CONNECTIONS LTD,652.8,ENG CONTRACTS (SOUTH),OTHER R&M,5902352804,1000055428
05.04.2019,ASSET MANAGEMENT,LONDON TOOLS LIMITED,"2,975.00",REPAIRS OPERATIONS,MATERIALS,5902352765,1000003017
05.04.2019,CENTRAL FUNCTIONS,STANDAGE & CO LTD,"4,111.00",AYLESBURY,SECURITY SERVICES,2102940102,4002817
05.04.2019,CENTRAL FUNCTIONS,STANDAGE & CO LTD,"5,303.00",AYLESBURY,SECURITY SERVICES,2102940102,4002817
05.04.2019,CENTRAL FUNCTIONS,STANDAGE & CO LTD,"29,576.00",AYLESBURY,SECURITY SERVICES,2102940102,4002817
05.04.2019,CENTRAL FUNCTIONS,NORTHGATE PUBLIC SERVICES (UK) LTD,900,MOBILE WORKING,CONSULTANTS SERVICES,5902352874,1000037405
05.04.2019,CHIEF EXECUTIVE,MOUNTVIEW ACADEMY OF THEATRE ARTS,"511,172.60",CAPITAL PS (REGEN),CAPITAL GRANTS,5902352855,1000076966
05.04.2019,CHIEF EXECUTIVE'S OFFICE,J C CONSULTANT SERVICES LTD,"8,000.00",CHIEF EXEC'S OFFICE,GRANTS,5902352790,1000042476
05.04.2019,CHIEF EXECUTIVE'S OFFICE,J C CONSULTANT SERVICES LTD,"8,500.00",CHIEF EXEC'S OFFICE,GRANTS,5902352783,1000042476
05.04.2019,CHILDREN AND ADULT,KIER BUSINESS SERVICES LTD,252,CAPITAL PS (EDUCATION),CONSTRUCTION MAIN CONTRACT -CERTIFICATED,5902352870,1000079831
05.04.2019,CHILDREN AND ADULT,KIER BUSINESS SERVICES LTD,412,CAPITAL PS (EDUCATION),CONSTRUCTION MAIN CONTRACT -CERTIFICATED,5902352870,1000079831
05.04.2019,CHILDREN AND ADULT,KIER BUSINESS SERVICES LTD,413,CAPITAL PS (EDUCATION),CONSTRUCTION MAIN CONTRACT -CERTIFICATED,5902352870,1000079831
05.04.2019,CHILDREN AND ADULT,KEYWORTH PRIMARY SCHOOL,440,CAPITAL PS (EDUCATION),CONSTRUCTION FEES,5902352812,5001000041
05.04.2019,CHILDREN AND ADULT,KIER BUSINESS SERVICES LTD,478,CAPITAL PS (EDUCATION),CONSTRUCTION MAIN CONTRACT -CERTIFICATED,5902352870,1000079831
05.04.2019,CHILDREN AND ADULT,KIER BUSINESS SERVICES LTD,820,CAPITAL PS (EDUCATION),CONSTRUCTION MAIN CONTRACT -CERTIFICATED,5902352870,1000079831
05.04.2019,CHILDREN AND ADULT,KIER BUSINESS SERVICES LTD,903,CAPITAL PS (EDUCATION),CONSTRUCTION MAIN CONTRACT -CERTIFICATED,5902352870,1000079831
05.04.2019,CHILDREN AND ADULT,KIER BUSINESS SERVICES LTD,"2,460.00",CAPITAL PS (EDUCATION),CONSTRUCTION MAIN CONTRACT -CERTIFICATED,5902352870,1000079831
05.04.2019,CHILDREN AND ADULT,KEYWORTH PRIMARY SCHOOL,"5,399.00",CAPITAL PS (EDUCATION),CONSTRUCTION FEES,5902352812,5001000041
05.04.2019,CHILDREN AND ADULT,KIER BUSINESS SERVICES LTD,"6,560.00",CAPITAL PS (EDUCATION),CONSTRUCTION MAIN CONTRACT -CERTIFICATED,5902352870,1000079831
05.04.2019,CHILDREN AND ADULT,KIER BUSINESS SERVICES LTD,"6,600.00",CAPITAL PS (EDUCATION),CONSTRUCTION MAIN CONTRACT -CERTIFICATED,5902352870,1000079831
05.04.2019,CHILDREN AND ADULT,FAITHFUL & GOULD,"65,518.00",CAPITAL PS (SOC SERV),CONSTRUCTION FEES,5902352802,1000061390
05.04.2019,CHILDREN'S SERVICES,NEXT STEP FOSTERING SERVICES LTD,257.2,AGENCY FOSTERING,EXTERNAL AGENCIES AND BODIES,2102940141,1000044973
05.04.2019,CHILDREN'S SERVICES,SYNERGY FOSTERING LTD,880,AGENCY FOSTERING,EXTERNAL AGENCIES AND BODIES,2102940247,1000031559
05.04.2019,CHILDREN'S SERVICES,LIKA FAMILY FOSTERING,"1,900.00",AGENCY FOSTERING,EXTERNAL AGENCIES AND BODIES,2102940171,1000080099
05.04.2019,CHILDREN'S SERVICES,BANYA FAMILY PLACEMENT AGENCY LTD,"2,036.44",AGENCY FOSTERING,EXTERNAL AGENCIES AND BODIES,2102940136,11328315
05.04.2019,CHILDREN'S SERVICES,HORIZON FOSTERING SERVICES LTD,"3,092.25",AGENCY FOSTERING,EXTERNAL AGENCIES AND BODIES,2102940127,1000075679
05.04.2019,CHILDREN'S SERVICES,HORIZON FOSTERING SERVICES LTD,"3,092.25",AGENCY FOSTERING,EXTERNAL AGENCIES AND BODIES,2102940137,1000075679
05.04.2019,CHILDREN'S SERVICES,HORIZON FOSTERING SERVICES LTD,"3,255.00",AGENCY FOSTERING,EXTERNAL AGENCIES AND BODIES,2102940149,1000075679
05.04.2019,CHILDREN'S SERVICES,FOSTERING FOR YOU LTD,"3,271.21",AGENCY FOSTERING,EXTERNAL AGENCIES AND BODIES,2102940138,1000080380
05.04.2019,CHILDREN'S SERVICES,FOSTERING FOR YOU LTD,"3,271.21",AGENCY FOSTERING,EXTERNAL AGENCIES AND BODIES,2102940153,1000080380
05.04.2019,CHILDREN'S SERVICES,SHINING STARS FOSTERING AGENCY LTD,"3,321.34",AGENCY FOSTERING,EXTERNAL AGENCIES AND BODIES,2102940130,1000079431
05.04.2019,CHILDREN'S SERVICES,HORIZON FOSTERING SERVICES LTD,"3,365.67",AGENCY FOSTERING,EXTERNAL AGENCIES AND BODIES,2102940167,1000075679
05.04.2019,CHILDREN'S SERVICES,FOSTERING FOR YOU LTD,"3,443.39",AGENCY FOSTERING,EXTERNAL AGENCIES AND BODIES,2102940129,1000080380
05.04.2019,CHILDREN'S SERVICES,FOSTERING FOR YOU LTD,"3,443.39",AGENCY FOSTERING,EXTERNAL AGENCIES AND BODIES,2102940133,1000080380
05.04.2019,CHILDREN'S SERVICES,FOSTERING FOR YOU LTD,"3,443.39",AGENCY FOSTERING,EXTERNAL AGENCIES AND BODIES,2102940134,1000080380
05.04.2019,CHILDREN'S SERVICES,SHINING STARS FOSTERING AGENCY LTD,"3,542.68",AGENCY FOSTERING,EXTERNAL AGENCIES AND BODIES,2102940159,1000079431
05.04.2019,CHILDREN'S SERVICES,BANYA FAMILY PLACEMENT AGENCY LTD,"3,593.21",AGENCY FOSTERING,EXTERNAL AGENCIES AND BODIES,2102940143,11328315
05.04.2019,CHILDREN'S SERVICES,BANYA FAMILY PLACEMENT AGENCY LTD,"3,593.21",AGENCY FOSTERING,EXTERNAL AGENCIES AND BODIES,2102940147,11328315
05.04.2019,CHILDREN'S SERVICES,FUSION FOSTERING LTD,"3,767.61",AGENCY FOSTERING,EXTERNAL AGENCIES AND BODIES,2102940173,1000081674
05.04.2019,CHILDREN'S SERVICES,BANYA FAMILY PLACEMENT AGENCY LTD,"3,929.87",AGENCY FOSTERING,EXTERNAL AGENCIES AND BODIES,2102940161,11328315
05.04.2019,CHILDREN'S SERVICES,DIVERSITY FOSTER CARE LTD,"4,108.69",AGENCY FOSTERING,EXTERNAL AGENCIES AND BODIES,2102940243,1000081399
05.04.2019,CHILDREN'S SERVICES,DIVERSITY FOSTER CARE LTD,"4,108.69",AGENCY FOSTERING,EXTERNAL AGENCIES AND BODIES,2102940245,1000081399
05.04.2019,CHILDREN'S SERVICES,BANYA FAMILY PLACEMENT AGENCY LTD,"4,538.71",AGENCY FOSTERING,EXTERNAL AGENCIES AND BODIES,2102940135,11328315
05.04.2019,CHILDREN'S SERVICES,BANYA FAMILY PLACEMENT AGENCY LTD,"4,538.71",AGENCY FOSTERING,EXTERNAL AGENCIES AND BODIES,2102940169,11328315
05.04.2019,CHILDREN'S SERVICES,FOSTERING LONDON LTD,"4,650.00",AGENCY FOSTERING,EXTERNAL AGENCIES AND BODIES,2102940157,1000077541
05.04.2019,CHILDREN'S SERVICES,ALL4U FOSTERING LTD,"6,443.04",AGENCY FOSTERING,EXTERNAL AGENCIES AND BODIES,2102940151,1000080663
05.04.2019,CHILDREN'S SERVICES,FOLLOWING WHISPERS FAMILY SERVICE LTD,"6,525.50",AGENCY FOSTERING,EXTERNAL AGENCIES AND BODIES,2102940139,1000065611
05.04.2019,CHILDREN'S SERVICES,ACTION FOR CHILDREN,"6,672.44",AGENCY FOSTERING,EXTERNAL AGENCIES AND BODIES,2102940163,1000049964
05.04.2019,CHILDREN'S SERVICES,FOLLOWING WHISPERS FAMILY SERVICE LTD,"6,864.33",AGENCY FOSTERING,EXTERNAL AGENCIES AND BODIES,2102940128,1000065611
05.04.2019,CHILDREN'S SERVICES,HEWLETT BECKLES & ASSOCIATES LTD,"12,825.00",ANALYSTS,PROFESSIONAL FEES,5902352883,1000077638
05.04.2019,CHILDREN'S SERVICES,OFFICE DEPOT UK LTD,534,CENTRAL SUPPORT,STATIONERY,5902352739,1109426
05.04.2019,CHILDREN'S SERVICES,ISABELLE GRAVENSTEIN T/A REVIVAL,696,CENTRAL SUPPORT,OTHER PAYMENTS FOR CLIENTS,5902352737,1000027424
05.04.2019,CHILDREN'S SERVICES,THE FOSTERING NETWORK,832,DISABILITY & HIV,SUBSCRIPTIONS,5902352998,1000030450
05.04.2019,CHILDREN'S SERVICES,THE FOSTERING NETWORK,"1,742.72",DISABILITY & HIV,SUBSCRIPTIONS,5902352998,1000030450
05.04.2019,CHILDREN'S SERVICES,TTS GROUP LTD,647.47,EARLY YEARS IMPROVEMENT,OTHER SUBSISTENCE & CONFERENCE EXPENSES,5902352819,1000015308
05.04.2019,CHILDREN'S SERVICES,MEDIA SERVICES FOR EDUCATION,910,EARLY YEARS IMPROVEMENT,BOOKS & PUBLICATIONS,5902352814,11005338
05.04.2019,CHILDREN'S SERVICES,REDACTED PERSONAL DATA,"1,091.99",LEAVING CARE GRANT,OTHER PAYMENTS FOR CLIENTS,REDACTED,REDACTED
05.04.2019,CHILDREN'S SERVICES,NOTRE DAME RC GIRLS SCHOOL,960,PUPIL PREMIUM CURRENT YEAR,SCHOOLS CAPITATION,2102940115,5001000050
05.04.2019,CHILDREN'S SERVICES,KEMSLEY PRIMARY ACADEMY,980,PUPIL PREMIUM CURRENT YEAR,SCHOOLS CAPITATION,2102938428,1000082170
05.04.2019,CHILDREN'S SERVICES,COBOURG PRIMARY SCHOOL,"1,500.00",PUPIL PREMIUM CURRENT YEAR,SCHOOLS CAPITATION,2102940110,5001000021
05.04.2019,CHILDREN'S SERVICES,COBOURG PRIMARY SCHOOL,"1,500.00",PUPIL PREMIUM CURRENT YEAR,SCHOOLS CAPITATION,2102940111,5001000021
05.04.2019,CHILDREN'S SERVICES,DOG KENNEL HILL PRIMARY SCHOOL,"1,500.00",PUPIL PREMIUM CURRENT YEAR,SCHOOLS CAPITATION,2102940112,5001000025
05.04.2019,CHILDREN'S SERVICES,DOG KENNEL HILL PRIMARY SCHOOL,"1,500.00",PUPIL PREMIUM CURRENT YEAR,SCHOOLS CAPITATION,2102940113,5001000025
05.04.2019,CHILDREN'S SERVICES,DOG KENNEL HILL PRIMARY SCHOOL,"1,500.00",PUPIL PREMIUM CURRENT YEAR,SCHOOLS CAPITATION,2102940114,5001000025
05.04.2019,CHILDREN'S SERVICES,NOTRE DAME RC GIRLS SCHOOL,"1,500.00",PUPIL PREMIUM CURRENT YEAR,SCHOOLS CAPITATION,2102940116,5001000050
05.04.2019,CHILDREN'S SERVICES,NOTRE DAME RC GIRLS SCHOOL,"1,500.00",PUPIL PREMIUM CURRENT YEAR,SCHOOLS CAPITATION,2102940117,5001000050
05.04.2019,CHILDREN'S SERVICES,SACRED HEART CATHOLIC SCHOOL,"1,500.00",PUPIL PREMIUM CURRENT YEAR,SCHOOLS CAPITATION,2102940119,1000071091
05.04.2019,CHILDREN'S SERVICES,THE DRIVE CARE HOMES LTD,"13,176.24",RESIDENTIAL,RESIDENTIAL CARE,2102940179,1000003889
05.04.2019,CHILDREN'S SERVICES,HORIZON CARE & EDUCATION GROUP LTD,"13,399.96",RESIDENTIAL,RESIDENTIAL CARE,2102940241,1000075467
05.04.2019,CHILDREN'S SERVICES,HORIZON CARE & EDUCATION GROUP LTD,"14,835.67",RESIDENTIAL,RESIDENTIAL CARE,2102940239,1000075467
05.04.2019,CHILDREN'S SERVICES,THE CHILDRENS TRUST,"22,475.00",RESIDENTIAL,RESIDENTIAL CARE,2102940175,1758469
05.04.2019,CHILDREN'S SERVICES,STONELAKE LONDON LTD,"24,552.00",RESIDENTIAL,RESIDENTIAL CARE,2102940177,1000080075
05.04.2019,CHILDREN'S SERVICES,WINGS EDUCATION LTD,"57,945.00",RESIDENTIAL,RESIDENTIAL CARE,2102940181,1000079560
05.04.2019,CHILDREN'S SERVICES,CITYGLEN LTD,"1,395.00",S24 CLA,EXTERNAL AGENCIES AND BODIES,2102940231,1000026239
05.04.2019,CHILDREN'S SERVICES,REDACTED PERSONAL DATA,"1,628.65",S24 CLA,EXTERNAL AGENCIES AND BODIES,REDACTED,REDACTED
05.04.2019,CHILDREN'S SERVICES,MY LIFE SEMI-INDEPENDENT PROJECT LTD,"1,660.00",S24 CLA,EXTERNAL AGENCIES AND BODIES,2102940217,1000075301
05.04.2019,CHILDREN'S SERVICES,FINEFAIR LTD,"1,687.33",S24 CLA,EXTERNAL AGENCIES AND BODIES,2102940225,1000075570
05.04.2019,CHILDREN'S SERVICES,FINEFAIR LTD,"1,687.33",S24 CLA,EXTERNAL AGENCIES AND BODIES,2102940229,1000075570
05.04.2019,CHILDREN'S SERVICES,IDEAL CARE SOLUTIONS LTD,"1,948.57",S24 CLA,EXTERNAL AGENCIES AND BODIES,2102940221,1000080804
05.04.2019,CHILDREN'S SERVICES,NETPEX LTD CORPORATE SERVICES,"2,612.20",S24 CLA,EXTERNAL AGENCIES AND BODIES,2102940265,1000076073
05.04.2019,CHILDREN'S SERVICES,CARE R US LTD,"2,626.13",S24 CLA,EXTERNAL AGENCIES AND BODIES,2102940209,1000053515
05.04.2019,CHILDREN'S SERVICES,NETPEX LTD CORPORATE SERVICES,"2,767.99",S24 CLA,EXTERNAL AGENCIES AND BODIES,2102940263,1000076073
05.04.2019,CHILDREN'S SERVICES,FINEFAIR LTD,"2,812.01",S24 CLA,EXTERNAL AGENCIES AND BODIES,2102940219,1000075570
05.04.2019,CHILDREN'S SERVICES,NETPEX LTD CORPORATE SERVICES,"4,207.32",S24 CLA,EXTERNAL AGENCIES AND BODIES,2102940269,1000076073
05.04.2019,CHILDREN'S SERVICES,NETPEX LTD CORPORATE SERVICES,"4,650.00",S24 CLA,EXTERNAL AGENCIES AND BODIES,2102940255,1000076073
05.04.2019,CHILDREN'S SERVICES,ABOVE BEYOND CARE,607.14,SEMI INDEPENDENT,EXTERNAL AGENCIES AND BODIES,2102940195,1000063478
05.04.2019,CHILDREN'S SERVICES,HOLISTIC SUPPORTED LIVING LTD,"1,190.00",SEMI INDEPENDENT,EXTERNAL AGENCIES AND BODIES,2102940185,1000082130
05.04.2019,CHILDREN'S SERVICES,PATHWAY LTD,"1,680.00",SEMI INDEPENDENT,EXTERNAL AGENCIES AND BODIES,2102940199,1000080564
05.04.2019,CHILDREN'S SERVICES,NEXT STEP CARE MANAGEMENT LTD,"1,785.71",SEMI INDEPENDENT,EXTERNAL AGENCIES AND BODIES,2102940183,1825556
05.04.2019,CHILDREN'S SERVICES,PATHWAY LTD,"1,800.00",SEMI INDEPENDENT,EXTERNAL AGENCIES AND BODIES,2102940203,1000080564
05.04.2019,CHILDREN'S SERVICES,PATHWAY LTD,"1,872.86",SEMI INDEPENDENT,EXTERNAL AGENCIES AND BODIES,2102940189,1000080564
05.04.2019,CHILDREN'S SERVICES,FINEFAIR LTD,"2,967.32",SEMI INDEPENDENT,EXTERNAL AGENCIES AND BODIES,2102940237,1000075570
05.04.2019,CHILDREN'S SERVICES,PATHWAY LTD,"4,040.00",SEMI INDEPENDENT,EXTERNAL AGENCIES AND BODIES,2102940197,1000080564
05.04.2019,CHILDREN'S SERVICES,PATHWAY LTD,"4,440.00",SEMI INDEPENDENT,EXTERNAL AGENCIES AND BODIES,2102940193,1000080564
05.04.2019,CHILDREN'S SERVICES,CARE R US LTD,"4,650.00",SEMI INDEPENDENT,EXTERNAL AGENCIES AND BODIES,2102940207,1000053515
05.04.2019,CHILDREN'S SERVICES,HOLIBROOK HOUSE LTD,"7,905.00",SEMI INDEPENDENT,EXTERNAL AGENCIES AND BODIES,2102940249,1000067873
05.04.2019,CHILDREN'S SERVICES,REDACTED PERSONAL DATA,"1,000.00",UASC SECTION 24,EXTERNAL AGENCIES AND BODIES,REDACTED,REDACTED
05.04.2019,CHILDREN'S SERVICES,YOUNG LONDON TODAY,"1,479.80",UASC SECTION 24,EXTERNAL AGENCIES AND BODIES,2102940223,1000071232
05.04.2019,CHILDREN'S SERVICES,YOUNG LONDON TODAY,"1,638.35",UASC SECTION 24,EXTERNAL AGENCIES AND BODIES,2102940235,1000071232
05.04.2019,CHILDREN'S SERVICES,NETPEX LTD CORPORATE SERVICES,"5,070.98",UASC SECTION 24,EXTERNAL AGENCIES AND BODIES,2102940257,1000076073
05.04.2019,COMMISSIONING & CENTRAL,SOUTHWARK IRISH PENSIONERS PROJECT,"21,500.00",STRATEGIC DIRECTOR OF C&AS,SUBSCRIPTIONS,5902352700,1000082558
05.04.2019,COMMUNITIES,APPLEGARTH HOUSE COOPERATIVE LTD,"19,714.50",APPLEGARTH HOUSE CO-OP,M&M ALLOWANCE CO-OPS,5902352798,1296074
05.04.2019,COMMUNITIES,TUTORCARE LTD,445,TENANTS FUND,TRAINING,5902352773,1000075007
05.04.2019,CUSTOMER EXPERIENCE HGF,VALTECH LTD,440.96,BLUE BADGES,MATERIALS,5902352831,1000082245
05.04.2019,ENVIRONMENT AND LEISURE,TIME & TALENTS ASSOCIATION,"1,034.39",CAPITAL PS (LEISURE),CAPITAL GRANTS,5902352818,1757632
05.04.2019,ENVIRONMENT DIRECTORATE,LONDON TOOLS LIMITED,260,BUSINESS CORE,EQUIPMENT PURCHASE & REPAIR,5902352843,1000003017
05.04.2019,ENVIRONMENT DIRECTORATE,DAWSON RENTALS BUS & COACH LTD,"-1,464.29",COMMERCIAL VEH CTRL A/C,HIRED VEHICLES,5902352963,1000042174
05.04.2019,ENVIRONMENT DIRECTORATE,DAWSON RENTALS BUS & COACH LTD,-335,COMMERCIAL VEH CTRL A/C,HIRED VEHICLES,5902352966,1000042174
05.04.2019,ENVIRONMENT DIRECTORATE,DAWSON RENTALS BUS & COACH LTD,-335,COMMERCIAL VEH CTRL A/C,HIRED VEHICLES,5902352966,1000042174
05.04.2019,ENVIRONMENT DIRECTORATE,DAWSON RENTALS BUS & COACH LTD,-335,COMMERCIAL VEH CTRL A/C,HIRED VEHICLES,5902352966,1000042174
05.04.2019,ENVIRONMENT DIRECTORATE,DAWSON RENTALS BUS & COACH LTD,-335,COMMERCIAL VEH CTRL A/C,HIRED VEHICLES,5902352966,1000042174
05.04.2019,ENVIRONMENT DIRECTORATE,DAWSONGROUP VANS LTD,258.85,COMMERCIAL VEH CTRL A/C,HIRED VEHICLES,5902352937,1000082230
05.04.2019,ENVIRONMENT DIRECTORATE,DAWSONGROUP VANS LTD,258.85,COMMERCIAL VEH CTRL A/C,HIRED VEHICLES,5902352939,1000082230
05.04.2019,ENVIRONMENT DIRECTORATE,DAWSONGROUP VANS LTD,258.85,COMMERCIAL VEH CTRL A/C,HIRED VEHICLES,5902352949,1000082230
05.04.2019,ENVIRONMENT DIRECTORATE,DAWSONGROUP VANS LTD,279.4,COMMERCIAL VEH CTRL A/C,HIRED VEHICLES,5902352959,1000082230
05.04.2019,ENVIRONMENT DIRECTORATE,DAWSONGROUP VANS LTD,283.03,COMMERCIAL VEH CTRL A/C,HIRED VEHICLES,5902352940,1000082230
05.04.2019,ENVIRONMENT DIRECTORATE,DAWSONGROUP VANS LTD,283.03,COMMERCIAL VEH CTRL A/C,HIRED VEHICLES,5902352967,1000082230
05.04.2019,ENVIRONMENT DIRECTORATE,DAWSONGROUP VANS LTD,283.03,COMMERCIAL VEH CTRL A/C,HIRED VEHICLES,5902352969,1000082230
05.04.2019,ENVIRONMENT DIRECTORATE,DAWSONGROUP VANS LTD,283.03,COMMERCIAL VEH CTRL A/C,HIRED VEHICLES,5902352972,1000082230
05.04.2019,ENVIRONMENT DIRECTORATE,DAWSONGROUP VANS LTD,300,COMMERCIAL VEH CTRL A/C,HIRED VEHICLES,5902352952,1000082230
05.04.2019,ENVIRONMENT DIRECTORATE,DAWSONGROUP VANS LTD,300,COMMERCIAL VEH CTRL A/C,HIRED VEHICLES,5902352954,1000082230
05.04.2019,ENVIRONMENT DIRECTORATE,DAWSONGROUP VANS LTD,300,COMMERCIAL VEH CTRL A/C,HIRED VEHICLES,5902352957,1000082230
05.04.2019,ENVIRONMENT DIRECTORATE,DAWSONGROUP VANS LTD,300,COMMERCIAL VEH CTRL A/C,HIRED VEHICLES,5902352958,1000082230
05.04.2019,ENVIRONMENT DIRECTORATE,DAWSONGROUP VANS LTD,300.08,COMMERCIAL VEH CTRL A/C,HIRED VEHICLES,5902352915,1000082230
05.04.2019,ENVIRONMENT DIRECTORATE,DAWSONGROUP VANS LTD,300.08,COMMERCIAL VEH CTRL A/C,HIRED VEHICLES,5902352916,1000082230
05.04.2019,ENVIRONMENT DIRECTORATE,DAWSONGROUP VANS LTD,300.08,COMMERCIAL VEH CTRL A/C,HIRED VEHICLES,5902352917,1000082230
05.04.2019,ENVIRONMENT DIRECTORATE,DAWSONGROUP VANS LTD,300.08,COMMERCIAL VEH CTRL A/C,HIRED VEHICLES,5902352918,1000082230
05.04.2019,ENVIRONMENT DIRECTORATE,DAWSONGROUP VANS LTD,300.08,COMMERCIAL VEH CTRL A/C,HIRED VEHICLES,5902352919,1000082230
05.04.2019,ENVIRONMENT DIRECTORATE,DAWSONGROUP VANS LTD,300.08,COMMERCIAL VEH CTRL A/C,HIRED VEHICLES,5902352922,1000082230
05.04.2019,ENVIRONMENT DIRECTORATE,DAWSONGROUP VANS LTD,300.08,COMMERCIAL VEH CTRL A/C,HIRED VEHICLES,5902352923,1000082230
05.04.2019,ENVIRONMENT DIRECTORATE,DAWSONGROUP VANS LTD,300.08,COMMERCIAL VEH CTRL A/C,HIRED VEHICLES,5902352925,1000082230
05.04.2019,ENVIRONMENT DIRECTORATE,DAWSONGROUP VANS LTD,300.08,COMMERCIAL VEH CTRL A/C,HIRED VEHICLES,5902352927,1000082230
05.04.2019,ENVIRONMENT DIRECTORATE,DAWSONGROUP VANS LTD,300.08,COMMERCIAL VEH CTRL A/C,HIRED VEHICLES,5902352929,1000082230
05.04.2019,ENVIRONMENT DIRECTORATE,DAWSONGROUP VANS LTD,300.08,COMMERCIAL VEH CTRL A/C,HIRED VEHICLES,5902352934,1000082230
05.04.2019,ENVIRONMENT DIRECTORATE,DAWSONGROUP VANS LTD,300.08,COMMERCIAL VEH CTRL A/C,HIRED VEHICLES,5902352943,1000082230
05.04.2019,ENVIRONMENT DIRECTORATE,DAWSONGROUP VANS LTD,300.08,COMMERCIAL VEH CTRL A/C,HIRED VEHICLES,5902352945,1000082230
05.04.2019,ENVIRONMENT DIRECTORATE,DAWSONGROUP VANS LTD,300.08,COMMERCIAL VEH CTRL A/C,HIRED VEHICLES,5902352946,1000082230
05.04.2019,ENVIRONMENT DIRECTORATE,DAWSONGROUP VANS LTD,300.08,COMMERCIAL VEH CTRL A/C,HIRED VEHICLES,5902352977,1000082230
05.04.2019,ENVIRONMENT DIRECTORATE,DAWSONGROUP VANS LTD,300.08,COMMERCIAL VEH CTRL A/C,HIRED VEHICLES,5902352979,1000082230
05.04.2019,ENVIRONMENT DIRECTORATE,DAWSONGROUP VANS LTD,300.08,COMMERCIAL VEH CTRL A/C,HIRED VEHICLES,5902352982,1000082230
05.04.2019,ENVIRONMENT DIRECTORATE,DAWSONGROUP VANS LTD,300.08,COMMERCIAL VEH CTRL A/C,HIRED VEHICLES,5902352986,1000082230
05.04.2019,ENVIRONMENT DIRECTORATE,DAWSONGROUP VANS LTD,300.08,COMMERCIAL VEH CTRL A/C,HIRED VEHICLES,5902352987,1000082230
05.04.2019,ENVIRONMENT DIRECTORATE,DAWSON RENTALS BUS & COACH LTD,335,COMMERCIAL VEH CTRL A/C,HIRED VEHICLES,5902352968,1000042174
05.04.2019,ENVIRONMENT DIRECTORATE,DAWSON RENTALS BUS & COACH LTD,335,COMMERCIAL VEH CTRL A/C,HIRED VEHICLES,5902352995,1000042174
05.04.2019,ENVIRONMENT DIRECTORATE,DAWSONGROUP VANS LTD,434,COMMERCIAL VEH CTRL A/C,HIRED VEHICLES,5902352971,1000082230
05.04.2019,ENVIRONMENT DIRECTORATE,DAWSONGROUP VANS LTD,440.46,COMMERCIAL VEH CTRL A/C,HIRED VEHICLES,5902352948,1000082230
05.04.2019,ENVIRONMENT DIRECTORATE,DAWSONGROUP VANS LTD,451.89,COMMERCIAL VEH CTRL A/C,HIRED VEHICLES,5902352936,1000082230
05.04.2019,ENVIRONMENT DIRECTORATE,DAWSON RENTALS BUS & COACH LTD,"1,464.29",COMMERCIAL VEH CTRL A/C,HIRED VEHICLES,5902352992,1000042174
05.04.2019,ENVIRONMENT DIRECTORATE,DAWSON RENTALS BUS & COACH LTD,"1,581.43",COMMERCIAL VEH CTRL A/C,HIRED VEHICLES,5902352991,1000042174
05.04.2019,ENVIRONMENT DIRECTORATE,DAWSON RENTALS BUS & COACH LTD,"1,781.55",COMMERCIAL VEH CTRL A/C,HIRED VEHICLES,5902352962,1000042174
05.04.2019,ENVIRONMENT DIRECTORATE,DAWSON RENTALS BUS & COACH LTD,"1,781.55",COMMERCIAL VEH CTRL A/C,HIRED VEHICLES,5902352993,1000042174
05.04.2019,ENVIRONMENT DIRECTORATE,DAWSON RENTALS BUS & COACH LTD,"1,781.55",COMMERCIAL VEH CTRL A/C,HIRED VEHICLES,5902352994,1000042174
05.04.2019,ENVIRONMENT DIRECTORATE,LONDON TOOLS LIMITED,373.75,ENGINEERING CRAFTS,MATERIALS,5902352841,1000003017
05.04.2019,ENVIRONMENT DIRECTORATE,LONDON TOOLS LIMITED,390,ENGINEERING CRAFTS,MATERIALS,5902352891,1000003017
05.04.2019,ENVIRONMENT DIRECTORATE,CALLOW MASTER LOCKSMITHS,531.41,ENGINEERING CRAFTS,MATERIALS,5902352924,11179552
05.04.2019,ENVIRONMENT DIRECTORATE,LONDON TOOLS LIMITED,"1,050.00",ENGINEERING CRAFTS,MATERIALS,5902352891,1000003017
05.04.2019,ENVIRONMENT DIRECTORATE,LONDON TOOLS LIMITED,"1,700.00",ENGINEERING CRAFTS,MATERIALS,5902352840,1000003017
05.04.2019,ENVIRONMENT DIRECTORATE,ACTION SHUTTERS LTD,940,MANAGEMENT TEAM,EQUIPMENT PURCHASE & REPAIR,5902352829,1788172
05.04.2019,ENVIRONMENT DIRECTORATE,EDMUNDSON ELECTRICAL LTD,400,PUBLIC LIGHTING,MATERIALS,5902352950,1000066568
05.04.2019,ENVIRONMENT DIRECTORATE,EDMUNDSON ELECTRICAL LTD,400,PUBLIC LIGHTING,MATERIALS,5902352950,1000066568
05.04.2019,ENVIRONMENT DIRECTORATE,LAKEDALE POWER TOOLS,648.75,PUBLIC LIGHTING,MATERIALS,5902352911,1015368
05.04.2019,ENVIRONMENT DIRECTORATE,LAKEDALE POWER TOOLS,"1,775.00",PUBLIC LIGHTING,MATERIALS,5902352912,1015368
05.04.2019,ENVIRONMENT DIRECTORATE,SIGNS DIRECT (YORKSHIRE) LTD,886.2,"ROAD SAFETY EDUCATION,TRAINING&PUBLICITY",PROFESSIONAL FEES,5902352176,1000080927
05.04.2019,ENVIRONMENT DIRECTORATE,GRAFTON MERCHANTING GB LTD,341.52,SIGN SHOP,MATERIALS,5902352930,11296147
05.04.2019,ENVIRONMENT DIRECTORATE,BAKER ENGINEERING,810.74,STREET CLEANING-GENERAL,EQUIPMENT PURCHASE & REPAIR,5902352787,1000038205
05.04.2019,ENVIRONMENT DIRECTORATE,NPOWER LTD,"2,860.59",STREET TRADING A/C,ELECTRICITY,5902352770,1000078994
05.04.2019,ENVIRONMENT DIRECTORATE,WSP UK LTD,"3,391.47",TRANSPORT PROJECTS,OTHER CONTRACTORS,5902352786,1000054214
05.04.2019,ENVIRONMENT DIRECTORATE,WSP UK LTD,"3,437.59",TRANSPORT PROJECTS,OTHER CONTRACTORS,5902352785,1000054214
05.04.2019,F & C S EXCLUDING CORPORATE BUDGETS,CAPITA BUSINESS SERVICES LTD,"4,719.40",CAPITA,OTHER CONTRACTORS,5902352813,1000049446
05.04.2019,F & C S EXCLUDING CORPORATE BUDGETS,CAPITA BUSINESS SERVICES LTD,"131,116.32",CAPITA,OTHER CONTRACTORS,5902352816,1000049446
05.04.2019,F & C S EXCLUDING CORPORATE BUDGETS,CIPFA BUSINESS LTD,"6,190.00",CORPORATE SERVICES AND F&G,BOOKS & PUBLICATIONS,5902352815,1000024688
05.04.2019,F & C S EXCLUDING CORPORATE BUDGETS,FD SOLUTIONS LIMITED,359.75,LEGAL SVCES MANAGEMENT,STATIONERY,5902352796,1000077019
05.04.2019,FINANCE & GOVERNANCE,STAFFINO,"1,425.00",ADMINISTRATION SUPPORT,SOFTWARE,6101879918,INTERNATIONAL PAYMENT
05.04.2019,HOUSING GENERAL FUND,INFINITY NETWORKS LTD,"6,812.00",CAPITAL PS (REGEN),ICT ACQUISITION,5902352817,1000035571
05.04.2019,HOUSING HRA,BCS (ELECTRICAL & BUILDING SERVICES LTD),"242,346.01",BCS,MANUAL CREDITORS,5902352878,1000062321
05.04.2019,HOUSING HRA,POTTER RAPER AND PARTNERS,"1,012.00",CAPITAL PS (HRA),CONSTRUCTION SITE COSTS,5902352830,1009369
05.04.2019,HOUSING HRA,CALFORD SEADEN LLP,"1,075.00",CAPITAL PS (HRA),CONSTRUCTION FEES  - EXTERNAL,5902352811,1061592
05.04.2019,HOUSING HRA,HIGHER ELEVATION LTD,"2,973.35",CAPITAL PS (HRA),CONST'N MAIN CONTRACT - NON CERTIFICATED,2102940105,3000001900
05.04.2019,HOUSING HRA,AJMADAPTIONS LTD,"6,420.00",CAPITAL PS (HRA),CONST'N MAIN CONTRACT - NON CERTIFICATED,2102940103,3000002056
05.04.2019,HOUSING HRA,COLLIER CONTRACTS LTD,"44,352.71",CAPITAL PS (HRA),CONSTRUCTION MAIN CONTRACT -CERTIFICATED,2102940106,3000002072
05.04.2019,HOUSING HRA,STAFFINO,"1,900.00",HOME OWNERSHIP,SOFTWARE,6101879918,INTERNATIONAL PAYMENT
05.04.2019,HOUSING HRA,KENT COUNTY COUNCIL - LASER,"48,068.68",RESIDENT SERVICES BUSINESS SUPPORT,ELECTRICITY,6101879912,DIRECT DEBIT PAYMENT
05.04.2019,HOUSING HRA,KENT COUNTY COUNCIL - LASER,"18,391.42",RESIDENT SERVICES BUSINESS SUPPORT,ELECTRICITY,6101879913,DIRECT DEBIT PAYMENT
05.04.2019,HOUSING HRA,SMITH & BYFORD LTD,"594,797.14",SMITH AND BYFORD,MANUAL CREDITORS,2102940107,3000000520
05.04.2019,HOUSING STRATEGY AND OPTIONS,VOLUNTARY ACTION ISLINGTON LTD,370,HOMELESSNESS TRAINING ACADEMY,TRAINING,5902352347,1000082138
05.04.2019,LEISURE DIRECTORATE,P D CONSTRUCTION LTD,"1,480.00",BURGESS AREA TEAM,OTHER R&M,5902351921,1000000390
05.04.2019,LEISURE DIRECTORATE,SPORTS AND LEISURE MANAGEMENT LTD,"8,303.00",FACILITIES MAINTENANCE,BUILDING R&M,5902352955,1000077862
05.04.2019,LEISURE DIRECTORATE,SIMPLY HIRE LTD,863.58,FACILITIES MANAGEMENT,BUILDING R&M,5902352889,1000018354
05.04.2019,LEISURE DIRECTORATE,SIMPLY HIRE LTD,"1,033.16",FACILITIES MANAGEMENT,BUILDING R&M,5902352892,1000018354
05.04.2019,LEISURE DIRECTORATE,NPOWER LTD,-290.65,PARKS SERVICES DEVELOPMENT,ELECTRICITY,5902352897,1000078994
05.04.2019,LEISURE DIRECTORATE,NPOWER LTD,679.87,PARKS SERVICES DEVELOPMENT,ELECTRICITY,5902352896,1000078994
05.04.2019,LEISURE DIRECTORATE,NPOWER LTD,"1,518.61",PARKS SERVICES DEVELOPMENT,ELECTRICITY,5902352753,1000078994
05.04.2019,LEISURE DIRECTORATE,RENDALL & RITTNER LTD,"33,885.83",PARKS SERVICES DEVELOPMENT,PROFESSIONAL FEES,5902352956,1000031780
05.04.2019,LEISURE DIRECTORATE,CASTLE WATER LTD,295.71,PECKHAM LIBRARY,WATER,5902352928,1000078867
05.04.2019,LEISURE DIRECTORATE,ASKEWS & HOLTS LIBRARY SERVICES LTD,599.15,STOCK SERVICES,BOOKS & PUBLICATIONS,5902352794,1494168
05.04.2019,LEISURE DIRECTORATE,ULVERSCROFT LARGE PRINT BOOKS,"1,022.40",STOCK SERVICES,SUBSCRIPTIONS,5902352742,1012466
05.04.2019,LEISURE DIRECTORATE,ULVERSCROFT LARGE PRINT BOOKS,"3,233.74",STOCK SERVICES,SUBSCRIPTIONS,5902352745,1012466
05.04.2019,LEISURE DIRECTORATE,W F HOWES LTD,"8,489.00",STOCK SERVICES,SUBSCRIPTIONS,5902352861,1000013356
05.04.2019,LEISURE DIRECTORATE,ASKEWS & HOLTS LIBRARY SERVICES LTD,"10,166.59",STOCK SERVICES,BOOKS & PUBLICATIONS,5902352789,1494168
05.04.2019,MODERNISATION HGF,ELIESHA TRAINING LTD,"2,800.00",ILM COSTS,TRAINING,5902352899,1000079900
05.04.2019,MODERNISATION HGF,PSI TALENT MEASUREMENT (UK) LTD,747.3,OCCUPATIONAL ASSESSMENT,EQUIPMENT PURCHASE & REPAIR,5902352122,1000008858
05.04.2019,MODERNISATION HGF,DARREN NEWMAN EMPLOYMENT LAW LTD,"2,000.00",SUPPORT COSTS,PAYMENTS FOR PERSONNEL MANAGEMENT SERVS,5902352898,1000082194
05.04.2019,PLANNING AND TRANSPORT,SOUTHWARK NEWSPAPER LTD,336,DEVELOPMENT CONTROL ADMINSTRATION,MARKETING & PUBLICITY SERVICES,5902352823,1556957
05.04.2019,PROPERTY SERVICES,WILLIAM MARTIN PROPERTY CONSULTANTS LTD,"2,450.00",LBS SOJOURNER TRUTH COMMUNITY CENTRE,PROFESSIONAL FEES,5902351984,1000062171
05.04.2019,PUBLIC HEALTH,MENTAL HEALTH FIRST AID ENGLAND,756,HEALTHY SCHOOLS (PHSE),BOOKS & PUBLICATIONS,5902352822,1000072145
05.04.2019,PUBLIC HEALTH,CARL TURNER ARCHITECTS LTD,328.5,MASTER PLAN-H/WAY & TRANS INTERCHANGE,PROFESSIONAL FEES,5902351723,1000060355
05.04.2019,PUBLIC HEALTH,CARL TURNER ARCHITECTS LTD,842,MASTER PLAN-H/WAY & TRANS INTERCHANGE,PROFESSIONAL FEES,5902351723,1000060355
05.04.2019,PUBLIC HEALTH,CARL TURNER ARCHITECTS LTD,"4,637.00",MASTER PLAN-H/WAY & TRANS INTERCHANGE,PROFESSIONAL FEES,5902351723,1000060355
05.04.2019,PUBLIC HEALTH,THE PECKHAM PECULIAR,425,PROFESSIONAL SERVICES (GENERAL),MARKETING & PUBLICITY SERVICES,5902352809,1000074263
05.04.2019,RESIDENT SERVICES,APCOA PARKING (UK) LTD,812.58,PARKING CONTROL,OTHER CONTRACTORS,5902352832,1718645
05.04.2019,RESIDENT SERVICES,APCOA PARKING (UK) LTD,"47,000.00",PARKING CONTROL,OTHER CONTRACTORS,5902352832,1718645
05.04.2019,RESIDENT SERVICES,NEWINGTON BUTTS MANAGEMENT LTD,"54,245.82",PRIVATE SERVICE CHARGES,SERVICE CHARGES,5902352747,1000081298
05.04.2019,RESIDENT SERVICES HGF,KENT COUNTY COUNCIL - LASER,252.43,DEVONSHIRE ROAD,ELECTRICITY,5902352791,1000012926
05.04.2019,RESIDENT SERVICES HGF,KENT COUNTY COUNCIL - LASER,470.37,DEVONSHIRE ROAD,ELECTRICITY,5902352791,1000012926
05.04.2019,SOUTHWARK BUILDING SERVICES,UNIQUE OFFICE SOLUTIONS LTD,614,COMMERCIAL,FURNITURE PURCHASE & REPAIR,5902352877,1000039277
05.04.2019,SOUTHWARK BUILDING SERVICES,LONDON TOOLS LIMITED,769.5,ELECTRICAL TEAM - ELECTRICIAN,MATERIALS,5902352767,1000003017
05.04.2019,SOUTHWARK BUILDING SERVICES,LONDON TOOLS LIMITED,280,HEALTH & SAFETY,MATERIALS,5902352856,1000003017
05.04.2019,SOUTHWARK BUILDING SERVICES,TRAVIS PERKINS,288,R & M OVERHEADS,MATERIALS,5902352778,1514319
05.04.2019,SOUTHWARK BUILDING SERVICES,LONDON TOOLS LIMITED,295,R & M OVERHEADS,MATERIALS,5902352769,1000003017
05.04.2019,SOUTHWARK BUILDING SERVICES,LONDON TOOLS LIMITED,440,R & M OVERHEADS,MATERIALS,5902352860,1000003017
05.04.2019,SOUTHWARK BUILDING SERVICES,LONDON TOOLS LIMITED,540,R & M OVERHEADS,MATERIALS,5902352758,1000003017
05.04.2019,SOUTHWARK BUILDING SERVICES,LONDON TOOLS LIMITED,758.25,R & M OVERHEADS,MATERIALS,5902352852,1000003017
05.04.2019,SOUTHWARK BUILDING SERVICES,LONDON TOOLS LIMITED,294,STORES/LOGISTICS,CREDITORS -GR/IR CLEARING ACCOUNT,5902352752,1000003017
05.04.2019,SOUTHWARK BUILDING SERVICES,LONDON TOOLS LIMITED,339.6,STORES/LOGISTICS,MATERIALS,5902352849,1000003017
05.04.2019,SOUTHWARK BUILDING SERVICES,LONDON TOOLS LIMITED,340.89,STORES/LOGISTICS,CREDITORS -GR/IR CLEARING ACCOUNT,5902352748,1000003017
05.04.2019,SOUTHWARK BUILDING SERVICES,LONDON TOOLS LIMITED,402.48,STORES/LOGISTICS,CREDITORS -GR/IR CLEARING ACCOUNT,5902352750,1000003017
05.04.2019,SOUTHWARK BUILDING SERVICES,A T & T (GB LTD ),513.48,STORES/LOGISTICS,CREDITORS -GR/IR CLEARING ACCOUNT,5902352863,1000078342
05.04.2019,SOUTHWARK BUILDING SERVICES,LONDON TOOLS LIMITED,522.6,STORES/LOGISTICS,CREDITORS -GR/IR CLEARING ACCOUNT,5902352748,1000003017
05.04.2019,SOUTHWARK BUILDING SERVICES,LONDON TOOLS LIMITED,629.8,STORES/LOGISTICS,CREDITORS -GR/IR CLEARING ACCOUNT,5902352748,1000003017
05.04.2019,SOUTHWARK BUILDING SERVICES,LONDON TOOLS LIMITED,720,STORES/LOGISTICS,CREDITORS -GR/IR CLEARING ACCOUNT,5902352750,1000003017
05.04.2019,SOUTHWARK BUILDING SERVICES,LONDON TOOLS LIMITED,"1,085.60",STORES/LOGISTICS,CREDITORS -GR/IR CLEARING ACCOUNT,5902352750,1000003017
05.04.2019,SOUTHWARK BUILDING SERVICES,LONDON TOOLS LIMITED,"1,271.00",STORES/LOGISTICS,CREDITORS -GR/IR CLEARING ACCOUNT,5902352750,1000003017
05.04.2019,SOUTHWARK BUILDING SERVICES,A T & T (GB LTD ),"1,584.00",STORES/LOGISTICS,CREDITORS -GR/IR CLEARING ACCOUNT,5902352867,1000078342
06.04.2019,CENTRAL FUNCTIONS,MERLIN DMS LTD,441.08,HOME OWNERSHIP,OFFICE EXPENSES,5902352209,1000062300
06.04.2019,CENTRAL FUNCTIONS,KIER FACILITIES SERVICES LTD,"110,289.60",LEDBURY ESTATE,MISCELLANEOUS EXPENSES,5902352032,1000040603
06.04.2019,CHILDREN'S SERVICES,THE ALBANY 2001 COMPANY,-717.5,GENERAL CPD,REFRESHMENTS FOR MEETINGS,5902352141,1000052402
06.04.2019,CHILDREN'S SERVICES,THE ALBANY 2001 COMPANY,717.5,GENERAL CPD,REFRESHMENTS FOR MEETINGS,5902352136,1000052402
06.04.2019,CHILDREN'S SERVICES,THE ALBANY 2001 COMPANY,717.5,PRIMARY ACHIEVEMENT,REFRESHMENTS FOR MEETINGS,5902351943,1000052402
06.04.2019,CUSTOMER EXPERIENCE HGF,BIRCHAM DYSON BELL,"2,839.20",LONDON BRIDGE INQUEST,LEGAL FEES & COURT COSTS,5902351879,1000048605
06.04.2019,ENVIRONMENT DIRECTORATE,CHERRY PICKER HIRE LTD,390,NON HOUSING GROUNDS,EQUIPMENT PURCHASE & REPAIR,5902352725,1000077442
06.04.2019,F & C S EXCLUDING CORPORATE BUDGETS,DSI BILLING SERVICES LTD,734.12,ADMINISTRATIVE SUPPORT,POSTAGES,5902352722,1000058640
06.04.2019,HOUSING GENERAL FUND,DG SERVICING,"3,737.45",CAPITAL PS (HOUSING GF),CAPITAL GRANTS,5902352894,1000063140
06.04.2019,HOUSING HRA,CALFORD SEADEN LLP,294,CAPITAL PS (HRA),CONSTRUCTION FEES  - EXTERNAL,5902352820,1061592
06.04.2019,HOUSING HRA,CALFORD SEADEN LLP,857.51,CAPITAL PS (HRA),CONSTRUCTION FEES  - EXTERNAL,5902352187,1061592
06.04.2019,LEISURE DIRECTORATE,P D CONSTRUCTION LTD,"4,690.00",BURGESS AREA TEAM,OTHER R&M,5902351924,1000000390
06.04.2019,LEISURE DIRECTORATE,P D CONSTRUCTION LTD,"6,500.00",BURGESS AREA TEAM,OTHER R&M,5902351922,1000000390
06.04.2019,LEISURE DIRECTORATE,P D CONSTRUCTION LTD,"7,430.00",BURGESS AREA TEAM,OTHER R&M,5902351923,1000000390
07.04.2019,ASSET MANAGEMENT,AVONLINE PLC,"1,297.40",ENG CONTRACTS (NORTH),TV AERIALS R&M,5902352692,1000068672
07.04.2019,CHIEF EXECUTIVE,LDA DESIGN CONSULTING LTD,"5,250.96",CAPITAL PS (REGEN),CONSTRUCTION FEES - ARCHITECT,5902352133,1000031830
07.04.2019,CHILDREN AND ADULT,ENERGY ASSETS,"9,236.37",CAPITAL PS (EDUCATION),UTILITIES INSTALLATION,5902352180,1000082461
07.04.2019,CHILDREN'S SERVICES,KIDS,"15,675.00",CENTRAL COSTS - SEN,PROFESSIONAL FEES,5902352610,1000030036
07.04.2019,CUSTOMER EXPERIENCE HGF,TYNETEC LEGRAND LTD,"16,000.00",SMART MOBILE RESPONSE TEAM,EQUIPMENT PURCHASE & REPAIR,5902352128,1000066068
07.04.2019,ENVIRONMENT AND LEISURE,THOMAS FORD AND PARTNERS,"3,800.00",CAPITAL PS (LEISURE),CONSTRUCTION FEES  - EXTERNAL,5902352130,1000037686
07.04.2019,ENVIRONMENT AND LEISURE,LDA DESIGN CONSULTING LTD,"7,141.09",CAPITAL PS (LEISURE),CONSTRUCTION FEES  - EXTERNAL,5902352953,1000031830
07.04.2019,ENVIRONMENT DIRECTORATE,GREENHAM TRADING LTD,"1,511.21",ESTATE CLEANING-GENERAL,MATERIALS,5902352795,1000006610
07.04.2019,ENVIRONMENT DIRECTORATE,CIRRUS RESEARCH PLC,"14,984.00",NOISE& AIR QUALITY,EQUIPMENT PURCHASE & REPAIR,5902352460,1000077731
07.04.2019,ENVIRONMENT DIRECTORATE,SOUTHWARK NEWSPAPER LTD,276,STREET WORKS OVERHEADS,MARKETING & PUBLICITY SERVICES,5902352474,1556957
07.04.2019,ENVIRONMENT DIRECTORATE,SOUTHWARK NEWSPAPER LTD,288,STREET WORKS OVERHEADS,MARKETING & PUBLICITY SERVICES,5902352468,1556957
07.04.2019,ENVIRONMENT DIRECTORATE,SOUTHWARK NEWSPAPER LTD,288,STREET WORKS OVERHEADS,MARKETING & PUBLICITY SERVICES,5902352470,1556957
07.04.2019,ENVIRONMENT DIRECTORATE,SOUTHWARK NEWSPAPER LTD,288,STREET WORKS OVERHEADS,MARKETING & PUBLICITY SERVICES,5902352471,1556957
07.04.2019,ENVIRONMENT DIRECTORATE,SOUTHWARK NEWSPAPER LTD,288,STREET WORKS OVERHEADS,MARKETING & PUBLICITY SERVICES,5902352473,1556957
07.04.2019,HOUSING STRATEGY AND OPTIONS,RENTAL LONDON LTD,"3,000.00",HOMELESS PROJECTS,GRANTS,5902351982,1000082500
07.04.2019,HOUSING STRATEGY AND OPTIONS,SHELTER TRAINING LTD,300,HOMELESSNESS TRAINING ACADEMY,TRAINING,5902352524,1000033177
07.04.2019,HOUSING STRATEGY AND OPTIONS,SHELTER TRAINING LTD,"1,008.00",HOMELESSNESS TRAINING ACADEMY,TRAINING,5902352524,1000033177
07.04.2019,HOUSING STRATEGY AND OPTIONS,SHELTER TRAINING LTD,"3,092.00",HOMELESSNESS TRAINING ACADEMY,TRAINING,5902352524,1000033177
07.04.2019,LEISURE DIRECTORATE,QUADRON SERVICES LIMITED,915,CREMATORIUM,BUILDING R&M,5902352387,1000066528
07.04.2019,LEISURE DIRECTORATE,BIBLIOTHECA LTD,545,STOCK SERVICES,STATIONERY,5902352893,1000069536
07.04.2019,MODERNISATION HGF,MAYA INFORMATION SYSTEMS LTD,"7,200.00",APPLICATIONS,CONSULTANTS SERVICES,5902352103,1000082118
07.04.2019,PLANNING AND TRANSPORT,CENTRE FOR LONDON,"25,000.00",TRANSPORT POLICY AND PROGRAMS,CONSULTANTS SERVICES,5902352349,1000076521
07.04.2019,RESIDENT SERVICES,CARLISLE SECURITY SERVICES LTD,"11,710.81",CAMBERWELL,SECURITY SERVICES,5902352509,11212342
08.04.2019,ADULT SOCIAL CARE,REDACTED PERSONAL DATA,266.65,APPOINTEESHIPS,OTHER PAYMENTS FOR CLIENTS,REDACTED,REDACTED
08.04.2019,ADULT SOCIAL CARE,DARETHEALTHCARE UK LTD,579.18,LD LTS 18-64,SUPPORTED LIVING,2102940741,1000059149
08.04.2019,ADULT SOCIAL CARE,EXCLUSIVE SECURE CARE SERVICES,"1,562.80",LD MGMT & SUPPORT,CLIENT TRANSPORT,5902353079,1000080375
08.04.2019,ADULT SOCIAL CARE,RESOURCES FOR AUTISM,380,SPECIALIST CARE,SECTION 17 PAYMENTS TO AGENCIES/CARERS,5902353046,1000062540
08.04.2019,ADULT SOCIAL CARE,KIDS,590,SPECIALIST CARE,SECTION 17 PAYMENTS TO AGENCIES/CARERS,5902353045,1000030036
08.04.2019,ADULT SOCIAL CARE,RESOURCES FOR AUTISM,836,SPECIALIST CARE,SECTION 17 PAYMENTS TO AGENCIES/CARERS,5902353047,1000062540
08.04.2019,ADULT SOCIAL CARE,STREETSCENE ADDICTION RECOVERY LTD,985.71,SUB LTS 18-64,RESIDENTIAL CARE,2102940014,11221787
08.04.2019,ADULT SOCIAL CARE,STREETSCENE ADDICTION RECOVERY LTD,"1,104.00",SUB LTS 18-64,PLACEMENTS - REHAB,2102940013,11221787
08.04.2019,ASSET MANAGEMENT,DUCTCLEAN (UK) LTD,"25,629.57",ASBESTOS R&M (NORTH),ASBESTOS CONTRACT,2102940973,3000001635
08.04.2019,ASSET MANAGEMENT,BEACON PARTNERSHIP LLP,"4,165.00",DEVELOPMENT DELIVERY,PROFESSIONAL FEES,5902352821,1000082300
08.04.2019,ASSET MANAGEMENT,BUREAU VERITAS UK,"5,886.00",ENG CONTRACTS (SOUTH),HEATING - DISTRICT SYSTEM SERVICE,5902353261,1000052275
08.04.2019,CENTRAL FUNCTIONS,ALLPAY NET LIMITED,"1,055.37",SERVICE LEVEL AGREEMENTS,BANK CHARGES,5902353286,1000043001
08.04.2019,CENTRAL FUNCTIONS,ALLPAY NET LIMITED,"10,872.09",SERVICE LEVEL AGREEMENTS,BANK CHARGES,5902353284,1000043001
08.04.2019,CHIEF EXECUTIVE,FAIRHURST,780,CAPITAL PS (REGEN),CONSTRUCTION FEES,5902353209,1000081731
08.04.2019,CHIEF EXECUTIVE,STREET TREE CARE LTD,"2,725.00",CAPITAL PS (REGEN),CONSTRUCTION FEES  - EXTERNAL,5902352961,1000055901
08.04.2019,CHIEF EXECUTIVE,TRANSPORT FOR LONDON,"2,837.36",CAPITAL PS (REGEN),CONSTR'N SUB CONTRACT - NON CERTIFICATED,5902352528,1000023986
08.04.2019,CHIEF EXECUTIVE,TRANSPORT FOR LONDON,"8,915.64",CAPITAL PS (REGEN),CONSTR'N SUB CONTRACT - NON CERTIFICATED,5902352528,1000023986
08.04.2019,CHILDREN'S SERVICES,CONNECT FOSTERING SERVICES LTD,"2,380.00",AGENCY FOSTERING,EXTERNAL AGENCIES AND BODIES,5902353033,1000079969
08.04.2019,CHILDREN'S SERVICES,DECUS LTD,"4,400.00",ASSISSTANT DIRECTOR (CHILDREN),PROFESSIONAL FEES,5902353036,1000080190
08.04.2019,CHILDREN'S SERVICES,PHS GROUP PLC,372.51,BISHOPS HOUSE EARLY YEARS CENTRE,EXTERNAL AGENCIES AND BODIES,5902353280,1851993
08.04.2019,CHILDREN'S SERVICES,PHS GROUP PLC,"1,757.30",BISHOPS HOUSE EARLY YEARS CENTRE,EXTERNAL AGENCIES AND BODIES,5902353267,1851993
08.04.2019,CHILDREN'S SERVICES,PHS GROUP PLC,"3,875.34",BISHOPS HOUSE EARLY YEARS CENTRE,EXTERNAL AGENCIES AND BODIES,5902353265,1851993
08.04.2019,CHILDREN'S SERVICES,THE WALK TO FREEDOM LTD,420,CARE GRPS  4 TO 6,OTHER PAYMENTS FOR CLIENTS,5902353034,1000081592
08.04.2019,CHILDREN'S SERVICES,CONTACT PROFESSIONALS,475,CARE GRPS  4 TO 6,OTHER PAYMENTS FOR CLIENTS,5902353132,1000057263
08.04.2019,CHILDREN'S SERVICES,SUPPORTED FOSTERING SERVICES,305,CONTACT,OTHER PAYMENTS FOR CLIENTS,5902353069,1927554
08.04.2019,CHILDREN'S SERVICES,PROACTIV CONTACT CENTRE,360,CONTACT,OTHER PAYMENTS FOR CLIENTS,5902353078,1000061169
08.04.2019,CHILDREN'S SERVICES,PROACTIV CONTACT CENTRE,420,CONTACT,OTHER PAYMENTS FOR CLIENTS,5902353081,1000061169
08.04.2019,CHILDREN'S SERVICES,PROACTIV CONTACT CENTRE,480,CONTACT,OTHER PAYMENTS FOR CLIENTS,5902353103,1000061169
08.04.2019,CHILDREN'S SERVICES,PROACTIV CONTACT CENTRE,540,CONTACT,OTHER PAYMENTS FOR CLIENTS,5902353105,1000061169
08.04.2019,CHILDREN'S SERVICES,PROACTIV CONTACT CENTRE,660,CONTACT,OTHER PAYMENTS FOR CLIENTS,5902353087,1000061169
08.04.2019,CHILDREN'S SERVICES,PROACTIV CONTACT CENTRE,900,CONTACT,OTHER PAYMENTS FOR CLIENTS,5902353076,1000061169
08.04.2019,CHILDREN'S SERVICES,PROACTIV CONTACT CENTRE,"1,290.00",CONTACT,OTHER PAYMENTS FOR CLIENTS,5902353091,1000061169
08.04.2019,CHILDREN'S SERVICES,PROACTIV CONTACT CENTRE,"1,500.00",CONTACT,OTHER PAYMENTS FOR CLIENTS,5902353101,1000061169
08.04.2019,CHILDREN'S SERVICES,REDACTED PERSONAL DATA,"-2,771.72",DISABILITY & HIV,PAYMENTS TO CARERS,REDACTED,REDACTED
08.04.2019,CHILDREN'S SERVICES,REDACTED PERSONAL DATA,300,DISABILITY & HIV,ADDITIONAL PAYMENTS TO AGENCIES/CARERS,REDACTED,REDACTED
08.04.2019,CHILDREN'S SERVICES,REDACTED PERSONAL DATA,300,DISABILITY & HIV,ADDITIONAL PAYMENTS TO AGENCIES/CARERS,REDACTED,REDACTED
08.04.2019,CHILDREN'S SERVICES,REDACTED PERSONAL DATA,300,DISABILITY & HIV,ADDITIONAL PAYMENTS TO AGENCIES/CARERS,REDACTED,REDACTED
08.04.2019,CHILDREN'S SERVICES,REDACTED PERSONAL DATA,300,DISABILITY & HIV,OTHER PAYMENTS FOR CLIENTS,REDACTED,REDACTED
08.04.2019,CHILDREN'S SERVICES,REDACTED PERSONAL DATA,380,DISABILITY & HIV,ADDITIONAL PAYMENTS TO AGENCIES/CARERS,REDACTED,REDACTED
08.04.2019,CHILDREN'S SERVICES,REDACTED PERSONAL DATA,380,DISABILITY & HIV,ADDITIONAL PAYMENTS TO AGENCIES/CARERS,REDACTED,REDACTED
08.04.2019,CHILDREN'S SERVICES,REDACTED PERSONAL DATA,400,DISABILITY & HIV,ADDITIONAL PAYMENTS TO AGENCIES/CARERS,REDACTED,REDACTED
08.04.2019,CHILDREN'S SERVICES,REDACTED PERSONAL DATA,434.57,DISABILITY & HIV,PAYMENTS TO CARERS,REDACTED,REDACTED
08.04.2019,CHILDREN'S SERVICES,REDACTED PERSONAL DATA,438.57,DISABILITY & HIV,PAYMENTS TO CARERS,REDACTED,REDACTED
08.04.2019,CHILDREN'S SERVICES,REDACTED PERSONAL DATA,500,DISABILITY & HIV,PAYMENTS TO CARERS,REDACTED,REDACTED
08.04.2019,CHILDREN'S SERVICES,REDACTED PERSONAL DATA,523.29,DISABILITY & HIV,PAYMENTS TO CARERS,REDACTED,REDACTED
08.04.2019,CHILDREN'S SERVICES,REDACTED PERSONAL DATA,523.29,DISABILITY & HIV,PAYMENTS TO CARERS,REDACTED,REDACTED
08.04.2019,CHILDREN'S SERVICES,REDACTED PERSONAL DATA,527.14,DISABILITY & HIV,PAYMENTS TO CARERS,REDACTED,REDACTED
08.04.2019,CHILDREN'S SERVICES,REDACTED PERSONAL DATA,645.72,DISABILITY & HIV,PAYMENTS TO CARERS,REDACTED,REDACTED
08.04.2019,CHILDREN'S SERVICES,REDACTED PERSONAL DATA,789.29,DISABILITY & HIV,PAYMENTS TO CARERS,REDACTED,REDACTED
08.04.2019,CHILDREN'S SERVICES,REDACTED PERSONAL DATA,"1,211.28",DISABILITY & HIV,PAYMENTS TO CARERS,REDACTED,REDACTED
08.04.2019,CHILDREN'S SERVICES,REDACTED PERSONAL DATA,"2,771.72",DISABILITY & HIV,PAYMENTS TO CARERS,REDACTED,REDACTED
08.04.2019,CHILDREN'S SERVICES,REDACTED PERSONAL DATA,505.8,SCH TRANS - CONTRACT COST,OTHER PAYMENTS FOR CLIENTS,REDACTED,REDACTED
08.04.2019,CHILDREN'S SERVICES,BDO LLP,"2,135.00",SCHOOLS AUDIT,PAYMENTS FOR FINANCIAL SERVICES,5902352519,1000057898
08.04.2019,CHILDREN'S SERVICES,REDACTED PERSONAL DATA,300,SEMI INDEPENDENT,OTHER PAYMENTS FOR CLIENTS,REDACTED,REDACTED
08.04.2019,CHILDREN'S SERVICES,MY LIFE SEMI-INDEPENDENT PROJECT LTD,355,SEMI INDEPENDENT,OTHER PAYMENTS FOR CLIENTS,5902353138,1000075301
08.04.2019,CHILDREN'S SERVICES,MY LIFE SEMI-INDEPENDENT PROJECT LTD,375,SEMI INDEPENDENT,OTHER PAYMENTS FOR CLIENTS,5902353141,1000075301
08.04.2019,CHILDREN'S SERVICES,SALTCO LTD T/A KELLY EXECUTIVE,760,SUMMERHOUSE - EX416 - 5015232,HIRED VEHICLES,5902353255,1000000548
08.04.2019,CHILDREN'S SERVICES,SINEAD JOYCE,"2,160.00",SUMMERHOUSE - EX416 - 5015232,CONSULTANTS SERVICES,5902353237,1000056695
08.04.2019,CHILDREN'S SERVICES,CHARTWELLS,"2,384.80",SUMMERHOUSE - EX416 - 5015232,CATERING MATERIALS & SUPPLIES,5902353239,1000010625
08.04.2019,CHILDREN'S SERVICES,SALTCO LTD T/A KELLY EXECUTIVE,"3,230.00",SUMMERHOUSE - EX416 - 5015232,HIRED VEHICLES,5902353247,1000000548
08.04.2019,CHILDREN'S SERVICES,SALTCO LTD T/A KELLY EXECUTIVE,"3,230.00",SUMMERHOUSE - EX416 - 5015232,HIRED VEHICLES,5902353251,1000000548
08.04.2019,CHILDREN'S SERVICES,BDO LLP,"2,750.00",TACKLING TROUBLED FAMILIES,EXTERNAL AGENCIES AND BODIES,5902352195,1000057898
08.04.2019,CHILDREN'S SERVICES,BDO LLP,"4,140.00",TACKLING TROUBLED FAMILIES,EXTERNAL AGENCIES AND BODIES,5902352194,1000057898
08.04.2019,CHILDREN'S SERVICES,MARSH AND PARTNERS,"2,953.00",UASC SECTION 24,OTHER PAYMENTS FOR CLIENTS,5902352743,1000082569
08.04.2019,CHILDREN'S SERVICES,REDACTED PERSONAL DATA,300,UNACCOMPANIED ASYLUM CHILDREN 16-17,OTHER PAYMENTS FOR CLIENTS,REDACTED,REDACTED
08.04.2019,CLIENT SVCES,ALLPAY NET LIMITED,250.87,CASHIERS SLA,BANK CHARGES,5902353272,1000043001
08.04.2019,CLIENT SVCES,ALLPAY NET LIMITED,"2,977.54",CASHIERS SLA,BANK CHARGES,5902353275,1000043001
08.04.2019,COMMUNITIES,WILLOW ESTATE AGENTS (LONDON) LTD,"1,271.00",NO RECOURSE TO PUBLIC FUNDS,ACCOMMODATION CHARGES,5902353233,1000060607
08.04.2019,COMMUNITIES,SOUTHSIDE PARTNERSHIP,"1,274.17",NO RECOURSE TO PUBLIC FUNDS,ACCOMMODATION CHARGES,5902353230,1716624
08.04.2019,COMMUNITIES,SOUTHSIDE PARTNERSHIP,"1,274.17",NO RECOURSE TO PUBLIC FUNDS,ACCOMMODATION CHARGES,5902353234,1716624
08.04.2019,COMMUNITIES,DARETHEALTHCARE UK LTD,"1,348.44",NO RECOURSE TO PUBLIC FUNDS,HOMECARE - C&V,2102940744,1000059149
08.04.2019,COMMUNITIES,SOLACE WOMEN'S AID,"138,394.07",VIOLENCE AGAINST WOMEN & GIRLS,EXTERNAL AGENCIES AND BODIES,5902353259,1000057231
08.04.2019,CORPORATE & DEMOCRATIC CORE,POTTERS FIELDS PARK MANAGEMENT TRUST,"15,473.50",POTTERS FIELD PROJECT COSTS,RENTS,2102940737,1000053530
08.04.2019,CUSTOMER EXPERIENCE HGF,IMPERIAL COLLEGE PROJECTS LTD,276,CORONER'S,PROFESSIONAL FEES,5902353178,1000080106
08.04.2019,CUSTOMER EXPERIENCE HGF,IMPERIAL COLLEGE PROJECTS LTD,276,CORONER'S,PROFESSIONAL FEES,5902353180,1000080106
08.04.2019,CUSTOMER EXPERIENCE HGF,IMPERIAL COLLEGE PROJECTS LTD,276,CORONER'S,PROFESSIONAL FEES,5902353187,1000080106
08.04.2019,CUSTOMER EXPERIENCE HGF,IMPERIAL COLLEGE PROJECTS LTD,324,CORONER'S,PROFESSIONAL FEES,5902353175,1000080106
08.04.2019,CUSTOMER EXPERIENCE HGF,IMPERIAL COLLEGE PROJECTS LTD,412,CORONER'S,PROFESSIONAL FEES,5902353184,1000080106
08.04.2019,CUSTOMER EXPERIENCE HGF,IMPERIAL COLLEGE PROJECTS LTD,428,CORONER'S,PROFESSIONAL FEES,5902353143,1000080106
08.04.2019,CUSTOMER EXPERIENCE HGF,IMPERIAL COLLEGE PROJECTS LTD,484,CORONER'S,PROFESSIONAL FEES,5902353122,1000080106
08.04.2019,CUSTOMER EXPERIENCE HGF,IMPERIAL COLLEGE PROJECTS LTD,485,CORONER'S,PROFESSIONAL FEES,5902353167,1000080106
08.04.2019,CUSTOMER EXPERIENCE HGF,IMPERIAL COLLEGE PROJECTS LTD,576,CORONER'S,PROFESSIONAL FEES,5902353134,1000080106
08.04.2019,CUSTOMER EXPERIENCE HGF,IMPERIAL COLLEGE PROJECTS LTD,732,CORONER'S,PROFESSIONAL FEES,5902353128,1000080106
08.04.2019,CUSTOMER EXPERIENCE HGF,SG PATH LTD,745.9,CORONER'S,PROFESSIONAL FEES,5902353191,1000077883
08.04.2019,ENVIRONMENT AND LEISURE,CONWAY AECOM LTD,"6,099.49",CAPITAL PS (LEISURE),CONSTR'N SUB CONTRACT - NON CERTIFICATED,5902352318,1000071205
08.04.2019,ENVIRONMENT DIRECTORATE,LOOKERS LEASING LTD,678.92,CAR LEASING CTRL A/C,VEHICLE LEASING CHARGES,5902353179,1000079286
08.04.2019,ENVIRONMENT DIRECTORATE,LOOKERS LEASING LTD,688.8,CAR LEASING CTRL A/C,VEHICLE LEASING CHARGES,5902353179,1000079286
08.04.2019,ENVIRONMENT DIRECTORATE,HITACHI CAPITAL VEHICLE SOLN LTD,"1,502.07",CAR LEASING CTRL A/C,VEHICLE LEASING CHARGES,5902353194,1000007619
08.04.2019,ENVIRONMENT DIRECTORATE,HITACHI CAPITAL VEHICLE SOLN LTD,"1,550.05",CAR LEASING CTRL A/C,VEHICLE LEASING CHARGES,5902353194,1000007619
08.04.2019,ENVIRONMENT DIRECTORATE,CLOSE BROTHERS VEHICLE HIRE LTD,256.2,COMMERCIAL VEH CTRL A/C,HIRED VEHICLES,5902353185,1000074394
08.04.2019,ENVIRONMENT DIRECTORATE,CLOSE BROTHERS VEHICLE HIRE LTD,256.2,COMMERCIAL VEH CTRL A/C,HIRED VEHICLES,5902353188,1000074394
08.04.2019,ENVIRONMENT DIRECTORATE,UNIVERSAL TYRE & AUTOCENTRES,258.79,COMMERCIAL VEH CTRL A/C,OTHER VEHICLE RUNNING COSTS,5902353040,1000072475
08.04.2019,ENVIRONMENT DIRECTORATE,CLOSE BROTHERS VEHICLE HIRE LTD,269.76,COMMERCIAL VEH CTRL A/C,HIRED VEHICLES,5902353025,1000074394
08.04.2019,ENVIRONMENT DIRECTORATE,DAWSONGROUP VANS LTD,300.08,COMMERCIAL VEH CTRL A/C,HIRED VEHICLES,5902353009,1000082230
08.04.2019,ENVIRONMENT DIRECTORATE,DAWSONGROUP VANS LTD,300.08,COMMERCIAL VEH CTRL A/C,HIRED VEHICLES,5902353010,1000082230
08.04.2019,ENVIRONMENT DIRECTORATE,CLOSE BROTHERS VEHICLE HIRE LTD,302.4,COMMERCIAL VEH CTRL A/C,HIRED VEHICLES,5902353021,1000074394
08.04.2019,ENVIRONMENT DIRECTORATE,CLOSE BROTHERS VEHICLE HIRE LTD,302.4,COMMERCIAL VEH CTRL A/C,HIRED VEHICLES,5902353022,1000074394
08.04.2019,ENVIRONMENT DIRECTORATE,CLOSE BROTHERS VEHICLE HIRE LTD,302.4,COMMERCIAL VEH CTRL A/C,HIRED VEHICLES,5902353023,1000074394
08.04.2019,ENVIRONMENT DIRECTORATE,CLOSE BROTHERS VEHICLE HIRE LTD,302.4,COMMERCIAL VEH CTRL A/C,HIRED VEHICLES,5902353024,1000074394
08.04.2019,ENVIRONMENT DIRECTORATE,CLOSE BROTHERS VEHICLE HIRE LTD,302.4,COMMERCIAL VEH CTRL A/C,HIRED VEHICLES,5902353190,1000074394
08.04.2019,ENVIRONMENT DIRECTORATE,DAWSONGROUP VANS LTD,323.33,COMMERCIAL VEH CTRL A/C,HIRED VEHICLES,5902353012,1000082230
08.04.2019,ENVIRONMENT DIRECTORATE,NORTHGATE VEHICLE HIRE (SOUTH EAST),327.43,COMMERCIAL VEH CTRL A/C,HIRED VEHICLES,5902353258,1000044807
08.04.2019,ENVIRONMENT DIRECTORATE,FIVEWAYS MUNICIPAL VEHICLE HIRE LTD,360,COMMERCIAL VEH CTRL A/C,HIRED VEHICLES,5902353204,1000023985
08.04.2019,ENVIRONMENT DIRECTORATE,SCOT GROUP LIMITED,364,COMMERCIAL VEH CTRL A/C,HIRED VEHICLES,5902353249,1709512
08.04.2019,ENVIRONMENT DIRECTORATE,SCOT GROUP LIMITED,385.56,COMMERCIAL VEH CTRL A/C,HIRED VEHICLES,5902353242,1709512
08.04.2019,ENVIRONMENT DIRECTORATE,FIVEWAYS MUNICIPAL VEHICLE HIRE LTD,435,COMMERCIAL VEH CTRL A/C,HIRED VEHICLES,5902353197,1000023985
08.04.2019,ENVIRONMENT DIRECTORATE,LONDON HIRE LIMITED,522.35,COMMERCIAL VEH CTRL A/C,HIRED VEHICLES,5902353208,1383812
08.04.2019,ENVIRONMENT DIRECTORATE,UNIVERSAL TYRE & AUTOCENTRES,560.81,COMMERCIAL VEH CTRL A/C,OTHER VEHICLE RUNNING COSTS,5902353168,1000072475
08.04.2019,ENVIRONMENT DIRECTORATE,ACCESS HIRE NATIONWIDE LTD,680,COMMERCIAL VEH CTRL A/C,HIRED VEHICLES,5902353124,1000048527
08.04.2019,ENVIRONMENT DIRECTORATE,SCOT GROUP LIMITED,701.88,COMMERCIAL VEH CTRL A/C,HIRED VEHICLES,5902353254,1709512
08.04.2019,ENVIRONMENT DIRECTORATE,FIVEWAYS MUNICIPAL VEHICLE HIRE LTD,725,COMMERCIAL VEH CTRL A/C,HIRED VEHICLES,5902353199,1000023985
08.04.2019,ENVIRONMENT DIRECTORATE,FIVEWAYS MUNICIPAL VEHICLE HIRE LTD,725,COMMERCIAL VEH CTRL A/C,HIRED VEHICLES,5902353200,1000023985
08.04.2019,ENVIRONMENT DIRECTORATE,FIVEWAYS MUNICIPAL VEHICLE HIRE LTD,765.22,COMMERCIAL VEH CTRL A/C,VEHICLE REPAIRS & MAINTENANCE,5902353224,1000023985
08.04.2019,ENVIRONMENT DIRECTORATE,ACCESS HIRE NATIONWIDE LTD,825.71,COMMERCIAL VEH CTRL A/C,HIRED VEHICLES,5902353131,1000048527
08.04.2019,ENVIRONMENT DIRECTORATE,FIVEWAYS MUNICIPAL VEHICLE HIRE LTD,900,COMMERCIAL VEH CTRL A/C,HIRED VEHICLES,5902353202,1000023985
08.04.2019,ENVIRONMENT DIRECTORATE,ACCESS HIRE NATIONWIDE LTD,"1,306.43",COMMERCIAL VEH CTRL A/C,HIRED VEHICLES,5902353129,1000048527
08.04.2019,ENVIRONMENT DIRECTORATE,ACCESS HIRE NATIONWIDE LTD,"1,408.93",COMMERCIAL VEH CTRL A/C,HIRED VEHICLES,5902353019,1000048527
08.04.2019,ENVIRONMENT DIRECTORATE,ACCESS HIRE NATIONWIDE LTD,"1,408.93",COMMERCIAL VEH CTRL A/C,HIRED VEHICLES,5902353139,1000048527
08.04.2019,ENVIRONMENT DIRECTORATE,ACCESS HIRE NATIONWIDE LTD,"1,505.71",COMMERCIAL VEH CTRL A/C,HIRED VEHICLES,5902353135,1000048527
08.04.2019,ENVIRONMENT DIRECTORATE,UK TELEMATICS LTD,"3,567.83",COMMERCIAL VEH CTRL A/C,VEHICLE REPAIRS & MAINTENANCE,5902353048,1000081665
08.04.2019,ENVIRONMENT DIRECTORATE,LYTE LADDERS AND TOWERS LIMITED,661.58,ENGINEERING CRAFTS,MATERIALS,5902353094,1000082472
08.04.2019,ENVIRONMENT DIRECTORATE,PURPOSE POWDER COATINGS LTD,680,ENGINEERING CRAFTS,MATERIALS,5902353086,1000059450
08.04.2019,ENVIRONMENT DIRECTORATE,AMETHYST HORTICULTURE LTD,"1,311.70",GROUNDS MAINTENANCE - GENERAL,MATERIALS,5902353054,1000054623
08.04.2019,ENVIRONMENT DIRECTORATE,BELL BRUSH COMPANY,479.9,MANAGEMENT TEAM,MATERIALS,5902352788,1259776
08.04.2019,ENVIRONMENT DIRECTORATE,C S G (USHERS) LTD,"24,315.00",NON HOUSING GROUNDS,OTHER CONTRACTORS,5902352656,1000073203
08.04.2019,ENVIRONMENT DIRECTORATE,RIGHTON & BLACKBURNS LTD,293.75,SIGN SHOP,MATERIALS,5902353097,1000041264
08.04.2019,F & C S EXCLUDING CORPORATE BUDGETS,CAPITA BUSINESS SERVICES LTD,"1,872.00",ADMINISTRATIVE SUPPORT,EQUIPMENT PURCHASE & REPAIR,5902353206,1000006291
08.04.2019,F & C S EXCLUDING CORPORATE BUDGETS,CAPITA BUSINESS SERVICES LTD,"1,885.00",ADMINISTRATIVE SUPPORT,EQUIPMENT PURCHASE & REPAIR,5902353062,1000006291
08.04.2019,F & C S EXCLUDING CORPORATE BUDGETS,CAPITA BUSINESS SERVICES LTD,"2,106.00",ADMINISTRATIVE SUPPORT,EQUIPMENT PURCHASE & REPAIR,5902353201,1000006291
08.04.2019,F & C S EXCLUDING CORPORATE BUDGETS,CAPITA BUSINESS SERVICES LTD,"2,197.00",ADMINISTRATIVE SUPPORT,EQUIPMENT PURCHASE & REPAIR,5902353253,1000006291
08.04.2019,F & C S EXCLUDING CORPORATE BUDGETS,BDO LLP,431.25,INTERNAL AUDIT CONTRACTS,PAYMENTS FOR FINANCIAL SERVICES,5902352519,1000057898
08.04.2019,F & C S EXCLUDING CORPORATE BUDGETS,BDO LLP,"19,471.00",INTERNAL AUDIT CONTRACTS,PAYMENTS FOR FINANCIAL SERVICES,5902352519,1000057898
08.04.2019,F & C S EXCLUDING CORPORATE BUDGETS,BUDGET CARPETS,537.5,SESS,OTHER PAYMENTS FOR CLIENTS,5902353001,11319076
08.04.2019,HOUSING HRA,WESTCO TRADING LTD,480,CAPITAL PS (HRA),CONSTRUCTION,5902352417,1000069599
08.04.2019,HOUSING HRA,OPENREACH BT,"3,500.00",CAPITAL PS (HRA),CONSTRUCTION FEES  - EXTERNAL,5902352370,1000057270
08.04.2019,HOUSING HRA,PELLINGS LLP,"7,137.00",CAPITAL PS (HRA),CONSTRUCTION FEES  - EXTERNAL,5902352908,1009262
08.04.2019,HOUSING HRA,PELLINGS LLP,"7,603.65",CAPITAL PS (HRA),CONSTRUCTION FEES  - EXTERNAL,5902352907,1009262
08.04.2019,HOUSING HRA,PELLINGS LLP,"10,416.00",CAPITAL PS (HRA),CONSTRUCTION FEES  - EXTERNAL,5902352906,1009262
08.04.2019,HOUSING HRA,PELLINGS LLP,"11,902.50",CAPITAL PS (HRA),CONSTRUCTION FEES  - EXTERNAL,5902352905,1009262
08.04.2019,LEISURE DIRECTORATE,QUADRON SERVICES LIMITED,"9,777.50",BURGESS AREA TEAM,GROUNDS MAINTENANCE,5902352138,1000066528
08.04.2019,LEISURE DIRECTORATE,QUADRON SERVICES LIMITED,"6,749.83",BURGESS SPORTS CENTRE,PROFESSIONAL FEES,5902352139,1000066528
08.04.2019,LEISURE DIRECTORATE,NPOWER LTD,321.43,PARKS SERVICES DEVELOPMENT,ELECTRICITY,5902353020,1000078994
08.04.2019,LEISURE DIRECTORATE,NPOWER LTD,419.97,PARKS SERVICES DEVELOPMENT,ELECTRICITY,5902353014,1000078994
08.04.2019,LEISURE DIRECTORATE,NPOWER LTD,"1,715.49",PARKS SERVICES DEVELOPMENT,ELECTRICITY,5902353011,1000078994
08.04.2019,LEISURE DIRECTORATE,A B KEY LLP,285,SDM BUDGET,EQUIPMENT PURCHASE & REPAIR,5902353268,1000036348
08.04.2019,LEISURE DIRECTORATE,THAMES MARINE SERVICES LTD,309,SDM BUDGET,RECHARGED VEHICLE COSTS,5902353256,1000077273
08.04.2019,LEISURE DIRECTORATE,A B KEY LLP,416.72,SDM BUDGET,EQUIPMENT PURCHASE & REPAIR,5902353271,1000036348
08.04.2019,LEISURE DIRECTORATE,CASTLE WATER LTD,796.72,SDM BUDGET,WATER,5902353222,1000078867
08.04.2019,LEISURE DIRECTORATE,KENT COUNTY COUNCIL - LASER,"8,599.31",SDM BUDGET,ELECTRICITY,5902353232,1000012926
08.04.2019,LEISURE DIRECTORATE,INTO SERVICES LONDON LTD,"3,000.00",SOUTHWARK AREA TEAM,GROUNDS MAINTENANCE,5902353189,1000059328
08.04.2019,MODERNISATION HGF,SODEXHO PASS LTD,647.37,CHILDCARE VOUCHERS,OTHER EMPLOYEE EXPENSES,5902353221,1000048650
08.04.2019,MODERNISATION HGF,SODEXHO PASS LTD,"21,579.04",CHILDCARE VOUCHERS,OTHER EMPLOYEE EXPENSES,5902353221,1000048650
08.04.2019,MODERNISATION HGF,SUNITA SHARMA,"1,125.00",MEMBER DEVELOPMENT,TRAINING,5902353013,1000073784
08.04.2019,PROPERTY SERVICES,AGY CONSULTANTS LTD,"71,499.96",GIS,PROFESSIONAL FEES,5902352520,1000002277
08.04.2019,PUBLIC HEALTH,SAWYER FIELDING LTD,"1,500.00",PROFESSIONAL SERVICES (GENERAL),PROFESSIONAL FEES,5902353289,1000081434
08.04.2019,RESIDENT SERVICES,EDF ENERGY PLC,333.14,OPERATIONS/OFFICES ACCOMMODATION,ELECTRICITY,5902353212,1008746
08.04.2019,SOUTHWARK BUILDING SERVICES,KINGDOM SERVICES GROUP LTD,"1,184.50",DEPOT COSTS,SECURITY SERVICES,5902353007,1000064479
08.04.2019,SOUTHWARK BUILDING SERVICES,ACCLAIM HANDLING PLC,346.66,STORES/LOGISTICS,OP LEASE/HIRE CHARGES:PLANT/EQUIP/FURNIT,5902353016,1000008515
09.04.2019,ADULT SOCIAL CARE,THE RIVERSIDE GROUP LTD,505.96,APPOINTEESHIPS,OTHER PAYMENTS FOR CLIENTS,5902353464,1000069625
09.04.2019,ADULT SOCIAL CARE,GROVE HOTEL LTD,"1,085.00",APPOINTEESHIPS,OTHER PAYMENTS FOR CLIENTS,5902353404,1000043663
09.04.2019,ADULT SOCIAL CARE,AGE UK  LEWISHAM & SOUTHWARK,"2,500.00",HOSPITAL DISCHARGE TEAM,MISCELLANEOUS EXPENSES,5902353394,1000066751
09.04.2019,ADULT SOCIAL CARE,SAGECARE LTD,266.4,LD LTS 18-64,HOMECARE - C&V,2102941576,1000080924
09.04.2019,ADULT SOCIAL CARE,THREE CS,360.2,LD LTS 18-64,SUPPORTED LIVING,2102941112,1000033865
09.04.2019,ADULT SOCIAL CARE,THREE CS,360.2,LD LTS 18-64,SUPPORTED LIVING,2102941124,1000033865
09.04.2019,ADULT SOCIAL CARE,SAGECARE LTD,399.68,LD LTS 18-64,HOMECARE - C&V,2102941474,1000080924
09.04.2019,ADULT SOCIAL CARE,CONTACT PROFESSIONALS,465,LD LTS 18-64,SUPPORTED LIVING,2102941700,1000057263
09.04.2019,ADULT SOCIAL CARE,THREE CS,540.3,LD LTS 18-64,SUPPORTED LIVING,2102941118,1000033865
09.04.2019,ADULT SOCIAL CARE,MARCUS AND MARCUS LTD,640,LD LTS 18-64,SUPPORTED LIVING,2102941354,1000065913
09.04.2019,ADULT SOCIAL CARE,LONDON CARE LTD,715.95,LD LTS 18-64,HOMECARE - C&V,2102941693,1000003398
09.04.2019,ADULT SOCIAL CARE,THREE CS,823.2,LD LTS 18-64,SUPPORTED LIVING,2102941114,1000033865
09.04.2019,ADULT SOCIAL CARE,SAGECARE LTD,915.75,LD LTS 18-64,HOMECARE - C&V,2102941638,1000080924
09.04.2019,ADULT SOCIAL CARE,SAGECARE LTD,932.68,LD LTS 18-64,HOMECARE - C&V,2102941494,1000080924
09.04.2019,ADULT SOCIAL CARE,ACCESS MOBILITY TRANSPORT LTD,"1,251.20",LD LTS 18-64,CLIENT TRANSPORT,2102941691,1000074637
09.04.2019,ADULT SOCIAL CARE,MARCUS AND MARCUS LTD,"4,000.00",LD LTS 18-64,SUPPORTED LIVING,2102941355,1000065913
09.04.2019,ADULT SOCIAL CARE,MARCUS AND MARCUS LTD,"4,800.00",LD LTS 18-64,SUPPORTED LIVING,2102941352,1000065913
09.04.2019,ADULT SOCIAL CARE,MARCUS AND MARCUS LTD,"17,920.00",LD LTS 18-64,SUPPORTED LIVING,2102941353,1000065913
09.04.2019,ADULT SOCIAL CARE,THREE CS,946.51,LD LTS 65+,SUPPORTED LIVING,2102941122,1000033865
09.04.2019,ADULT SOCIAL CARE,LONDON CARE LTD,366.44,MEM LTS 18-64,HOMECARE - C&V,2102941241,1000003398
09.04.2019,ADULT SOCIAL CARE,LONDON CARE LTD,699.44,MEM LTS 18-64,HOMECARE - C&V,2102941158,1000003398
09.04.2019,ADULT SOCIAL CARE,SAGECARE LTD,699.44,MEM LTS 18-64,HOMECARE - C&V,2102941520,1000080924
09.04.2019,ADULT SOCIAL CARE,SAGECARE LTD,499.8,MEM LTS 65+,HOMECARE - C&V,2102941678,1000080924
09.04.2019,ADULT SOCIAL CARE,ELEANOR NURSING AND SOCIAL CARE LTD,512.96,MEM LTS 65+,HOMECARE - SPOT,2102941036,1000081695
09.04.2019,ADULT SOCIAL CARE,SAGECARE LTD,624.68,MEM LTS 65+,HOMECARE - C&V,2102941517,1000080924
09.04.2019,ADULT SOCIAL CARE,SAGECARE LTD,633.02,MEM LTS 65+,HOMECARE - C&V,2102941460,1000080924
09.04.2019,ADULT SOCIAL CARE,LONDON CARE LTD,674.6,MEM LTS 65+,HOMECARE - C&V,2102941214,1000003398
09.04.2019,ADULT SOCIAL CARE,LONDON CARE LTD,815.92,MEM LTS 65+,HOMECARE - C&V,2102941233,1000003398
09.04.2019,ADULT SOCIAL CARE,SAGECARE LTD,932.68,MEM LTS 65+,HOMECARE - C&V,2102941519,1000080924
09.04.2019,ADULT SOCIAL CARE,LONDON CARE LTD,957.71,MEM LTS 65+,HOMECARE - C&V,2102941342,1000003398
09.04.2019,ADULT SOCIAL CARE,LONDON CARE LTD,991.23,MEM LTS 65+,HOMECARE - C&V,2102941216,1000003398
09.04.2019,ADULT SOCIAL CARE,LONDON CARE LTD,"1,049.44",MEM LTS 65+,HOMECARE - C&V,2102941267,1000003398
09.04.2019,ADULT SOCIAL CARE,SAGECARE LTD,"1,590.76",MEM LTS 65+,HOMECARE - C&V,2102941580,1000080924
09.04.2019,ADULT SOCIAL CARE,LONDON CARE LTD,"2,019.75",MEM LTS 65+,HOMECARE - C&V,2102941305,1000003398
09.04.2019,ADULT SOCIAL CARE,BLISSETT CARE LTD,"2,143.54",MEM LTS 65+,HOMECARE - C&V,2102941415,1000042627
09.04.2019,ADULT SOCIAL CARE,BLISSETT CARE LTD,307.44,MH LTS 18-64,HOMECARE - C&V,2102941373,1000042627
09.04.2019,ADULT SOCIAL CARE,SAGECARE LTD,324.87,MH LTS 18-64,HOMECARE - C&V,2102941430,1000080924
09.04.2019,ADULT SOCIAL CARE,SAGECARE LTD,516.28,MH LTS 18-64,HOMECARE - C&V,2102941614,1000080924
09.04.2019,ADULT SOCIAL CARE,CLOUDS END SERVICES LTD,600,MH LTS 18-64,EXTERNAL AGENCIES AND BODIES,2102941701,1000079240
09.04.2019,ADULT SOCIAL CARE,SAGECARE LTD,"1,357.79",MH LTS 18-64,HOMECARE - C&V,2102941647,1000080924
09.04.2019,ADULT SOCIAL CARE,SAGECARE LTD,266.48,MH LTS 65+,HOMECARE - C&V,2102941543,1000080924
09.04.2019,ADULT SOCIAL CARE,SAGECARE LTD,316.5,MH LTS 65+,HOMECARE - C&V,2102941459,1000080924
09.04.2019,ADULT SOCIAL CARE,LONDON CARE LTD,483.04,MH LTS 65+,HOMECARE - C&V,2102941332,1000003398
09.04.2019,ADULT SOCIAL CARE,BLISSETT CARE LTD,495.32,MH LTS 65+,HOMECARE - C&V,2102941363,1000042627
09.04.2019,ADULT SOCIAL CARE,SAGECARE LTD,533.08,MH LTS 65+,HOMECARE - C&V,2102941686,1000080924
09.04.2019,ADULT SOCIAL CARE,BLISSETT CARE LTD,563.64,MH LTS 65+,HOMECARE - C&V,2102941411,1000042627
09.04.2019,ADULT SOCIAL CARE,SAGECARE LTD,599.72,MH LTS 65+,HOMECARE - C&V,2102941593,1000080924
09.04.2019,ADULT SOCIAL CARE,LONDON CARE LTD,666,MH LTS 65+,HOMECARE - C&V,2102941292,1000003398
09.04.2019,ADULT SOCIAL CARE,SAGECARE LTD,824.35,MH LTS 65+,HOMECARE - C&V,2102941560,1000080924
09.04.2019,ADULT SOCIAL CARE,SAGECARE LTD,"1,049.22",MH LTS 65+,HOMECARE - C&V,2102941613,1000080924
09.04.2019,ADULT SOCIAL CARE,SAGECARE LTD,270.63,PHY LTS 18-64,HOMECARE - C&V,2102941422,1000080924
09.04.2019,ADULT SOCIAL CARE,LONDON CARE LTD,270.66,PHY LTS 18-64,HOMECARE - C&V,2102941166,1000003398
09.04.2019,ADULT SOCIAL CARE,BLISSETT CARE LTD,281.82,PHY LTS 18-64,HOMECARE - C&V,2102941398,1000042627
09.04.2019,ADULT SOCIAL CARE,SAGECARE LTD,291.51,PHY LTS 18-64,HOMECARE - C&V,2102941667,1000080924
09.04.2019,ADULT SOCIAL CARE,SAGECARE LTD,328.89,PHY LTS 18-64,HOMECARE - C&V,2102941590,1000080924
09.04.2019,ADULT SOCIAL CARE,SAGECARE LTD,333,PHY LTS 18-64,HOMECARE - C&V,2102941666,1000080924
09.04.2019,ADULT SOCIAL CARE,LONDON CARE LTD,333.16,PHY LTS 18-64,HOMECARE - C&V,2102941207,1000003398
09.04.2019,ADULT SOCIAL CARE,LONDON CARE LTD,337.23,PHY LTS 18-64,HOMECARE - C&V,2102941277,1000003398
09.04.2019,ADULT SOCIAL CARE,SAGECARE LTD,337.23,PHY LTS 18-64,HOMECARE - C&V,2102941424,1000080924
09.04.2019,ADULT SOCIAL CARE,SAGECARE LTD,337.23,PHY LTS 18-64,HOMECARE - C&V,2102941623,1000080924
09.04.2019,ADULT SOCIAL CARE,SAGECARE LTD,349.65,PHY LTS 18-64,HOMECARE - C&V,2102941633,1000080924
09.04.2019,ADULT SOCIAL CARE,LONDON CARE LTD,349.68,PHY LTS 18-64,HOMECARE - C&V,2102941311,1000003398
09.04.2019,ADULT SOCIAL CARE,LONDON CARE LTD,349.72,PHY LTS 18-64,HOMECARE - C&V,2102941178,1000003398
09.04.2019,ADULT SOCIAL CARE,SAGECARE LTD,349.72,PHY LTS 18-64,HOMECARE - C&V,2102941450,1000080924
09.04.2019,ADULT SOCIAL CARE,SAGECARE LTD,349.72,PHY LTS 18-64,HOMECARE - C&V,2102941662,1000080924
09.04.2019,ADULT SOCIAL CARE,LONDON CARE LTD,349.72,PHY LTS 18-64,HOMECARE - SPOT,2102941340,1000003398
09.04.2019,ADULT SOCIAL CARE,SAGECARE LTD,349.8,PHY LTS 18-64,HOMECARE - C&V,2102941486,1000080924
09.04.2019,ADULT SOCIAL CARE,SAGECARE LTD,353.82,PHY LTS 18-64,HOMECARE - C&V,2102941550,1000080924
09.04.2019,ADULT SOCIAL CARE,BLISSETT CARE LTD,358.68,PHY LTS 18-64,HOMECARE - C&V,2102941387,1000042627
09.04.2019,ADULT SOCIAL CARE,SAGECARE LTD,383,PHY LTS 18-64,HOMECARE - C&V,2102941526,1000080924
09.04.2019,ADULT SOCIAL CARE,SAGECARE LTD,387.19,PHY LTS 18-64,HOMECARE - C&V,2102941542,1000080924
09.04.2019,ADULT SOCIAL CARE,LONDON CARE LTD,391.31,PHY LTS 18-64,HOMECARE - C&V,2102941347,1000003398
09.04.2019,ADULT SOCIAL CARE,PHOENIX HEALTHCARE & RECRUITMENT,450.54,PHY LTS 18-64,DAYCARE,2102941702,1000065636
09.04.2019,ADULT SOCIAL CARE,LONDON CARE LTD,466.2,PHY LTS 18-64,HOMECARE - C&V,2102941274,1000003398
09.04.2019,ADULT SOCIAL CARE,LONDON CARE LTD,466.27,PHY LTS 18-64,HOMECARE - C&V,2102941168,1000003398
09.04.2019,ADULT SOCIAL CARE,SAGECARE LTD,482.92,PHY LTS 18-64,HOMECARE - C&V,2102941501,1000080924
09.04.2019,ADULT SOCIAL CARE,SAGECARE LTD,491.36,PHY LTS 18-64,HOMECARE - C&V,2102941592,1000080924
09.04.2019,ADULT SOCIAL CARE,LONDON CARE LTD,499.68,PHY LTS 18-64,HOMECARE - C&V,2102941196,1000003398
09.04.2019,ADULT SOCIAL CARE,BLISSETT CARE LTD,512.4,PHY LTS 18-64,HOMECARE - C&V,2102941362,1000042627
09.04.2019,ADULT SOCIAL CARE,LONDON CARE LTD,520.43,PHY LTS 18-64,HOMECARE - C&V,2102941294,1000003398
09.04.2019,ADULT SOCIAL CARE,SAGECARE LTD,532.8,PHY LTS 18-64,HOMECARE - C&V,2102941455,1000080924
09.04.2019,ADULT SOCIAL CARE,SAGECARE LTD,532.96,PHY LTS 18-64,HOMECARE - C&V,2102941540,1000080924
09.04.2019,ADULT SOCIAL CARE,LONDON CARE LTD,533.08,PHY LTS 18-64,HOMECARE - C&V,2102941256,1000003398
09.04.2019,ADULT SOCIAL CARE,SAGECARE LTD,549.64,PHY LTS 18-64,HOMECARE - C&V,2102941641,1000080924
09.04.2019,ADULT SOCIAL CARE,BLISSETT CARE LTD,550.83,PHY LTS 18-64,HOMECARE - C&V,2102941406,1000042627
09.04.2019,ADULT SOCIAL CARE,LONDON CARE LTD,553.79,PHY LTS 18-64,HOMECARE - SPOT,2102941204,1000003398
09.04.2019,ADULT SOCIAL CARE,SAGECARE LTD,562.14,PHY LTS 18-64,HOMECARE - C&V,2102941670,1000080924
09.04.2019,ADULT SOCIAL CARE,SAGECARE LTD,582.96,PHY LTS 18-64,HOMECARE - C&V,2102941499,1000080924
09.04.2019,ADULT SOCIAL CARE,LONDON CARE LTD,587.13,PHY LTS 18-64,HOMECARE - C&V,2102941254,1000003398
09.04.2019,ADULT SOCIAL CARE,ELEANOR NURSING AND SOCIAL CARE LTD,605.64,PHY LTS 18-64,HOMECARE - SPOT,2102941062,1000081695
09.04.2019,ADULT SOCIAL CARE,LONDON CARE LTD,616.24,PHY LTS 18-64,HOMECARE - C&V,2102941146,1000003398
09.04.2019,ADULT SOCIAL CARE,LONDON CARE LTD,616.28,PHY LTS 18-64,HOMECARE - C&V,2102941279,1000003398
09.04.2019,ADULT SOCIAL CARE,BLISSETT CARE LTD,640.5,PHY LTS 18-64,HOMECARE - C&V,2102941396,1000042627
09.04.2019,ADULT SOCIAL CARE,SAGECARE LTD,653.78,PHY LTS 18-64,HOMECARE - C&V,2102941512,1000080924
09.04.2019,ADULT SOCIAL CARE,LONDON CARE LTD,670.39,PHY LTS 18-64,HOMECARE - C&V,2102941257,1000003398
09.04.2019,ADULT SOCIAL CARE,LONDON CARE LTD,674.46,PHY LTS 18-64,HOMECARE - C&V,2102941351,1000003398
09.04.2019,ADULT SOCIAL CARE,LONDON CARE LTD,682.88,PHY LTS 18-64,HOMECARE - C&V,2102941205,1000003398
09.04.2019,ADULT SOCIAL CARE,SAGECARE LTD,687.11,PHY LTS 18-64,HOMECARE - C&V,2102941566,1000080924
09.04.2019,ADULT SOCIAL CARE,ELEANOR NURSING AND SOCIAL CARE LTD,709.44,PHY LTS 18-64,HOMECARE - SPOT,2102941034,1000081695
09.04.2019,ADULT SOCIAL CARE,SAGECARE LTD,732.78,PHY LTS 18-64,HOMECARE - SPOT,2102941663,1000080924
09.04.2019,ADULT SOCIAL CARE,SAGECARE LTD,741.07,PHY LTS 18-64,HOMECARE - C&V,2102941475,1000080924
09.04.2019,ADULT SOCIAL CARE,SAGECARE LTD,753.74,PHY LTS 18-64,HOMECARE - C&V,2102941423,1000080924
09.04.2019,ADULT SOCIAL CARE,ELEANOR NURSING AND SOCIAL CARE LTD,761.2,PHY LTS 18-64,HOMECARE - SPOT,2102941116,1000081695
09.04.2019,ADULT SOCIAL CARE,BLISSETT CARE LTD,785.68,PHY LTS 18-64,HOMECARE - C&V,2102941367,1000042627
09.04.2019,ADULT SOCIAL CARE,ELEANOR NURSING AND SOCIAL CARE LTD,796.08,PHY LTS 18-64,HOMECARE - C&V,2102941066,1000081695
09.04.2019,ADULT SOCIAL CARE,SAGECARE LTD,815.92,PHY LTS 18-64,HOMECARE - C&V,2102941418,1000080924
09.04.2019,ADULT SOCIAL CARE,SAGECARE LTD,820.19,PHY LTS 18-64,HOMECARE - C&V,2102941682,1000080924
09.04.2019,ADULT SOCIAL CARE,LONDON CARE LTD,828.41,PHY LTS 18-64,HOMECARE - C&V,2102941138,1000003398
09.04.2019,ADULT SOCIAL CARE,LONDON CARE LTD,828.41,PHY LTS 18-64,HOMECARE - C&V,2102941221,1000003398
09.04.2019,ADULT SOCIAL CARE,ELEANOR NURSING AND SOCIAL CARE LTD,839.05,PHY LTS 18-64,HOMECARE - SPOT,2102941120,1000081695
09.04.2019,ADULT SOCIAL CARE,SAGECARE LTD,845.32,PHY LTS 18-64,HOMECARE - C&V,2102941572,1000080924
09.04.2019,ADULT SOCIAL CARE,ELEANOR NURSING AND SOCIAL CARE LTD,847.84,PHY LTS 18-64,HOMECARE - SPOT,2102941110,1000081695
09.04.2019,ADULT SOCIAL CARE,SAGECARE LTD,866.19,PHY LTS 18-64,HOMECARE - C&V,2102941684,1000080924
09.04.2019,ADULT SOCIAL CARE,BLISSETT CARE LTD,896.7,PHY LTS 18-64,HOMECARE - C&V,2102941377,1000042627
09.04.2019,ADULT SOCIAL CARE,BLISSETT CARE LTD,905.24,PHY LTS 18-64,HOMECARE - C&V,2102941372,1000042627
09.04.2019,ADULT SOCIAL CARE,LONDON CARE LTD,907.79,PHY LTS 18-64,HOMECARE - C&V,2102941162,1000003398
09.04.2019,ADULT SOCIAL CARE,LONDON CARE LTD,912.05,PHY LTS 18-64,HOMECARE - C&V,2102941278,1000003398
09.04.2019,ADULT SOCIAL CARE,LONDON CARE LTD,920.15,PHY LTS 18-64,HOMECARE - C&V,2102941176,1000003398
09.04.2019,ADULT SOCIAL CARE,LONDON CARE LTD,932.4,PHY LTS 18-64,HOMECARE - C&V,2102941246,1000003398
09.04.2019,ADULT SOCIAL CARE,SAGECARE LTD,941.11,PHY LTS 18-64,HOMECARE - C&V,2102941549,1000080924
09.04.2019,ADULT SOCIAL CARE,SAGECARE LTD,949.58,PHY LTS 18-64,HOMECARE - C&V,2102941506,1000080924
09.04.2019,ADULT SOCIAL CARE,ELEANOR NURSING AND SOCIAL CARE LTD,951.64,PHY LTS 18-64,HOMECARE - SPOT,2102941106,1000081695
09.04.2019,ADULT SOCIAL CARE,BLISSETT CARE LTD,"1,007.72",PHY LTS 18-64,HOMECARE - C&V,2102941400,1000042627
09.04.2019,ADULT SOCIAL CARE,SAGECARE LTD,"1,015.17",PHY LTS 18-64,HOMECARE - C&V,2102941508,1000080924
09.04.2019,ADULT SOCIAL CARE,LONDON CARE LTD,"1,015.84",PHY LTS 18-64,HOMECARE - C&V,2102941174,1000003398
09.04.2019,ADULT SOCIAL CARE,ELEANOR NURSING AND SOCIAL CARE LTD,"1,046.65",PHY LTS 18-64,HOMECARE - SPOT,2102941100,1000081695
09.04.2019,ADULT SOCIAL CARE,SAGECARE LTD,"1,065.64",PHY LTS 18-64,HOMECARE - C&V,2102941674,1000080924
09.04.2019,ADULT SOCIAL CARE,SAGECARE LTD,"1,099.50",PHY LTS 18-64,HOMECARE - C&V,2102941426,1000080924
09.04.2019,ADULT SOCIAL CARE,SAGECARE LTD,"1,115.87",PHY LTS 18-64,HOMECARE - C&V,2102941653,1000080924
09.04.2019,ADULT SOCIAL CARE,SAGECARE LTD,"1,136.63",PHY LTS 18-64,HOMECARE - C&V,2102941448,1000080924
09.04.2019,ADULT SOCIAL CARE,SAGECARE LTD,"1,157.59",PHY LTS 18-64,HOMECARE - C&V,2102941489,1000080924
09.04.2019,ADULT SOCIAL CARE,ELEANOR NURSING AND SOCIAL CARE LTD,"1,280.36",PHY LTS 18-64,HOMECARE - SPOT,2102941044,1000081695
09.04.2019,ADULT SOCIAL CARE,SAGECARE LTD,"1,307.40",PHY LTS 18-64,HOMECARE - C&V,2102941456,1000080924
09.04.2019,ADULT SOCIAL CARE,SAGECARE LTD,"1,448.68",PHY LTS 18-64,HOMECARE - C&V,2102941468,1000080924
09.04.2019,ADULT SOCIAL CARE,SAGECARE LTD,"1,532.12",PHY LTS 18-64,HOMECARE - C&V,2102941619,1000080924
09.04.2019,ADULT SOCIAL CARE,LONDON CARE LTD,"1,590.49",PHY LTS 18-64,HOMECARE - C&V,2102941291,1000003398
09.04.2019,ADULT SOCIAL CARE,SAGECARE LTD,"1,615.32",PHY LTS 18-64,HOMECARE - C&V,2102941630,1000080924
09.04.2019,ADULT SOCIAL CARE,SAGECARE LTD,"1,648.84",PHY LTS 18-64,HOMECARE - C&V,2102941597,1000080924
09.04.2019,ADULT SOCIAL CARE,LONDON CARE LTD,"2,182.03",PHY LTS 18-64,HOMECARE - C&V,2102941317,1000003398
09.04.2019,ADULT SOCIAL CARE,SAGECARE LTD,"2,573.11",PHY LTS 18-64,HOMECARE - C&V,2102941655,1000080924
09.04.2019,ADULT SOCIAL CARE,ELEANOR NURSING AND SOCIAL CARE LTD,"3,114.16",PHY LTS 18-64,HOMECARE - SPOT,2102941064,1000081695
09.04.2019,ADULT SOCIAL CARE,LONDON CARE LTD,258.19,PHY LTS 65+,HOMECARE - SPOT,2102941320,1000003398
09.04.2019,ADULT SOCIAL CARE,SAGECARE LTD,266.54,PHY LTS 65+,HOMECARE - C&V,2102941505,1000080924
09.04.2019,ADULT SOCIAL CARE,SAGECARE LTD,274.85,PHY LTS 65+,HOMECARE - C&V,2102941574,1000080924
09.04.2019,ADULT SOCIAL CARE,BLISSETT CARE LTD,281.82,PHY LTS 65+,HOMECARE - C&V,2102941407,1000042627
09.04.2019,ADULT SOCIAL CARE,ELEANOR NURSING AND SOCIAL CARE LTD,293.12,PHY LTS 65+,HOMECARE - SPOT,2102941046,1000081695
09.04.2019,ADULT SOCIAL CARE,LONDON CARE LTD,299.76,PHY LTS 65+,HOMECARE - C&V,2102941295,1000003398
09.04.2019,ADULT SOCIAL CARE,SAGECARE LTD,299.84,PHY LTS 65+,HOMECARE - C&V,2102941481,1000080924
09.04.2019,ADULT SOCIAL CARE,SAGECARE LTD,299.88,PHY LTS 65+,HOMECARE - C&V,2102941477,1000080924
09.04.2019,ADULT SOCIAL CARE,ELEANOR NURSING AND SOCIAL CARE LTD,302.75,PHY LTS 65+,HOMECARE - SPOT,2102941104,1000081695
09.04.2019,ADULT SOCIAL CARE,ELEANOR NURSING AND SOCIAL CARE LTD,303.03,PHY LTS 65+,HOMECARE - SPOT,2102941088,1000081695
09.04.2019,ADULT SOCIAL CARE,SAGECARE LTD,308.14,PHY LTS 65+,HOMECARE - C&V,2102941604,1000080924
09.04.2019,ADULT SOCIAL CARE,SAGECARE LTD,308.15,PHY LTS 65+,HOMECARE - C&V,2102941602,1000080924
09.04.2019,ADULT SOCIAL CARE,ELEANOR NURSING AND SOCIAL CARE LTD,311.4,PHY LTS 65+,HOMECARE - SPOT,2102941126,1000081695
09.04.2019,ADULT SOCIAL CARE,LONDON CARE LTD,316.35,PHY LTS 65+,HOMECARE - C&V,2102941335,1000003398
09.04.2019,ADULT SOCIAL CARE,BLISSETT CARE LTD,320.25,PHY LTS 65+,HOMECARE - C&V,2102941393,1000042627
09.04.2019,ADULT SOCIAL CARE,SAGECARE LTD,333.12,PHY LTS 65+,HOMECARE - C&V,2102941617,1000080924
09.04.2019,ADULT SOCIAL CARE,LONDON CARE LTD,333.2,PHY LTS 65+,HOMECARE - C&V,2102941192,1000003398
09.04.2019,ADULT SOCIAL CARE,SAGECARE LTD,333.2,PHY LTS 65+,HOMECARE - C&V,2102941654,1000080924
09.04.2019,ADULT SOCIAL CARE,SAGECARE LTD,337.23,PHY LTS 65+,HOMECARE - C&V,2102941435,1000080924
09.04.2019,ADULT SOCIAL CARE,SAGECARE LTD,337.23,PHY LTS 65+,HOMECARE - C&V,2102941620,1000080924
09.04.2019,ADULT SOCIAL CARE,SAGECARE LTD,337.3,PHY LTS 65+,HOMECARE - C&V,2102941453,1000080924
09.04.2019,ADULT SOCIAL CARE,ELEANOR NURSING AND SOCIAL CARE LTD,341.68,PHY LTS 65+,HOMECARE - SPOT,2102941052,1000081695
09.04.2019,ADULT SOCIAL CARE,BLISSETT CARE LTD,345.87,PHY LTS 65+,HOMECARE - C&V,2102941417,1000042627
09.04.2019,ADULT SOCIAL CARE,LONDON CARE LTD,349.72,PHY LTS 65+,HOMECARE - C&V,2102941170,1000003398
09.04.2019,ADULT SOCIAL CARE,LONDON CARE LTD,349.72,PHY LTS 65+,HOMECARE - C&V,2102941220,1000003398
09.04.2019,ADULT SOCIAL CARE,LONDON CARE LTD,349.72,PHY LTS 65+,HOMECARE - C&V,2102941308,1000003398
09.04.2019,ADULT SOCIAL CARE,LONDON CARE LTD,349.72,PHY LTS 65+,HOMECARE - C&V,2102941334,1000003398
09.04.2019,ADULT SOCIAL CARE,LONDON CARE LTD,349.72,PHY LTS 65+,HOMECARE - C&V,2102941349,1000003398
09.04.2019,ADULT SOCIAL CARE,SAGECARE LTD,349.72,PHY LTS 65+,HOMECARE - C&V,2102941563,1000080924
09.04.2019,ADULT SOCIAL CARE,SAGECARE LTD,349.72,PHY LTS 65+,HOMECARE - C&V,2102941578,1000080924
09.04.2019,ADULT SOCIAL CARE,SAGECARE LTD,349.72,PHY LTS 65+,HOMECARE - C&V,2102941606,1000080924
09.04.2019,ADULT SOCIAL CARE,SAGECARE LTD,349.72,PHY LTS 65+,HOMECARE - C&V,2102941607,1000080924
09.04.2019,ADULT SOCIAL CARE,SAGECARE LTD,349.72,PHY LTS 65+,HOMECARE - C&V,2102941618,1000080924
09.04.2019,ADULT SOCIAL CARE,SAGECARE LTD,349.72,PHY LTS 65+,HOMECARE - C&V,2102941634,1000080924
09.04.2019,ADULT SOCIAL CARE,ELEANOR NURSING AND SOCIAL CARE LTD,363.36,PHY LTS 65+,HOMECARE - SPOT,2102941096,1000081695
09.04.2019,ADULT SOCIAL CARE,ELEANOR NURSING AND SOCIAL CARE LTD,363.44,PHY LTS 65+,HOMECARE - SPOT,2102941092,1000081695
09.04.2019,ADULT SOCIAL CARE,LONDON CARE LTD,366.36,PHY LTS 65+,HOMECARE - C&V,2102941286,1000003398
09.04.2019,ADULT SOCIAL CARE,LONDON CARE LTD,366.44,PHY LTS 65+,HOMECARE - C&V,2102941202,1000003398
09.04.2019,ADULT SOCIAL CARE,SAGECARE LTD,383.04,PHY LTS 65+,HOMECARE - C&V,2102941437,1000080924
09.04.2019,ADULT SOCIAL CARE,SAGECARE LTD,383.12,PHY LTS 65+,HOMECARE - C&V,2102941496,1000080924
09.04.2019,ADULT SOCIAL CARE,LONDON CARE LTD,391.41,PHY LTS 65+,HOMECARE - C&V,2102941316,1000003398
09.04.2019,ADULT SOCIAL CARE,SAGECARE LTD,399.68,PHY LTS 65+,HOMECARE - C&V,2102941600,1000080924
09.04.2019,ADULT SOCIAL CARE,SAGECARE LTD,399.8,PHY LTS 65+,HOMECARE - C&V,2102941497,1000080924
09.04.2019,ADULT SOCIAL CARE,LONDON CARE LTD,403.83,PHY LTS 65+,HOMECARE - SPOT,2102941307,1000003398
09.04.2019,ADULT SOCIAL CARE,LONDON CARE LTD,403.91,PHY LTS 65+,HOMECARE - C&V,2102941152,1000003398
09.04.2019,ADULT SOCIAL CARE,SAGECARE LTD,403.91,PHY LTS 65+,HOMECARE - C&V,2102941464,1000080924
09.04.2019,ADULT SOCIAL CARE,SAGECARE LTD,403.91,PHY LTS 65+,HOMECARE - C&V,2102941541,1000080924
09.04.2019,ADULT SOCIAL CARE,SAGECARE LTD,408.15,PHY LTS 65+,HOMECARE - C&V,2102941635,1000080924
09.04.2019,ADULT SOCIAL CARE,SAGECARE LTD,416.36,PHY LTS 65+,HOMECARE - C&V,2102941478,1000080924
09.04.2019,ADULT SOCIAL CARE,LONDON CARE LTD,420.47,PHY LTS 65+,HOMECARE - C&V,2102941247,1000003398
09.04.2019,ADULT SOCIAL CARE,SAGECARE LTD,428.93,PHY LTS 65+,HOMECARE - C&V,2102941615,1000080924
09.04.2019,ADULT SOCIAL CARE,SAGECARE LTD,433.16,PHY LTS 65+,HOMECARE - C&V,2102941524,1000080924
09.04.2019,ADULT SOCIAL CARE,SAGECARE LTD,441.31,PHY LTS 65+,HOMECARE - C&V,2102941626,1000080924
09.04.2019,ADULT SOCIAL CARE,SAGECARE LTD,441.35,PHY LTS 65+,HOMECARE - C&V,2102941629,1000080924
09.04.2019,ADULT SOCIAL CARE,SAGECARE LTD,449.55,PHY LTS 65+,HOMECARE - C&V,2102941465,1000080924
09.04.2019,ADULT SOCIAL CARE,SAGECARE LTD,449.55,PHY LTS 65+,HOMECARE - C&V,2102941631,1000080924
09.04.2019,ADULT SOCIAL CARE,LONDON CARE LTD,449.64,PHY LTS 65+,HOMECARE - C&V,2102941326,1000003398
09.04.2019,ADULT SOCIAL CARE,ELEANOR NURSING AND SOCIAL CARE LTD,449.8,PHY LTS 65+,HOMECARE - SPOT,2102941094,1000081695
09.04.2019,ADULT SOCIAL CARE,LONDON CARE LTD,449.82,PHY LTS 65+,HOMECARE - C&V,2102941224,1000003398
09.04.2019,ADULT SOCIAL CARE,SAGECARE LTD,458.15,PHY LTS 65+,HOMECARE - C&V,2102941469,1000080924
09.04.2019,ADULT SOCIAL CARE,SAGECARE LTD,458.15,PHY LTS 65+,HOMECARE - C&V,2102941612,1000080924
09.04.2019,ADULT SOCIAL CARE,LONDON CARE LTD,466.48,PHY LTS 65+,HOMECARE - C&V,2102941235,1000003398
09.04.2019,ADULT SOCIAL CARE,SAGECARE LTD,466.48,PHY LTS 65+,HOMECARE - C&V,2102941610,1000080924
09.04.2019,ADULT SOCIAL CARE,SAGECARE LTD,466.48,PHY LTS 65+,HOMECARE - C&V,2102941650,1000080924
09.04.2019,ADULT SOCIAL CARE,ELEANOR NURSING AND SOCIAL CARE LTD,467.16,PHY LTS 65+,HOMECARE - SPOT,2102941078,1000081695
09.04.2019,ADULT SOCIAL CARE,LONDON CARE LTD,470.43,PHY LTS 65+,HOMECARE - C&V,2102941296,1000003398
09.04.2019,ADULT SOCIAL CARE,LONDON CARE LTD,470.43,PHY LTS 65+,HOMECARE - C&V,2102941310,1000003398
09.04.2019,ADULT SOCIAL CARE,LONDON CARE LTD,474.81,PHY LTS 65+,HOMECARE - C&V,2102941285,1000003398
09.04.2019,ADULT SOCIAL CARE,LONDON CARE LTD,474.81,PHY LTS 65+,HOMECARE - C&V,2102941341,1000003398
09.04.2019,ADULT SOCIAL CARE,BLISSETT CARE LTD,478.24,PHY LTS 65+,HOMECARE - C&V,2102941397,1000042627
09.04.2019,ADULT SOCIAL CARE,LONDON CARE LTD,478.73,PHY LTS 65+,HOMECARE - C&V,2102941242,1000003398
09.04.2019,ADULT SOCIAL CARE,LONDON CARE LTD,482.92,PHY LTS 65+,HOMECARE - C&V,2102941222,1000003398
09.04.2019,ADULT SOCIAL CARE,SAGECARE LTD,482.96,PHY LTS 65+,HOMECARE - C&V,2102941622,1000080924
09.04.2019,ADULT SOCIAL CARE,ELEANOR NURSING AND SOCIAL CARE LTD,484.4,PHY LTS 65+,HOMECARE - SPOT,2102941090,1000081695
09.04.2019,ADULT SOCIAL CARE,ELEANOR NURSING AND SOCIAL CARE LTD,493.19,PHY LTS 65+,HOMECARE - SPOT,2102941056,1000081695
09.04.2019,ADULT SOCIAL CARE,SAGECARE LTD,495.49,PHY LTS 65+,HOMECARE - C&V,2102941557,1000080924
09.04.2019,ADULT SOCIAL CARE,BLISSETT CARE LTD,499.59,PHY LTS 65+,HOMECARE - C&V,2102941394,1000042627
09.04.2019,ADULT SOCIAL CARE,ELEANOR NURSING AND SOCIAL CARE LTD,512.96,PHY LTS 65+,HOMECARE - SPOT,2102941082,1000081695
09.04.2019,ADULT SOCIAL CARE,LONDON CARE LTD,516.15,PHY LTS 65+,HOMECARE - C&V,2102941273,1000003398
09.04.2019,ADULT SOCIAL CARE,LONDON CARE LTD,516.42,PHY LTS 65+,HOMECARE - C&V,2102941244,1000003398
09.04.2019,ADULT SOCIAL CARE,SAGECARE LTD,524.7,PHY LTS 65+,HOMECARE - C&V,2102941428,1000080924
09.04.2019,ADULT SOCIAL CARE,LONDON CARE LTD,524.75,PHY LTS 65+,HOMECARE - C&V,2102941215,1000003398
09.04.2019,ADULT SOCIAL CARE,LONDON CARE LTD,532.8,PHY LTS 65+,HOMECARE - C&V,2102941188,1000003398
09.04.2019,ADULT SOCIAL CARE,LONDON CARE LTD,532.8,PHY LTS 65+,HOMECARE - C&V,2102941318,1000003398
09.04.2019,ADULT SOCIAL CARE,LONDON CARE LTD,532.8,PHY LTS 65+,HOMECARE - C&V,2102941327,1000003398
09.04.2019,ADULT SOCIAL CARE,LONDON CARE LTD,545.45,PHY LTS 65+,HOMECARE - C&V,2102941231,1000003398
09.04.2019,ADULT SOCIAL CARE,LONDON CARE LTD,549.45,PHY LTS 65+,HOMECARE - C&V,2102941197,1000003398
09.04.2019,ADULT SOCIAL CARE,SAGECARE LTD,549.78,PHY LTS 65+,HOMECARE - C&V,2102941677,1000080924
09.04.2019,ADULT SOCIAL CARE,SAGECARE LTD,557.97,PHY LTS 65+,HOMECARE - C&V,2102941471,1000080924
09.04.2019,ADULT SOCIAL CARE,LONDON CARE LTD,557.98,PHY LTS 65+,HOMECARE - C&V,2102941187,1000003398
09.04.2019,ADULT SOCIAL CARE,SAGECARE LTD,562.14,PHY LTS 65+,HOMECARE - C&V,2102941676,1000080924
09.04.2019,ADULT SOCIAL CARE,LONDON CARE LTD,566.28,PHY LTS 65+,HOMECARE - C&V,2102941182,1000003398
09.04.2019,ADULT SOCIAL CARE,LONDON CARE LTD,566.4,PHY LTS 65+,HOMECARE - C&V,2102941203,1000003398
09.04.2019,ADULT SOCIAL CARE,LONDON CARE LTD,570.47,PHY LTS 65+,HOMECARE - C&V,2102941348,1000003398
09.04.2019,ADULT SOCIAL CARE,SAGECARE LTD,570.47,PHY LTS 65+,HOMECARE - C&V,2102941533,1000080924
09.04.2019,ADULT SOCIAL CARE,ELEANOR NURSING AND SOCIAL CARE LTD,575.32,PHY LTS 65+,HOMECARE - SPOT,2102941692,1000081695
09.04.2019,ADULT SOCIAL CARE,LONDON CARE LTD,578.79,PHY LTS 65+,HOMECARE - C&V,2102941144,1000003398
09.04.2019,ADULT SOCIAL CARE,BLISSETT CARE LTD,580.72,PHY LTS 65+,HOMECARE - C&V,2102941392,1000042627
09.04.2019,ADULT SOCIAL CARE,BLISSETT CARE LTD,580.72,PHY LTS 65+,HOMECARE - C&V,2102941416,1000042627
09.04.2019,ADULT SOCIAL CARE,LONDON CARE LTD,582.96,PHY LTS 65+,HOMECARE - C&V,2102941264,1000003398
09.04.2019,ADULT SOCIAL CARE,LONDON CARE LTD,582.96,PHY LTS 65+,HOMECARE - C&V,2102941330,1000003398
09.04.2019,ADULT SOCIAL CARE,SAGECARE LTD,582.96,PHY LTS 65+,HOMECARE - C&V,2102941461,1000080924
09.04.2019,ADULT SOCIAL CARE,SAGECARE LTD,582.96,PHY LTS 65+,HOMECARE - C&V,2102941472,1000080924
09.04.2019,ADULT SOCIAL CARE,SAGECARE LTD,582.96,PHY LTS 65+,HOMECARE - C&V,2102941562,1000080924
09.04.2019,ADULT SOCIAL CARE,SAGECARE LTD,582.96,PHY LTS 65+,HOMECARE - C&V,2102941568,1000080924
09.04.2019,ADULT SOCIAL CARE,SAGECARE LTD,582.96,PHY LTS 65+,HOMECARE - C&V,2102941603,1000080924
09.04.2019,ADULT SOCIAL CARE,SAGECARE LTD,582.96,PHY LTS 65+,HOMECARE - C&V,2102941660,1000080924
09.04.2019,ADULT SOCIAL CARE,SAGECARE LTD,583,PHY LTS 65+,HOMECARE - C&V,2102941594,1000080924
09.04.2019,ADULT SOCIAL CARE,LONDON CARE LTD,583.03,PHY LTS 65+,HOMECARE - C&V,2102941300,1000003398
09.04.2019,ADULT SOCIAL CARE,BLISSETT CARE LTD,584.99,PHY LTS 65+,HOMECARE - C&V,2102941376,1000042627
09.04.2019,ADULT SOCIAL CARE,LONDON CARE LTD,591.29,PHY LTS 65+,HOMECARE - C&V,2102941190,1000003398
09.04.2019,ADULT SOCIAL CARE,ELEANOR NURSING AND SOCIAL CARE LTD,596.86,PHY LTS 65+,HOMECARE - SPOT,2102941108,1000081695
09.04.2019,ADULT SOCIAL CARE,BLISSETT CARE LTD,597.8,PHY LTS 65+,HOMECARE - C&V,2102941380,1000042627
09.04.2019,ADULT SOCIAL CARE,LONDON CARE LTD,599.4,PHY LTS 65+,HOMECARE - C&V,2102941184,1000003398
09.04.2019,ADULT SOCIAL CARE,LONDON CARE LTD,599.4,PHY LTS 65+,HOMECARE - C&V,2102941325,1000003398
09.04.2019,ADULT SOCIAL CARE,LONDON CARE LTD,599.72,PHY LTS 65+,HOMECARE - C&V,2102941212,1000003398
09.04.2019,ADULT SOCIAL CARE,SAGECARE LTD,620.39,PHY LTS 65+,HOMECARE - C&V,2102941583,1000080924
09.04.2019,ADULT SOCIAL CARE,SAGECARE LTD,624.53,PHY LTS 65+,HOMECARE - C&V,2102941651,1000080924
09.04.2019,ADULT SOCIAL CARE,SAGECARE LTD,641.23,PHY LTS 65+,HOMECARE - C&V,2102941515,1000080924
09.04.2019,ADULT SOCIAL CARE,SAGECARE LTD,641.23,PHY LTS 65+,HOMECARE - C&V,2102941658,1000080924
09.04.2019,ADULT SOCIAL CARE,LONDON CARE LTD,645.46,PHY LTS 65+,HOMECARE - C&V,2102941309,1000003398
09.04.2019,ADULT SOCIAL CARE,LONDON CARE LTD,649.56,PHY LTS 65+,HOMECARE - C&V,2102941252,1000003398
09.04.2019,ADULT SOCIAL CARE,LONDON CARE LTD,649.56,PHY LTS 65+,HOMECARE - C&V,2102941306,1000003398
09.04.2019,ADULT SOCIAL CARE,SAGECARE LTD,649.56,PHY LTS 65+,HOMECARE - C&V,2102941632,1000080924
09.04.2019,ADULT SOCIAL CARE,SAGECARE LTD,649.61,PHY LTS 65+,HOMECARE - C&V,2102941522,1000080924
09.04.2019,ADULT SOCIAL CARE,BLISSETT CARE LTD,653.31,PHY LTS 65+,HOMECARE - C&V,2102941404,1000042627
09.04.2019,ADULT SOCIAL CARE,SAGECARE LTD,657.99,PHY LTS 65+,HOMECARE - C&V,2102941611,1000080924
09.04.2019,ADULT SOCIAL CARE,SAGECARE LTD,666.2,PHY LTS 65+,HOMECARE - C&V,2102941569,1000080924
09.04.2019,ADULT SOCIAL CARE,SAGECARE LTD,674.46,PHY LTS 65+,HOMECARE - C&V,2102941609,1000080924
09.04.2019,ADULT SOCIAL CARE,LONDON CARE LTD,674.59,PHY LTS 65+,HOMECARE - C&V,2102941195,1000003398
09.04.2019,ADULT SOCIAL CARE,SAGECARE LTD,682.84,PHY LTS 65+,HOMECARE - C&V,2102941433,1000080924
09.04.2019,ADULT SOCIAL CARE,SAGECARE LTD,682.92,PHY LTS 65+,HOMECARE - C&V,2102941470,1000080924
09.04.2019,ADULT SOCIAL CARE,SAGECARE LTD,683.06,PHY LTS 65+,HOMECARE - C&V,2102941490,1000080924
09.04.2019,ADULT SOCIAL CARE,SAGECARE LTD,691.39,PHY LTS 65+,HOMECARE - C&V,2102941546,1000080924
09.04.2019,ADULT SOCIAL CARE,SAGECARE LTD,699.44,PHY LTS 65+,HOMECARE - C&V,2102941504,1000080924
09.04.2019,ADULT SOCIAL CARE,SAGECARE LTD,699.44,PHY LTS 65+,HOMECARE - C&V,2102941640,1000080924
09.04.2019,ADULT SOCIAL CARE,SAGECARE LTD,699.72,PHY LTS 65+,HOMECARE - C&V,2102941431,1000080924
09.04.2019,ADULT SOCIAL CARE,SAGECARE LTD,699.72,PHY LTS 65+,HOMECARE - C&V,2102941443,1000080924
09.04.2019,ADULT SOCIAL CARE,SAGECARE LTD,699.72,PHY LTS 65+,HOMECARE - C&V,2102941556,1000080924
09.04.2019,ADULT SOCIAL CARE,LONDON CARE LTD,707.77,PHY LTS 65+,HOMECARE - C&V,2102941284,1000003398
09.04.2019,ADULT SOCIAL CARE,LONDON CARE LTD,720.32,PHY LTS 65+,HOMECARE - C&V,2102941208,1000003398
09.04.2019,ADULT SOCIAL CARE,SAGECARE LTD,720.52,PHY LTS 65+,HOMECARE - C&V,2102941485,1000080924
09.04.2019,ADULT SOCIAL CARE,ELEANOR NURSING AND SOCIAL CARE LTD,726.6,PHY LTS 65+,HOMECARE - SPOT,2102941040,1000081695
09.04.2019,ADULT SOCIAL CARE,ELEANOR NURSING AND SOCIAL CARE LTD,726.72,PHY LTS 65+,HOMECARE - SPOT,2102941098,1000081695
09.04.2019,ADULT SOCIAL CARE,BLISSETT CARE LTD,734.44,PHY LTS 65+,HOMECARE - C&V,2102941371,1000042627
09.04.2019,ADULT SOCIAL CARE,BLISSETT CARE LTD,734.44,PHY LTS 65+,HOMECARE - C&V,2102941410,1000042627
09.04.2019,ADULT SOCIAL CARE,LONDON CARE LTD,741.06,PHY LTS 65+,HOMECARE - C&V,2102941321,1000003398
09.04.2019,ADULT SOCIAL CARE,LONDON CARE LTD,749.38,PHY LTS 65+,HOMECARE - C&V,2102941303,1000003398
09.04.2019,ADULT SOCIAL CARE,SAGECARE LTD,749.52,PHY LTS 65+,HOMECARE - C&V,2102941673,1000080924
09.04.2019,ADULT SOCIAL CARE,SAGECARE LTD,749.56,PHY LTS 65+,HOMECARE - C&V,2102941587,1000080924
09.04.2019,ADULT SOCIAL CARE,BLISSETT CARE LTD,755.79,PHY LTS 65+,HOMECARE - C&V,2102941391,1000042627
09.04.2019,ADULT SOCIAL CARE,LONDON CARE LTD,757.77,PHY LTS 65+,HOMECARE - C&V,2102941323,1000003398
09.04.2019,ADULT SOCIAL CARE,LONDON CARE LTD,757.8,PHY LTS 65+,HOMECARE - C&V,2102941319,1000003398
09.04.2019,ADULT SOCIAL CARE,SAGECARE LTD,757.82,PHY LTS 65+,HOMECARE - C&V,2102941527,1000080924
09.04.2019,ADULT SOCIAL CARE,ELEANOR NURSING AND SOCIAL CARE LTD,761.2,PHY LTS 65+,HOMECARE - SPOT,2102941080,1000081695
09.04.2019,ADULT SOCIAL CARE,SAGECARE LTD,762.01,PHY LTS 65+,HOMECARE - C&V,2102941449,1000080924
09.04.2019,ADULT SOCIAL CARE,LONDON CARE LTD,762.06,PHY LTS 65+,HOMECARE - C&V,2102941198,1000003398
09.04.2019,ADULT SOCIAL CARE,SAGECARE LTD,762.07,PHY LTS 65+,HOMECARE - C&V,2102941577,1000080924
09.04.2019,ADULT SOCIAL CARE,BLISSETT CARE LTD,768.6,PHY LTS 65+,HOMECARE - C&V,2102941395,1000042627
09.04.2019,ADULT SOCIAL CARE,LONDON CARE LTD,774.65,PHY LTS 65+,HOMECARE - C&V,2102941298,1000003398
09.04.2019,ADULT SOCIAL CARE,SAGECARE LTD,782.76,PHY LTS 65+,HOMECARE - C&V,2102941425,1000080924
09.04.2019,ADULT SOCIAL CARE,SAGECARE LTD,782.88,PHY LTS 65+,HOMECARE - C&V,2102941687,1000080924
09.04.2019,ADULT SOCIAL CARE,SAGECARE LTD,791.02,PHY LTS 65+,HOMECARE - C&V,2102941535,1000080924
09.04.2019,ADULT SOCIAL CARE,LONDON CARE LTD,799.36,PHY LTS 65+,HOMECARE - C&V,2102941261,1000003398
09.04.2019,ADULT SOCIAL CARE,LONDON CARE LTD,799.62,PHY LTS 65+,HOMECARE - C&V,2102941322,1000003398
09.04.2019,ADULT SOCIAL CARE,SAGECARE LTD,803.7,PHY LTS 65+,HOMECARE - C&V,2102941579,1000080924
09.04.2019,ADULT SOCIAL CARE,LONDON CARE LTD,803.71,PHY LTS 65+,HOMECARE - C&V,2102941253,1000003398
09.04.2019,ADULT SOCIAL CARE,SAGECARE LTD,803.71,PHY LTS 65+,HOMECARE - C&V,2102941636,1000080924
09.04.2019,ADULT SOCIAL CARE,LONDON CARE LTD,811.99,PHY LTS 65+,HOMECARE - C&V,2102941156,1000003398
09.04.2019,ADULT SOCIAL CARE,LONDON CARE LTD,816.2,PHY LTS 65+,HOMECARE - C&V,2102941272,1000003398
09.04.2019,ADULT SOCIAL CARE,SAGECARE LTD,816.2,PHY LTS 65+,HOMECARE - C&V,2102941442,1000080924
09.04.2019,ADULT SOCIAL CARE,SAGECARE LTD,816.2,PHY LTS 65+,HOMECARE - C&V,2102941529,1000080924
09.04.2019,ADULT SOCIAL CARE,SAGECARE LTD,816.2,PHY LTS 65+,HOMECARE - C&V,2102941664,1000080924
09.04.2019,ADULT SOCIAL CARE,BLISSETT CARE LTD,819.84,PHY LTS 65+,HOMECARE - C&V,2102941399,1000042627
09.04.2019,ADULT SOCIAL CARE,ELEANOR NURSING AND SOCIAL CARE LTD,826.21,PHY LTS 65+,HOMECARE - SPOT,2102941048,1000081695
09.04.2019,ADULT SOCIAL CARE,LONDON CARE LTD,832.64,PHY LTS 65+,HOMECARE - C&V,2102941251,1000003398
09.04.2019,ADULT SOCIAL CARE,LONDON CARE LTD,832.92,PHY LTS 65+,HOMECARE - C&V,2102941164,1000003398
09.04.2019,ADULT SOCIAL CARE,SAGECARE LTD,832.92,PHY LTS 65+,HOMECARE - C&V,2102941421,1000080924
09.04.2019,ADULT SOCIAL CARE,ELEANOR NURSING AND SOCIAL CARE LTD,847.3,PHY LTS 65+,HOMECARE - SPOT,2102941026,1000081695
09.04.2019,ADULT SOCIAL CARE,SAGECARE LTD,849.41,PHY LTS 65+,HOMECARE - C&V,2102941419,1000080924
09.04.2019,ADULT SOCIAL CARE,SAGECARE LTD,853.65,PHY LTS 65+,HOMECARE - C&V,2102941495,1000080924
09.04.2019,ADULT SOCIAL CARE,SAGECARE LTD,857.71,PHY LTS 65+,HOMECARE - C&V,2102941510,1000080924
09.04.2019,ADULT SOCIAL CARE,SAGECARE LTD,866,PHY LTS 65+,HOMECARE - C&V,2102941537,1000080924
09.04.2019,ADULT SOCIAL CARE,SAGECARE LTD,866.14,PHY LTS 65+,HOMECARE - C&V,2102941502,1000080924
09.04.2019,ADULT SOCIAL CARE,SAGECARE LTD,866.28,PHY LTS 65+,HOMECARE - C&V,2102941575,1000080924
09.04.2019,ADULT SOCIAL CARE,LONDON CARE LTD,882.8,PHY LTS 65+,HOMECARE - C&V,2102941189,1000003398
09.04.2019,ADULT SOCIAL CARE,SAGECARE LTD,915.86,PHY LTS 65+,HOMECARE - C&V,2102941564,1000080924
09.04.2019,ADULT SOCIAL CARE,SAGECARE LTD,916.03,PHY LTS 65+,HOMECARE - C&V,2102941484,1000080924
09.04.2019,ADULT SOCIAL CARE,SAGECARE LTD,916.16,PHY LTS 65+,HOMECARE - C&V,2102941668,1000080924
09.04.2019,ADULT SOCIAL CARE,LONDON CARE LTD,932.4,PHY LTS 65+,HOMECARE - C&V,2102941288,1000003398
09.04.2019,ADULT SOCIAL CARE,LONDON CARE LTD,932.68,PHY LTS 65+,HOMECARE - C&V,2102941150,1000003398
09.04.2019,ADULT SOCIAL CARE,SAGECARE LTD,932.76,PHY LTS 65+,HOMECARE - C&V,2102941627,1000080924
09.04.2019,ADULT SOCIAL CARE,LONDON CARE LTD,932.78,PHY LTS 65+,HOMECARE - C&V,2102941236,1000003398
09.04.2019,ADULT SOCIAL CARE,LONDON CARE LTD,932.96,PHY LTS 65+,HOMECARE - C&V,2102941287,1000003398
09.04.2019,ADULT SOCIAL CARE,LONDON CARE LTD,936.65,PHY LTS 65+,HOMECARE - C&V,2102941191,1000003398
09.04.2019,ADULT SOCIAL CARE,SAGECARE LTD,936.95,PHY LTS 65+,HOMECARE - C&V,2102941644,1000080924
09.04.2019,ADULT SOCIAL CARE,LONDON CARE LTD,941.11,PHY LTS 65+,HOMECARE - C&V,2102941333,1000003398
09.04.2019,ADULT SOCIAL CARE,SAGECARE LTD,949.4,PHY LTS 65+,HOMECARE - C&V,2102941558,1000080924
09.04.2019,ADULT SOCIAL CARE,SAGECARE LTD,949.44,PHY LTS 65+,HOMECARE - C&V,2102941534,1000080924
09.04.2019,ADULT SOCIAL CARE,BLISSETT CARE LTD,956.48,PHY LTS 65+,HOMECARE - C&V,2102941361,1000042627
09.04.2019,ADULT SOCIAL CARE,BLISSETT CARE LTD,956.48,PHY LTS 65+,HOMECARE - C&V,2102941383,1000042627
09.04.2019,ADULT SOCIAL CARE,BLISSETT CARE LTD,956.48,PHY LTS 65+,HOMECARE - C&V,2102941390,1000042627
09.04.2019,ADULT SOCIAL CARE,LONDON CARE LTD,966.06,PHY LTS 65+,HOMECARE - C&V,2102941350,1000003398
09.04.2019,ADULT SOCIAL CARE,LONDON CARE LTD,966.24,PHY LTS 65+,HOMECARE - C&V,2102941269,1000003398
09.04.2019,ADULT SOCIAL CARE,BLISSETT CARE LTD,969.29,PHY LTS 65+,HOMECARE - C&V,2102941412,1000042627
09.04.2019,ADULT SOCIAL CARE,ELEANOR NURSING AND SOCIAL CARE LTD,973.13,PHY LTS 65+,HOMECARE - SPOT,2102941070,1000081695
09.04.2019,ADULT SOCIAL CARE,LONDON CARE LTD,982.44,PHY LTS 65+,HOMECARE - C&V,2102941304,1000003398
09.04.2019,ADULT SOCIAL CARE,LONDON CARE LTD,982.64,PHY LTS 65+,HOMECARE - C&V,2102941229,1000003398
09.04.2019,ADULT SOCIAL CARE,SAGECARE LTD,982.76,PHY LTS 65+,HOMECARE - C&V,2102941554,1000080924
09.04.2019,ADULT SOCIAL CARE,SAGECARE LTD,990.95,PHY LTS 65+,HOMECARE - C&V,2102941601,1000080924
09.04.2019,ADULT SOCIAL CARE,LONDON CARE LTD,999.28,PHY LTS 65+,HOMECARE - C&V,2102941213,1000003398
09.04.2019,ADULT SOCIAL CARE,LONDON CARE LTD,999.28,PHY LTS 65+,HOMECARE - C&V,2102941263,1000003398
09.04.2019,ADULT SOCIAL CARE,SAGECARE LTD,999.28,PHY LTS 65+,HOMECARE - C&V,2102941642,1000080924
09.04.2019,ADULT SOCIAL CARE,LONDON CARE LTD,999.28,PHY LTS 65+,HOMECARE - SPOT,2102941259,1000003398
09.04.2019,ADULT SOCIAL CARE,SAGECARE LTD,999.31,PHY LTS 65+,HOMECARE - C&V,2102941588,1000080924
09.04.2019,ADULT SOCIAL CARE,SAGECARE LTD,999.47,PHY LTS 65+,HOMECARE - C&V,2102941458,1000080924
09.04.2019,ADULT SOCIAL CARE,ELEANOR NURSING AND SOCIAL CARE LTD,"1,003.46",PHY LTS 65+,HOMECARE - SPOT,2102941054,1000081695
09.04.2019,ADULT SOCIAL CARE,SAGECARE LTD,"1,015.99",PHY LTS 65+,HOMECARE - C&V,2102941608,1000080924
09.04.2019,ADULT SOCIAL CARE,BLISSETT CARE LTD,"1,016.26",PHY LTS 65+,HOMECARE - C&V,2102941401,1000042627
09.04.2019,ADULT SOCIAL CARE,ELEANOR NURSING AND SOCIAL CARE LTD,"1,025.92",PHY LTS 65+,HOMECARE - SPOT,2102941072,1000081695
09.04.2019,ADULT SOCIAL CARE,SAGECARE LTD,"1,032.51",PHY LTS 65+,HOMECARE - C&V,2102941599,1000080924
09.04.2019,ADULT SOCIAL CARE,SAGECARE LTD,"1,032.51",PHY LTS 65+,HOMECARE - C&V,2102941643,1000080924
09.04.2019,ADULT SOCIAL CARE,SAGECARE LTD,"1,032.64",PHY LTS 65+,HOMECARE - C&V,2102941689,1000080924
09.04.2019,ADULT SOCIAL CARE,SAGECARE LTD,"1,036.67",PHY LTS 65+,HOMECARE - C&V,2102941521,1000080924
09.04.2019,ADULT SOCIAL CARE,SAGECARE LTD,"1,036.84",PHY LTS 65+,HOMECARE - C&V,2102941447,1000080924
09.04.2019,ADULT SOCIAL CARE,LONDON CARE LTD,"1,040.77",PHY LTS 65+,HOMECARE - C&V,2102941344,1000003398
09.04.2019,ADULT SOCIAL CARE,LONDON CARE LTD,"1,040.89",PHY LTS 65+,HOMECARE - C&V,2102941338,1000003398
09.04.2019,ADULT SOCIAL CARE,LONDON CARE LTD,"1,041.21",PHY LTS 65+,HOMECARE - C&V,2102941245,1000003398
09.04.2019,ADULT SOCIAL CARE,LONDON CARE LTD,"1,049.44",PHY LTS 65+,HOMECARE - C&V,2102941193,1000003398
09.04.2019,ADULT SOCIAL CARE,SAGECARE LTD,"1,065.88",PHY LTS 65+,HOMECARE - C&V,2102941639,1000080924
09.04.2019,ADULT SOCIAL CARE,SAGECARE LTD,"1,065.92",PHY LTS 65+,HOMECARE - C&V,2102941538,1000080924
09.04.2019,ADULT SOCIAL CARE,SAGECARE LTD,"1,065.97",PHY LTS 65+,HOMECARE - C&V,2102941624,1000080924
09.04.2019,ADULT SOCIAL CARE,SAGECARE LTD,"1,082.41",PHY LTS 65+,HOMECARE - C&V,2102941545,1000080924
09.04.2019,ADULT SOCIAL CARE,SAGECARE LTD,"1,091.05",PHY LTS 65+,HOMECARE - C&V,2102941671,1000080924
09.04.2019,ADULT SOCIAL CARE,LONDON CARE LTD,"1,099.36",PHY LTS 65+,HOMECARE - C&V,2102941346,1000003398
09.04.2019,ADULT SOCIAL CARE,SAGECARE LTD,"1,115.76",PHY LTS 65+,HOMECARE - C&V,2102941420,1000080924
09.04.2019,ADULT SOCIAL CARE,SAGECARE LTD,"1,116.04",PHY LTS 65+,HOMECARE - C&V,2102941451,1000080924
09.04.2019,ADULT SOCIAL CARE,LONDON CARE LTD,"1,149.26",PHY LTS 65+,HOMECARE - C&V,2102941276,1000003398
09.04.2019,ADULT SOCIAL CARE,SAGECARE LTD,"1,153.43",PHY LTS 65+,HOMECARE - C&V,2102941589,1000080924
09.04.2019,ADULT SOCIAL CARE,SAGECARE LTD,"1,165.80",PHY LTS 65+,HOMECARE - C&V,2102941679,1000080924
09.04.2019,ADULT SOCIAL CARE,SAGECARE LTD,"1,165.92",PHY LTS 65+,HOMECARE - C&V,2102941498,1000080924
09.04.2019,ADULT SOCIAL CARE,SAGECARE LTD,"1,165.92",PHY LTS 65+,HOMECARE - SPOT,2102941582,1000080924
09.04.2019,ADULT SOCIAL CARE,ELEANOR NURSING AND SOCIAL CARE LTD,"1,180.87",PHY LTS 65+,HOMECARE - SPOT,2102941068,1000081695
09.04.2019,ADULT SOCIAL CARE,SAGECARE LTD,"1,182.36",PHY LTS 65+,HOMECARE - C&V,2102941476,1000080924
09.04.2019,ADULT SOCIAL CARE,SAGECARE LTD,"1,182.64",PHY LTS 65+,HOMECARE - C&V,2102941659,1000080924
09.04.2019,ADULT SOCIAL CARE,SAGECARE LTD,"1,199.22",PHY LTS 65+,HOMECARE - C&V,2102941595,1000080924
09.04.2019,ADULT SOCIAL CARE,LONDON CARE LTD,"1,207.39",PHY LTS 65+,HOMECARE - C&V,2102941134,1000003398
09.04.2019,ADULT SOCIAL CARE,LONDON CARE LTD,"1,240.85",PHY LTS 65+,HOMECARE - C&V,2102941154,1000003398
09.04.2019,ADULT SOCIAL CARE,LONDON CARE LTD,"1,248.92",PHY LTS 65+,HOMECARE - C&V,2102941132,1000003398
09.04.2019,ADULT SOCIAL CARE,SAGECARE LTD,"1,253.25",PHY LTS 65+,HOMECARE - C&V,2102941646,1000080924
09.04.2019,ADULT SOCIAL CARE,LONDON CARE LTD,"1,270.00",PHY LTS 65+,HOMECARE - C&V,2102941282,1000003398
09.04.2019,ADULT SOCIAL CARE,SAGECARE LTD,"1,282.40",PHY LTS 65+,HOMECARE - C&V,2102941683,1000080924
09.04.2019,ADULT SOCIAL CARE,LONDON CARE LTD,"1,332.28",PHY LTS 65+,HOMECARE - C&V,2102941225,1000003398
09.04.2019,ADULT SOCIAL CARE,LONDON CARE LTD,"1,340.67",PHY LTS 65+,HOMECARE - C&V,2102941140,1000003398
09.04.2019,ADULT SOCIAL CARE,SAGECARE LTD,"1,382.36",PHY LTS 65+,HOMECARE - C&V,2102941432,1000080924
09.04.2019,ADULT SOCIAL CARE,ELEANOR NURSING AND SOCIAL CARE LTD,"1,397.24",PHY LTS 65+,HOMECARE - SPOT,2102941058,1000081695
09.04.2019,ADULT SOCIAL CARE,SAGECARE LTD,"1,399.44",PHY LTS 65+,HOMECARE - C&V,2102941467,1000080924
09.04.2019,ADULT SOCIAL CARE,SAGECARE LTD,"1,403.15",PHY LTS 65+,HOMECARE - C&V,2102941681,1000080924
09.04.2019,ADULT SOCIAL CARE,SAGECARE LTD,"1,465.48",PHY LTS 65+,HOMECARE - C&V,2102941530,1000080924
09.04.2019,ADULT SOCIAL CARE,SAGECARE LTD,"1,490.66",PHY LTS 65+,HOMECARE - C&V,2102941637,1000080924
09.04.2019,ADULT SOCIAL CARE,SAGECARE LTD,"1,515.92",PHY LTS 65+,HOMECARE - C&V,2102941513,1000080924
09.04.2019,ADULT SOCIAL CARE,SAGECARE LTD,"1,574.11",PHY LTS 65+,HOMECARE - C&V,2102941685,1000080924
09.04.2019,ADULT SOCIAL CARE,SAGECARE LTD,"1,607.42",PHY LTS 65+,HOMECARE - C&V,2102941518,1000080924
09.04.2019,ADULT SOCIAL CARE,LONDON CARE LTD,"1,619.91",PHY LTS 65+,HOMECARE - C&V,2102941243,1000003398
09.04.2019,ADULT SOCIAL CARE,SAGECARE LTD,"1,632.40",PHY LTS 65+,HOMECARE - C&V,2102941586,1000080924
09.04.2019,ADULT SOCIAL CARE,BLISSETT CARE LTD,"1,673.84",PHY LTS 65+,HOMECARE - C&V,2102941408,1000042627
09.04.2019,ADULT SOCIAL CARE,BLISSETT CARE LTD,"1,725.08",PHY LTS 65+,HOMECARE - C&V,2102941369,1000042627
09.04.2019,ADULT SOCIAL CARE,LONDON CARE LTD,"1,848.43",PHY LTS 65+,HOMECARE - C&V,2102941226,1000003398
09.04.2019,ADULT SOCIAL CARE,LONDON CARE LTD,"1,857.04",PHY LTS 65+,HOMECARE - C&V,2102941266,1000003398
09.04.2019,ADULT SOCIAL CARE,LONDON CARE LTD,"1,873.97",PHY LTS 65+,HOMECARE - C&V,2102941275,1000003398
09.04.2019,ADULT SOCIAL CARE,BLISSETT CARE LTD,"1,891.61",PHY LTS 65+,HOMECARE - C&V,2102941374,1000042627
09.04.2019,ADULT SOCIAL CARE,LONDON CARE LTD,"2,002.53",PHY LTS 65+,HOMECARE - C&V,2102941194,1000003398
09.04.2019,ADULT SOCIAL CARE,LONDON CARE LTD,"2,014.93",PHY LTS 65+,HOMECARE - C&V,2102941200,1000003398
09.04.2019,ADULT SOCIAL CARE,SAGECARE LTD,"2,019.76",PHY LTS 65+,HOMECARE - C&V,2102941690,1000080924
09.04.2019,ADULT SOCIAL CARE,LONDON CARE LTD,"2,031.70",PHY LTS 65+,HOMECARE - C&V,2102941223,1000003398
09.04.2019,ADULT SOCIAL CARE,LONDON CARE LTD,"2,031.85",PHY LTS 65+,HOMECARE - C&V,2102941314,1000003398
09.04.2019,ADULT SOCIAL CARE,SAGECARE LTD,"2,036.29",PHY LTS 65+,HOMECARE - C&V,2102941680,1000080924
09.04.2019,ADULT SOCIAL CARE,LONDON CARE LTD,"2,078.06",PHY LTS 65+,HOMECARE - C&V,2102941240,1000003398
09.04.2019,ADULT SOCIAL CARE,SAGECARE LTD,"2,090.55",PHY LTS 65+,HOMECARE - C&V,2102941548,1000080924
09.04.2019,ADULT SOCIAL CARE,LONDON CARE LTD,"2,110.81",PHY LTS 65+,HOMECARE - C&V,2102941328,1000003398
09.04.2019,ADULT SOCIAL CARE,SAGECARE LTD,"2,157.20",PHY LTS 65+,HOMECARE - C&V,2102941665,1000080924
09.04.2019,ADULT SOCIAL CARE,ELEANOR NURSING AND SOCIAL CARE LTD,"2,180.08",PHY LTS 65+,HOMECARE - SPOT,2102941076,1000081695
09.04.2019,ADULT SOCIAL CARE,LONDON CARE LTD,"2,244.61",PHY LTS 65+,HOMECARE - C&V,2102941280,1000003398
09.04.2019,ADULT SOCIAL CARE,SAGECARE LTD,"2,248.29",PHY LTS 65+,HOMECARE - C&V,2102941491,1000080924
09.04.2019,ADULT SOCIAL CARE,ELEANOR NURSING AND SOCIAL CARE LTD,"2,283.88",PHY LTS 65+,HOMECARE - SPOT,2102941060,1000081695
09.04.2019,ADULT SOCIAL CARE,SAGECARE LTD,"2,290.20",PHY LTS 65+,HOMECARE - C&V,2102941571,1000080924
09.04.2019,ADULT SOCIAL CARE,SAGECARE LTD,"2,311.02",PHY LTS 65+,HOMECARE - C&V,2102941507,1000080924
09.04.2019,ADULT SOCIAL CARE,SAGECARE LTD,"2,315.19",PHY LTS 65+,HOMECARE - C&V,2102941688,1000080924
09.04.2019,ADULT SOCIAL CARE,LONDON CARE LTD,"2,343.77",PHY LTS 65+,HOMECARE - C&V,2102941265,1000003398
09.04.2019,ADULT SOCIAL CARE,LONDON CARE LTD,"2,344.33",PHY LTS 65+,HOMECARE - C&V,2102941290,1000003398
09.04.2019,ADULT SOCIAL CARE,SAGECARE LTD,"2,382.07",PHY LTS 65+,HOMECARE - C&V,2102941500,1000080924
09.04.2019,ADULT SOCIAL CARE,LONDON CARE LTD,"2,419.27",PHY LTS 65+,HOMECARE - C&V,2102941270,1000003398
09.04.2019,ADULT SOCIAL CARE,LONDON CARE LTD,"2,423.35",PHY LTS 65+,HOMECARE - C&V,2102941329,1000003398
09.04.2019,ADULT SOCIAL CARE,LONDON CARE LTD,"2,431.75",PHY LTS 65+,HOMECARE - C&V,2102941345,1000003398
09.04.2019,ADULT SOCIAL CARE,SAGECARE LTD,"2,452.38",PHY LTS 65+,HOMECARE - C&V,2102941525,1000080924
09.04.2019,ADULT SOCIAL CARE,LONDON CARE LTD,"2,456.65",PHY LTS 65+,HOMECARE - C&V,2102941201,1000003398
09.04.2019,ADULT SOCIAL CARE,LONDON CARE LTD,"2,581.46",PHY LTS 65+,HOMECARE - C&V,2102941142,1000003398
09.04.2019,ADULT SOCIAL CARE,BLISSETT CARE LTD,"2,604.70",PHY LTS 65+,HOMECARE - C&V,2102941384,1000042627
09.04.2019,ADULT SOCIAL CARE,LONDON CARE LTD,"2,631.40",PHY LTS 65+,HOMECARE - C&V,2102941312,1000003398
09.04.2019,ADULT SOCIAL CARE,LONDON CARE LTD,"2,643.91",PHY LTS 65+,HOMECARE - C&V,2102941239,1000003398
09.04.2019,ADULT SOCIAL CARE,BLISSETT CARE LTD,"2,715.72",PHY LTS 65+,HOMECARE - C&V,2102941357,1000042627
09.04.2019,ADULT SOCIAL CARE,SAGECARE LTD,"2,793.30",PHY LTS 65+,HOMECARE - C&V,2102941480,1000080924
09.04.2019,ADULT SOCIAL CARE,LONDON CARE LTD,"2,814.48",PHY LTS 65+,HOMECARE - C&V,2102941199,1000003398
09.04.2019,ADULT SOCIAL CARE,BLISSETT CARE LTD,"2,848.09",PHY LTS 65+,HOMECARE - C&V,2102941375,1000042627
09.04.2019,ADULT SOCIAL CARE,RANC CARE HOMES LTD,"2,850.00",PHY LTS 65+,PLACEMENTS - RESPITE,2102941710,1000065480
09.04.2019,ADULT SOCIAL CARE,SAGECARE LTD,"3,055.69",PHY LTS 65+,HOMECARE - C&V,2102941616,1000080924
09.04.2019,ADULT SOCIAL CARE,BLISSETT CARE LTD,"3,416.00",PHY LTS 65+,HOMECARE - C&V,2102941386,1000042627
09.04.2019,ADULT SOCIAL CARE,LONDON CARE LTD,"3,484.71",PHY LTS 65+,HOMECARE - C&V,2102941339,1000003398
09.04.2019,ADULT SOCIAL CARE,BLISSETT CARE LTD,341.6,PHY STS 18-64,HOMECARE - IC,2102941413,1000042627
09.04.2019,ADULT SOCIAL CARE,BLISSETT CARE LTD,608.17,PHY STS 18-64,HOMECARE - IC,2102941381,1000042627
09.04.2019,ADULT SOCIAL CARE,BLISSETT CARE LTD,269.01,PHY STS 65+,HOMECARE - IC,2102941366,1000042627
09.04.2019,ADULT SOCIAL CARE,SAGECARE LTD,374.8,PHY STS 65+,HOMECARE - IC,2102941493,1000080924
09.04.2019,ADULT SOCIAL CARE,BLISSETT CARE LTD,525.21,PHY STS 65+,HOMECARE - IC,2102941388,1000042627
09.04.2019,ADULT SOCIAL CARE,SAGECARE LTD,691.28,PHY STS 65+,HOMECARE - IC,2102941657,1000080924
09.04.2019,ADULT SOCIAL CARE,ELEANOR NURSING AND SOCIAL CARE LTD,"1,496.45",PHY STS 65+,HOMECARE - IC,2102941086,1000081695
09.04.2019,ADULT SOCIAL CARE,LONDON CARE LTD,299.76,SOCIAL ISOLATION,HOMECARE - C&V,2102941313,1000003398
09.04.2019,ADULT SOCIAL CARE,BLISSETT CARE LTD,307.44,SOCIAL ISOLATION,HOMECARE - C&V,2102941405,1000042627
09.04.2019,ADULT SOCIAL CARE,LONDON CARE LTD,341.45,SOCIAL ISOLATION,HOMECARE - C&V,2102941210,1000003398
09.04.2019,ADULT SOCIAL CARE,SAGECARE LTD,358.15,SOCIAL ISOLATION,HOMECARE - C&V,2102941473,1000080924
09.04.2019,ADULT SOCIAL CARE,SAGECARE LTD,399.76,SOCIAL ISOLATION,HOMECARE - C&V,2102941552,1000080924
09.04.2019,ADULT SOCIAL CARE,SAGECARE LTD,485.15,SOCIAL ISOLATION,HOMECARE - C&V,2102941479,1000080924
09.04.2019,ADULT SOCIAL CARE,LONDON CARE LTD,532.8,SOCIAL ISOLATION,HOMECARE - C&V,2102941217,1000003398
09.04.2019,ADULT SOCIAL CARE,LONDON CARE LTD,616.28,SOCIAL ISOLATION,HOMECARE - C&V,2102941324,1000003398
09.04.2019,ADULT SOCIAL CARE,SAGECARE LTD,782.76,SOCIAL ISOLATION,HOMECARE - C&V,2102941652,1000080924
09.04.2019,ADULT SOCIAL CARE,LONDON CARE LTD,991.13,SOCIAL ISOLATION,HOMECARE - C&V,2102941209,1000003398
09.04.2019,ADULT SOCIAL CARE,BLISSETT CARE LTD,"1,088.85",SOCIAL ISOLATION,HOMECARE - C&V,2102941402,1000042627
09.04.2019,ADULT SOCIAL CARE,LONDON CARE LTD,"1,315.84",SOCIAL ISOLATION,HOMECARE - C&V,2102941136,1000003398
09.04.2019,ADULT SOCIAL CARE,LONDON CARE LTD,"2,318.79",SOCIAL ISOLATION,HOMECARE - SPOT,2102941186,1000003398
09.04.2019,ADULT SOCIAL CARE,SAGECARE LTD,"2,373.28",SOCIAL ISOLATION,HOMECARE - C&V,2102941503,1000080924
09.04.2019,ADULT SOCIAL CARE,SAGECARE LTD,"2,793.70",SOCIAL ISOLATION,HOMECARE - C&V,2102941452,1000080924
09.04.2019,ADULT SOCIAL CARE,SAGECARE LTD,778.62,SUB LTS 18-64,HOMECARE - C&V,2102941661,1000080924
09.04.2019,ADULT SOCIAL CARE,BROADREACH HOUSE,"1,000.00",SUB LTS 18-64,PLACEMENTS - REHAB,2102941696,1659382
09.04.2019,ADULT SOCIAL CARE,BROADREACH HOUSE,"1,000.00",SUB LTS 18-64,PLACEMENTS - REHAB,2102941698,1659382
09.04.2019,ADULT SOCIAL CARE,BROADREACH HOUSE,"1,390.00",SUB LTS 18-64,PLACEMENTS - REHAB,2102941697,1659382
09.04.2019,ASSET MANAGEMENT,FRANKHAM CONSULTANCY GROUP LTD,667.28,ADAPTATIONS,BUILDING R&M,5902353424,1000043952
09.04.2019,ASSET MANAGEMENT,CHESHIRE ESTATE AND LEGAL LTD,420.8,DISREPAIR,LEGAL FEES & COURT COSTS,2102940982,1000081908
09.04.2019,ASSET MANAGEMENT,FRANKHAM CONSULTANCY GROUP LTD,930,DISREPAIR,OTHER R&M,5902353324,1000043952
09.04.2019,ASSET MANAGEMENT,FRANKHAM CONSULTANCY GROUP LTD,930,DISREPAIR,OTHER R&M,5902353325,1000043952
09.04.2019,ASSET MANAGEMENT,FRANKHAM CONSULTANCY GROUP LTD,930,DISREPAIR,OTHER R&M,5902353327,1000043952
09.04.2019,ASSET MANAGEMENT,FRANKHAM CONSULTANCY GROUP LTD,930,DISREPAIR,OTHER R&M,5902353328,1000043952
09.04.2019,ASSET MANAGEMENT,FRANKHAM CONSULTANCY GROUP LTD,930,DISREPAIR,OTHER R&M,5902353330,1000043952
09.04.2019,ASSET MANAGEMENT,FRANKHAM CONSULTANCY GROUP LTD,930,DISREPAIR,OTHER R&M,5902353332,1000043952
09.04.2019,ASSET MANAGEMENT,FRANKHAM CONSULTANCY GROUP LTD,930,DISREPAIR,OTHER R&M,5902353333,1000043952
09.04.2019,ASSET MANAGEMENT,FRANKHAM CONSULTANCY GROUP LTD,930,DISREPAIR,OTHER R&M,5902353439,1000043952
09.04.2019,ASSET MANAGEMENT,FRANKHAM CONSULTANCY GROUP LTD,930,DISREPAIR,OTHER R&M,5902353442,1000043952
09.04.2019,ASSET MANAGEMENT,FRANKHAM CONSULTANCY GROUP LTD,930,DISREPAIR,OTHER R&M,5902353444,1000043952
09.04.2019,ASSET MANAGEMENT,SGN CONNECTIONS LTD,847.2,ENG CONTRACTS (SOUTH),OTHER R&M,5902353429,1000055428
09.04.2019,ASSET MANAGEMENT,PHOENIX HSC (UK) LTD,300,HEALTH AND SAFETY,TRAINING,5902353420,1000075233
09.04.2019,ASSET MANAGEMENT,BUILDTRUST LTD,"1,449.64",R&M CONTRACTS (SOUTH),BUILDING R&M,2102941717,3000002010
09.04.2019,CENTRAL FUNCTIONS,EDF ENERGY PLC,"1,492.18",LEDBURY ESTATE,ELECTRICITY,5902353435,1008746
09.04.2019,CENTRAL FUNCTIONS,ALLPAY NET LIMITED,266.14,SERVICE LEVEL AGREEMENTS,BANK CHARGES,5902353297,1000043001
09.04.2019,CHIEF EXECUTIVE,STANDAGE & CO LTD,"13,484.13",CAPITAL PS (REGEN),CONSTRUCTION MAIN CONTRACT -CERTIFICATED,5902353343,11223389
09.04.2019,CHIEF EXECUTIVE,STANDAGE & CO LTD,"43,495.59",CAPITAL PS (REGEN),CONSTRUCTION MAIN CONTRACT -CERTIFICATED,5902353343,11223389
09.04.2019,CHILDREN'S SERVICES,ADVANCEMENTS ABA LTD,400,AST,TRAINING,5902353341,1000081719
09.04.2019,CHILDREN'S SERVICES,ADVANCEMENTS ABA LTD,400,AST,TRAINING,5902353346,1000081719
09.04.2019,CHILDREN'S SERVICES,ADVANCEMENTS ABA LTD,400,AST,TRAINING,5902353349,1000081719
09.04.2019,CHILDREN'S SERVICES,ADVANCEMENTS ABA LTD,450,AST,TRAINING,5902353350,1000081719
09.04.2019,CHILDREN'S SERVICES,ADVANCEMENTS ABA LTD,500,AST,TRAINING,5902353339,1000081719
09.04.2019,CHILDREN'S SERVICES,ADVANCEMENTS ABA LTD,500,AST,TRAINING,5902353344,1000081719
09.04.2019,CHILDREN'S SERVICES,ADVANCEMENTS ABA LTD,500,AST,TRAINING,5902353348,1000081719
09.04.2019,CHILDREN'S SERVICES,ADVANCEMENTS ABA LTD,500,AST,TRAINING,5902353351,1000081719
09.04.2019,CHILDREN'S SERVICES,ADVANCEMENTS ABA LTD,500,AST,TRAINING,5902353352,1000081719
09.04.2019,CHILDREN'S SERVICES,ADVANCEMENTS ABA LTD,800,AST,TRAINING,5902353336,1000081719
09.04.2019,CHILDREN'S SERVICES,PHS GROUP PLC,894.16,CAMBERWELL GROVE EARLY YEARS CENTRE,EXTERNAL AGENCIES AND BODIES,5902353338,1851993
09.04.2019,CHILDREN'S SERVICES,ILLUMINATED ARTS,988.44,CENTRAL SUPPORT,OFFICE EXPENSES,5902353467,1000078065
09.04.2019,CHILDREN'S SERVICES,REDACTED PERSONAL DATA,"-4,622.80",DISABILITY & HIV,PAYMENTS TO CARERS,REDACTED,REDACTED
09.04.2019,CHILDREN'S SERVICES,REDACTED PERSONAL DATA,"4,622.80",DISABILITY & HIV,PAYMENTS TO CARERS,REDACTED,REDACTED
09.04.2019,COMMUNITIES,DEYNSFORD TENANT MANAGEMENT ORGANISATION,"23,729.33",D'EYNSFORD ESTATE,M&M ALLOWANCE CO-OPS,5902353414,1000075613
09.04.2019,COMMUNITIES,LOWLINE ENTERTAINMENT GROUP LTD,"5,500.00",MAYORAL SUPPORT,MISCELLANEOUS EXPENSES,5902353433,1000080700
09.04.2019,COMMUNITIES,LONDON CARE LTD,266.4,NO RECOURSE TO PUBLIC FUNDS,HOMECARE - C&V,2102941283,1000003398
09.04.2019,COMMUNITIES,SAGECARE LTD,374.63,NO RECOURSE TO PUBLIC FUNDS,HOMECARE - C&V,2102941427,1000080924
09.04.2019,COMMUNITIES,SAGECARE LTD,399.64,NO RECOURSE TO PUBLIC FUNDS,HOMECARE - C&V,2102941511,1000080924
09.04.2019,COMMUNITIES,SAGECARE LTD,566.16,NO RECOURSE TO PUBLIC FUNDS,HOMECARE - C&V,2102941539,1000080924
09.04.2019,COMMUNITIES,SAGECARE LTD,566.44,NO RECOURSE TO PUBLIC FUNDS,HOMECARE - C&V,2102941488,1000080924
09.04.2019,COMMUNITIES,LONDON CARE LTD,578.76,NO RECOURSE TO PUBLIC FUNDS,HOMECARE - C&V,2102941268,1000003398
09.04.2019,COMMUNITIES,FINEFAIR LTD,707.1,NO RECOURSE TO PUBLIC FUNDS,ACCOMMODATION CHARGES,5902353353,1000075570
09.04.2019,COMMUNITIES,LONDON CARE LTD,"1,057.77",NO RECOURSE TO PUBLIC FUNDS,HOMECARE - C&V,2102941297,1000003398
09.04.2019,COMMUNITIES,BLISSETT CARE LTD,"1,058.96",NO RECOURSE TO PUBLIC FUNDS,HOMECARE - C&V,2102941389,1000042627
09.04.2019,COMMUNITIES,SAGECARE LTD,"1,065.60",NO RECOURSE TO PUBLIC FUNDS,HOMECARE - C&V,2102941584,1000080924
09.04.2019,COMMUNITIES,ROYAL BOROUGH OF GREENWICH,"1,111.71",NO RECOURSE TO PUBLIC FUNDS,COUNCIL TAX,5902353335,1000030426
09.04.2019,COMMUNITIES,ELEANOR NURSING AND SOCIAL CARE LTD,"1,176.56",NO RECOURSE TO PUBLIC FUNDS,HOMECARE - C&V,2102941074,1000081695
09.04.2019,COMMUNITIES,LONDON CARE LTD,"1,282.40",NO RECOURSE TO PUBLIC FUNDS,HOMECARE - C&V,2102941234,1000003398
09.04.2019,COMMUNITIES,SAGECARE LTD,"1,548.45",NO RECOURSE TO PUBLIC FUNDS,HOMECARE - C&V,2102941648,1000080924
09.04.2019,COMMUNITIES,J & M OASIS LTD,"32,649.00",NO RECOURSE TO PUBLIC FUNDS,ACCOMMODATION CHARGES,5902353334,1000072169
09.04.2019,COMMUNITIES,HOMELY HOUSING LETS LTD,"39,745.70",NO RECOURSE TO PUBLIC FUNDS,ACCOMMODATION CHARGES,5902353320,1000050013
09.04.2019,CUSTOMER EXPERIENCE HGF,CRUSE BEREAVEMENT CARE,625,CORONER'S,CONSULTANTS SERVICES,5902353415,1000061362
09.04.2019,ENVIRONMENT AND LEISURE,LAND USE CONSULTANTS LTD,500,CAPITAL PS (LEISURE),CONSTRUCTION FEES  - EXTERNAL,5902353362,11132526
09.04.2019,ENVIRONMENT AND LEISURE,T LOUGHMAN AND CO LIMITED,544.86,CAPITAL PS (LEISURE),CONSTRUCTION MAIN CONTRACT -CERTIFICATED,2102941724,4013329
09.04.2019,ENVIRONMENT AND LEISURE,T LOUGHMAN AND CO LIMITED,"2,100.00",CAPITAL PS (LEISURE),CONSTRUCTION MAIN CONTRACT -CERTIFICATED,2102941724,4013329
09.04.2019,ENVIRONMENT AND LEISURE,INTO SERVICES LONDON LTD,"3,355.00",CAPITAL PS (LEISURE),CONSTRUCTION MAIN CONTRACT -CERTIFICATED,2102941719,3000002071
09.04.2019,ENVIRONMENT AND LEISURE,VINCENTSTOKES LTD,"32,413.00",CAPITAL PS (LEISURE),CONSTRUCTION MAIN CONTRACT -CERTIFICATED,2102941723,3000001965
09.04.2019,ENVIRONMENT AND LEISURE,GROUND CONTROL LIMITED,"37,410.89",CAPITAL PS (LEISURE),CONSTRUCTION FEES  - EXTERNAL,2102941718,3000001551
09.04.2019,ENVIRONMENT AND LEISURE,WARWICK LANDSCAPING LTD,"51,696.15",CAPITAL PS (LEISURE),CONSTRUCTION FEES  - EXTERNAL,2102941722,3000001705
09.04.2019,ENVIRONMENT DIRECTORATE,SHELL UK OIL PRODUCTS LTD,325.78,COMMERCIAL VEH CTRL A/C,VEHICLE FUEL,5902353326,1000081254
09.04.2019,ENVIRONMENT DIRECTORATE,SHELL UK OIL PRODUCTS LTD,359.67,COMMERCIAL VEH CTRL A/C,VEHICLE FUEL,5902353322,1000081254
09.04.2019,ENVIRONMENT DIRECTORATE,PACE ACCIDENT REPAIRS CENTRE LTD,380,COMMERCIAL VEH CTRL A/C,HIRED VEHICLES,5902353295,1000069899
09.04.2019,ENVIRONMENT DIRECTORATE,PACE ACCIDENT REPAIRS CENTRE LTD,380,COMMERCIAL VEH CTRL A/C,HIRED VEHICLES,5902353296,1000069899
09.04.2019,ENVIRONMENT DIRECTORATE,PACE ACCIDENT REPAIRS CENTRE LTD,380,COMMERCIAL VEH CTRL A/C,HIRED VEHICLES,5902353299,1000069899
09.04.2019,ENVIRONMENT DIRECTORATE,SHELL UK OIL PRODUCTS LTD,405.7,COMMERCIAL VEH CTRL A/C,VEHICLE FUEL,5902353342,1000081254
09.04.2019,ENVIRONMENT DIRECTORATE,SHELL UK OIL PRODUCTS LTD,450.43,COMMERCIAL VEH CTRL A/C,VEHICLE FUEL,5902353315,1000081254
09.04.2019,ENVIRONMENT DIRECTORATE,SHELL UK OIL PRODUCTS LTD,761.8,COMMERCIAL VEH CTRL A/C,VEHICLE FUEL,5902353314,1000081254
09.04.2019,ENVIRONMENT DIRECTORATE,SHELL UK OIL PRODUCTS LTD,"1,003.64",COMMERCIAL VEH CTRL A/C,VEHICLE FUEL,5902353337,1000081254
09.04.2019,ENVIRONMENT DIRECTORATE,SHB HIRE LTD,"2,546.42",COMMERCIAL VEH CTRL A/C,HIRED VEHICLES,5902353303,11319628
09.04.2019,ENVIRONMENT DIRECTORATE,SHELL UK OIL PRODUCTS LTD,"2,641.09",COMMERCIAL VEH CTRL A/C,VEHICLE FUEL,5902353331,1000081254
09.04.2019,ENVIRONMENT DIRECTORATE,POSTURITE (UK) LTD,724.71,HIGHWAY MAINTENANCE OVERHEADS,FURNITURE PURCHASE & REPAIR,5902353452,11015468
09.04.2019,ENVIRONMENT DIRECTORATE,CITY OF LONDON CORPORATION,665,LICENSING,STATIONERY,5902353411,1000052061
09.04.2019,ENVIRONMENT DIRECTORATE,TYCO INTEGRATED FIRE & SECURITY,"12,881.66",TOWN CENTRE CCTV,EQUIPMENT PURCHASE & REPAIR,5902353301,1000077948
09.04.2019,ENVIRONMENT DIRECTORATE,POSTURITE (UK) LTD,687.96,TRANSPORT PROJECTS,OFFICE EXPENSES,5902353383,11015468
09.04.2019,F & C S EXCLUDING CORPORATE BUDGETS,IRRV,301.66,COUNCIL TAX,TRAINING,5902353340,1153371
09.04.2019,F & C S EXCLUDING CORPORATE BUDGETS,EDF ENERGY PLC,-367.62,FC&P PROCESSING,OFFICE EXPENSES,2102940984,1008746
09.04.2019,F & C S EXCLUDING CORPORATE BUDGETS,EDF ENERGY PLC,-277.45,FC&P PROCESSING,OFFICE EXPENSES,2102940985,1008746
09.04.2019,HOUSING GENERAL FUND,STAR LEISURE,500,CAPITAL PS (HOUSING GF),CONSTRUCTION FEES - INTERNAL,5902352508,1000080966
09.04.2019,HOUSING GENERAL FUND,FRANKHAM CONSULTANCY GROUP LTD,672.4,CAPITAL PS (HOUSING GF),CAPITAL GRANTS,5902353406,1000043952
09.04.2019,HOUSING GENERAL FUND,FRANKHAM CONSULTANCY GROUP LTD,689.2,CAPITAL PS (HOUSING GF),CAPITAL GRANTS,5902353381,1000043952
09.04.2019,HOUSING HRA,POTTER RAPER AND PARTNERS,313.5,CAPITAL PS (HRA),CONSTRUCTION SITE COSTS,5902353302,1009369
09.04.2019,HOUSING HRA,BAILY  GARNER LLP,"1,070.45",CAPITAL PS (HRA),CONSTRUCTION FEES  - EXTERNAL,5902353402,1000663
09.04.2019,HOUSING HRA,PRB ESTATES LTD,"4,821.00",CAPITAL PS (HRA),CONST'N MAIN CONTRACT - NON CERTIFICATED,2102941721,3000001691
09.04.2019,HOUSING HRA,OCO HEATING & MECHANICAL,"123,158.59",CAPITAL PS (HRA),CONSTRUCTION MAIN CONTRACT -CERTIFICATED,2102941720,4005559
09.04.2019,HOUSING HRA,ELLIOT WOOD,"1,250.00",CAPITAL PS (REGEN),CONSTRUCTION FEES,5902353436,1000082468
09.04.2019,HOUSING HRA,NPOWER,448.43,RESIDENT SERVICES BUSINESS SUPPORT,ELECTRICITY,6101880264,DIRECT DEBIT PAYMENT
09.04.2019,HOUSING HRA,NPOWER,"1,388.88",RESIDENT SERVICES BUSINESS SUPPORT,ELECTRICITY,6101880265,DIRECT DEBIT PAYMENT
09.04.2019,HOUSING STRATEGY AND OPTIONS,WORKING TRANSITIONS,"7,200.00",HOMELESS & HOUSING OPTIONS MGT,TRAINING,5902353397,1000063689
09.04.2019,HOUSING STRATEGY AND OPTIONS,FRESHVIEW ESTATES LTD,883.56,HOMELESS PROJECTS,GRANTS,5902353443,1000081189
09.04.2019,HOUSING STRATEGY AND OPTIONS,FRESHVIEW ESTATES LTD,"1,060.27",HOMELESS PROJECTS,GRANTS,5902353443,1000081189
09.04.2019,HOUSING STRATEGY AND OPTIONS,VINECLOSE LTD,"3,000.00",HOMELESS PROJECTS,GRANTS,5902353077,1000082545
09.04.2019,LEISURE DIRECTORATE,BRITISH GAS,877.63,DAMILOLA TAYLOR CENTRE,ELECTRICITY,5902353305,1000054825
09.04.2019,LEISURE DIRECTORATE,BRITISH GAS,"1,339.23",DAMILOLA TAYLOR CENTRE,ELECTRICITY,5902353307,1000054825
09.04.2019,LEISURE DIRECTORATE,BRITISH GAS,"1,951.04",DAMILOLA TAYLOR CENTRE,ELECTRICITY,5902353313,1000054825
09.04.2019,LEISURE DIRECTORATE,BRITISH GAS,"1,986.10",DAMILOLA TAYLOR CENTRE,ELECTRICITY,5902353309,1000054825
09.04.2019,LEISURE DIRECTORATE,BRITISH GAS,"2,191.92",DAMILOLA TAYLOR CENTRE,ELECTRICITY,5902353311,1000054825
09.04.2019,LEISURE DIRECTORATE,SPORTS AND LEISURE MANAGEMENT LTD,"26,562.00",FACILITIES MANAGEMENT,BUILDING R&M,5902353376,1000077862
09.04.2019,LEISURE DIRECTORATE,LORENSBERGS LTD,962.96,IT DEVELOPMENT,COMMS & COMPUTING CONTRACT CHARGES,5902353355,1000044178
09.04.2019,LEISURE DIRECTORATE,SPORTS AND LEISURE MANAGEMENT LTD,"11,039.00",LEISURE INVESTMENT,OTHER CONTRACTORS,5902353373,1000077862
09.04.2019,LEISURE DIRECTORATE,G4S CASH SERVICES (UK) LTD,349.38,LIBARIES DEVELOPMENT,SECURITY SERVICES,5902353434,1420519
09.04.2019,LEISURE DIRECTORATE,COMBINED PRECISION COMPONENTS PLC,291.44,SDM BUDGET,MATERIALS,5902353453,1000021821
09.04.2019,LEISURE DIRECTORATE,ASKEWS & HOLTS LIBRARY SERVICES LTD,"2,454.43",STOCK SERVICES,BOOKS & PUBLICATIONS,5902353298,1494168
09.04.2019,PLANNING AND TRANSPORT,SECURE-A-FIELD LTD,369.5,BUILDING CONTROL,OFFICE EXPENSES,5902352554,1000072371
09.04.2019,PLANNING AND TRANSPORT,SOUTHWARK NEWSPAPER LTD,504,DEVELOPMENT CONTROL ADMINSTRATION,MARKETING & PUBLICITY SERVICES,5902353432,1556957
09.04.2019,PLANNING AND TRANSPORT,SECURE-A-FIELD LTD,369.5,SUPPORT SERVICES,OFFICE EXPENSES,5902352554,1000072371
09.04.2019,RESIDENT SERVICES,HARROW GREEN LTD,376.03,OPERATIONS/OFFICES ACCOMMODATION,REMOVAL EXPENSES,5902353441,1000076673
09.04.2019,RESIDENT SERVICES,HARROW GREEN LTD,647.4,OPERATIONS/OFFICES ACCOMMODATION,REMOVAL EXPENSES,5902353440,1000076673
09.04.2019,RESIDENT SERVICES,HARROW GREEN LTD,"1,370.40",OPERATIONS/OFFICES ACCOMMODATION,REMOVAL EXPENSES,5902353454,1000076673
09.04.2019,RESIDENT SERVICES,HARROW GREEN LTD,"1,694.49",OPERATIONS/OFFICES ACCOMMODATION,REMOVAL EXPENSES,5902353456,1000076673
09.04.2019,RESIDENT SERVICES,HARROW GREEN LTD,"8,039.67",OPERATIONS/OFFICES ACCOMMODATION,REMOVAL EXPENSES,5902353451,1000076673
09.04.2019,RESIDENT SERVICES,THAMES WATER UTILITIES LTD,-777.43,TA HOSTELS,WATER,5902353605,1630755
09.04.2019,RESIDENT SERVICES,THAMES WATER UTILITIES LTD,777.43,TA HOSTELS,WATER,5902351265,1630755
10.04.2019,ADULT SOCIAL CARE,BRANDON TRUST,"530,314.00",BRANDON TRUST,RESIDENTIAL CARE,5902352337,1000042417
10.04.2019,ADULT SOCIAL CARE,SHAW & SONS LTD,260.1,MH PREMISES COSTS,INTERVIEW,5902353422,1010828
10.04.2019,ASSET MANAGEMENT,SIMON L TAYLOR LTD,700,REPAIRS OPERATIONS,PAYMENTS FOR LEGAL SERVICES,5902353214,1000056151
10.04.2019,ASSET MANAGEMENT,SIMON L TAYLOR LTD,700,REPAIRS OPERATIONS,PAYMENTS FOR LEGAL SERVICES,5902353215,1000056151
10.04.2019,ASSET MANAGEMENT,SIMON L TAYLOR LTD,912.5,REPAIRS OPERATIONS,PAYMENTS FOR LEGAL SERVICES,5902353211,1000056151
10.04.2019,CENTRAL FUNCTIONS,ROWANWOOD PROFESSIONAL SERVICES LTD,"3,600.00",ASSET MANAGEMENT SYSTEM,CONSULTANTS SERVICES,5902353616,1000080531
10.04.2019,CENTRAL FUNCTIONS,VPS (UK) LTD,"18,121.77",AYLESBURY,SECURITY SERVICES,5902353614,1000040614
10.04.2019,CENTRAL FUNCTIONS,OPEN COMMUNITIES LTD,"3,797.50",LEDBURY ESTATE,MISCELLANEOUS EXPENSES,5902352724,1000065800
10.04.2019,CENTRAL FUNCTIONS HGF,PPROPERTYPLACEBOOK LTD,765,SWEP/SPOT,EXTERNAL AGENCIES AND BODIES,5902353514,1000077817
10.04.2019,CENTRAL FUNCTIONS HGF,PPROPERTYPLACEBOOK LTD,"1,020.00",SWEP/SPOT,EXTERNAL AGENCIES AND BODIES,5902353514,1000077817
10.04.2019,CENTRAL FUNCTIONS HGF,J & M OASIS LTD,"1,085.00",SWEP/SPOT,EXTERNAL AGENCIES AND BODIES,5902353496,1000072169
10.04.2019,CHIEF EXECUTIVE,KENT COUNTY COUNCIL - LASER,"2,295.18",CAPITAL PS (REGEN),CONSTRUCTION MAIN CONTRACT -CERTIFICATED,5902353523,1000012926
10.04.2019,CHIEF EXECUTIVE,KENT COUNTY COUNCIL - LASER,"2,307.48",CAPITAL PS (REGEN),CONSTRUCTION MAIN CONTRACT -CERTIFICATED,5902353546,1000012926
10.04.2019,CHIEF EXECUTIVE,KENT COUNTY COUNCIL - LASER,"2,307.48",CAPITAL PS (REGEN),CONSTRUCTION MAIN CONTRACT -CERTIFICATED,5902353547,1000012926
